Workbook

Sheet Notes
A1: AdaptiveMovingAverages.xlsm; Traders Tip spreadsheet created for the April 2018 Issue
A2: Coded beginning 2018-February-10 by Ronald McAllister (rpmac_xltt@sprynet.com)
A4: This Workbook demonstrates an EXCEL version of the ideas presented
A5: by Vitali Apirine in an article titled "Adaptive Moving Averages"
A6: which originally appeared in the April 2018 issue of
A7: "Technical Analysis of Stocks and Commodities" magazine.
A9: CalculationsAndCharts construction Notes:
A10: To replicate Mr. Apirine's charts from the article:
A11: Figure 2: Download data for symbol "^RUT" and then use the "I would like to plot" area to specify dates 7/25/2012 thru 3/14/2013. Then Click the "I would Like to Plot" button above the dates.
A12: Figure 3: Symbol "^GSPC", use dates 9/30/2016 thru 12/29/2017
A13: Figure 4: Symbol "^FTSE", use dates 4/27/2015 thru 10/15/2015
A14: Figure 5: Symbol "^DJI", use dates 11/20/2003 thru 11/23/2004
A15: NOTE: All of these symbols are available for Double Click retrieval on the Follow Tab of this spreadsheet
A17: Development Notes:
C18: This workbook contains and uses VBA macros and may use VBA Class structures.
C19: Input Data
C20: The data in this workbook is sorted date descending (most recent date at the top). All formulas and
C21: VBA routines are built accordingly.
A23: Reported Data Download Error and FIX
A24: For T-Tips spreadsheets since December 2017, my first spreadsheet to support for the new Yahoo Finance interface. Several readers have reported the following failure message:
A26: “User Defined Type Not Defined”
A28: If the user selects the “Debug” option, the following statement is highlighted in the VBA code
A30: Dim MSXML2Object As MSXML2.XMLHTTP
A32: For anyone encountering this failure who is comfortable with the VBA editor, two simple edits have proven to fix the problem.
A33: First, find
A34: Dim MSXML2Object As MSXML2.XMLHTTP (which is failing for you and others)
A35: And change it to
A36: Dim MSXML2Object As MSXML2.XMLHTTP60
A38: And then later in the code find and make a necessary mirroring change from
A39: Set MSXML2Object = New MSXML2.XMLHTTP
A40: to
A41: Set MSXML2Object = New MSXML2.XMLHTTP60
A43: This spreadsheet incorporates my first cut at retrieving historical data from the "New", and not necessarily "Improved", Yahoo Finance History Download interface.
B45: My sincere apologies to our Macintosh based readers: MSXML is not supported in your environment. So as it stands this version of the spreadsheet will not work for you.
B46: See "Why this approach does not work for Macintosh" below.
B47: I am investigating cURL as a non-Querytable based approach for the Macintosh environment.
A49: The new Yahoo Finance history download interface has changed rather radically. The biggest hurdle being a pseudo-security requirement of adding a
B50: crumb character string to any URL requesting any type of history download. That crumb must match up (by way of some sort of hash algorithm) with
B51: the Yahoo Finance cookie that must also be sent with any request to the new Yahoo History down load interface.
B53: A crumb value is returned, buried in the HTML for any of what I call the "entry level" Yahoo Finance web pages (no crumb security requirement for entry level pages).
B54: A crumb may come with other Yahoo Finance pages. A crumb may even accompany some of the secured pages as well. I have not checked.
B56: Entry level pages are the top level pages of the various Yahoo Finance dialogs and include: Quote Lookup, Stock Summary Quote, and any of the pages
B57: with links in the horizontal row with the "Summary" link on the quote summary page such as Options, Historical Data, and the rest.
B59: To date I have found no way to get at this crumb value using any native EXCEL capabilities.
B61: So this crumb requirement effectively shuts out any solution that attempts to exclusively use built-in facilities of EXCEL, which is to say a purely Querytables solution.
B63: The approach built for this Traders Tip spreadsheet uses a combination of MSXML and EXCEL QueryTable calls to Load the InputPriceData worksheet.
B65: First I call MSXML to get the HTML text for the Yahoo Summary Quote page using the requested symbol. From this HTML text I extract the full company name,
B66: the market it trades, the market status and time stamp, and finally the associated crumb string. There is a bunch of other useful bits buried in this HTML
B67: text that do not necessarily appear on the web page your browser presents. Perhaps some day I will go after and build a worksheet with these other bits.
B69: Next I add the freshly extracted crumb string to the URLs I use in three separate Querytable calls to retrieve Price history, Split history, and Dividend history respectively.
B71: From there VBA code proceeds as in the past to fill in the cell formulas and formatting that make the "prettied up" InputPriceData sheet.
A73: Why this approach works for Windows:
B74: First, MSXML shares the permanent Internet Explorer web cache where cookies are maintained. Both IE and MSXML automatically
B75: update this cache when a "set cookie" header accompanies a web response. And they both automatically search this shared cache for
B76: cookies and add any "appropriate" cookies to the headers of any web requests they send out.
B77: This cookie handling automation means that even if the response to our MSXML call for the Summary web page includes a new version of
B78: the Yahoo Finance cookie, the imbedded Crumb value will always match the cookie newly installed in the cache!
B80: Second, in the Windows environment the EXCEL Querytable mechanism leans heavily on bits from Internet Explorer. This means that cookie
B81: handling is also automated from the shared cache for Querytable calls. We can count on any appropriate cookies being added to any Querytable call.
B82: We only need to do our part by adding the corresponding Crumb value to complete the security for the Querytable to access Yahoo History downloads.
A84: Why this approach does not work for Macintosh:
B85: For what it is worth, the Macintosh version of the MS Office suite of products do in fact maintain a special, shared amongst themselves only, cookie cache.
B86: They automate cookie handling into and from this cache JUST for the Office products and any Querytable activity they might originate.
B88: This cache is not tied to, nor shared with, any browser that might be installed on the MAC. And I have not found anything with HTTP capabilities similar to
B89: MSXML that can work with that Office product cookie cache.
B91: When working in the MAC EXCEL environment, without that MSXML like capability against the office shared cache, l have no mechanism
B92: to obtain a crumb value that would be a valid match to the Yahoo Finance cookie that will be automatically attached to a Querytable call.
B93: This missing facility pretty much eliminates the use of Mac environment Querytables to access the new Yahoo Finance history download interface.
A95: One very low probability potential "Gottcha" for any Querytables approach.
B96: Yahoo Finance cookies typically have an assigned expiration that is a year out (to the second) from the time they are issued.
B97: Further, these cookies are unique. Yours will not match mine.
B99: If for testing purposes, instead of MSXML, you use a fresh instance of Winhttp (Fresh instance = empty cache = no cookie to automatically send)
B100: every time you call an entry level page, the Yahoo server says "What? Entry level page? With no inbound cookie? Get them a cookie!!"
B101: and will send you a new, unique cookie and will imbed the matching crumb value in the response text for each of these "no cookie attached" calls.
B103: The Gottcha: Lets say that the Yahoo Finance cookie presently in the IE cache has an expiration date and time that just happens
B104: to fall between our MSXML call to the summary page to fetch our crumb and our first (or second, or third) Querytable call.
B105: The Querytable call after the cookie expiration may fail with a cookie and crumb validation error.
B107: Querytable error reporting is atrocious. So we will not get any sort of helpful message here. Just a very generalized message like "failed to connect".
B109: The workaround is to simply go to the InputPriceData tab and click the download button.
B110: This second time through the retrieval process should not fail on a mismatch.
B111: After all, you now have a year before the new cookie that just got put into the cache expires!
A113: Calculation and Chart Worksheet Usage Comments:
C114: In General, Items in Bolded BLUE are items you may freely change to play what-if games.
C115: Be sure to have a backup copy of the spreadsheet before you alter anything else.
A117: Features carried forward from the June 2016 version of my T-Tips Template
A118: Added a pair of buttons near cell F12 that will allow the user to step the charting window forward or backward one bar for each click.
A119: I find this to be a good way to test my understanding of the author's ideas as I step through the evolution of the price behavior and the indicators.
B121: First: In the "Help! I would like to plot data" area.
B122: Added button to resolve #NA problems by locating the bar in the input data with a slightly more recent date than what the user actually requested.
B123: I find this particularly useful when I have a general idea of where I want to be date wise. Now I can pick a set of dates "out of the air".
B124: If either (or both) of my date specifications fall between dates that are available in the price history,
B125: this button will resolve them to the dates of the nearest, slightly more recent input bars.
B126: I can then refine my data interval search as necessary from there.
B127: Really great when working with Weekly or Monthly studies!
C128: 2016Jun11 - added logic to the "I would like to chart.." button to detect #N/A values and terminate
C129: gracefully with a message instead of blowing up in the charting logic.
B131: Second: In the "Price Chart Windowing Controls" area. (A11 and A12)
B132: When retrieving data for a new symbol or when changing from daily to weekly or monthly data, there was the possibility that the
B133: residual settings in A11 and A12 would fall outside of the number bars available on the input data tab after the new data retrieval.
B134: In certain combinations, this could create a serious error in the chart sizing logic and crash the spreadsheet.
B135: I have taken this opportunity to update the validity checking logic used in the chart sizing macros
B136: to adjust these values as necessary so that they fall within the boundaries of the newly retrieved input data.
A137: Features carried forward from the October 2015 Traders Tips Template
B138: Improved automation: changes to any of the following will automatically initiate calculations appropriate to reflect a change.
C139: Changing either of cells A11 (pan) or A12 (zoom) will automatically initiate the same chart sizing macros that the manual
C140: "Set Chart" button uses.

Sheet InputPriceData
A1: Dow Jones Industrial Average (^DJI) -DJI (Daily)
F2: Market State == > | G2: As of | H2: 13:58:00 | I2: EST. Market open. | IJ2: 241.79
A3: Request Online Yahoo History for:
A4: Symbol | B4: ^DJI | D4: Valid | I4: =OFFSET(I4,-2,0,1,1) -> EST. Market open.
A5: From | B5: 1950-01-01 | D5: Data | AF5: Trailing 12 Div return (Cur Close)
A6: To | B6: =NOW() -> 2018-02-15T15:02:12.340 | D6: Types | E6: =VLOOKUP(B7,D7:E10,2,FALSE) -> d
A7: Data Type | B7: Daily | D7: Daily | E7: d
B8: dbtX2VDkalH | D8: Weekly | E8: w
A9: Available Data | D9: Monthly | E9: m
A10: Bar Count: | B10: 8331 | AF10: =OFFSET(AC15,1,0,1,1)/OFFSET(N15,1,0,1,1) -> 0
A11: From: | B11: =IF(B10<=0,"",OFFSET(B15,B10,IF(HistReqDataType="v",1,0),1,1)) -> 1985-01-29 | W11: Trailing 12 Month Dividend Returns
A12: To: | B12: =IF(B10<=0,"",IF(HistReqDataType="v",OFFSET(B15,2,1,1,1),OFFSET(B15,1,0,1,1))) -> 2018-02-14 | W12: Raw Close price on Dividend date | X12: Div Year and Month | Y12: Looking for year ago Div Year and Month | Z12: Year ago Div Date we found | AA12: row offset to year ago div Date | AB12: Same month flag | AC12: Trailing 12 Div Total | AD12: Trailing 12 Div return
Q13: Split History | S13: 0 | T13: Running | U13: Dividend History
B14: Raw Data Values | H14: Adjusted | I14: Price Adjust | J14: Vol Adjust | K14: Adjusted Values | P14: Last | Q14: Effective | R14: Shares | T14: Vol Adjust | V14: 0
A15: RelRow | B15: Date | C15: Open | D15: High | E15: Low | F15: Close | G15: Volume | H15: Close | I15: Factor | J15: Factor | K15: Open | L15: High | M15: Low | N15: Close | O15: Volume | P15: Trade | Q15: 43146 | R15: New | S15: Old | T15: 1 | U15: Date | V15: $ / Share
A16: 1 | B16: 2018-02-14 | C16: 24535.82031 | D16: 24835.44922 | E16: 24490.35938 | F16: 24816.16016 | G16: 254641020 | H16: 24816.16016 | I16: =IF(F16=0,1,H16/F16) -> 1 | J16: =INDEX(OFFSET($T$15,0,0,$S$13+1,1),MATCH(B16,OFFSET($Q$15,0,0,$S$13+1,1),-1)) -> 1 | K16: =ROUND($I16*C16,2) -> 24535.82 | L16: =ROUND($I16*D16,2) -> 24835.45 | M16: 24490.36 | N16: 24816.16 | O16: =G16*J16 -> 254641020
A17: 2 | B17: 2018-02-13 | C17: 24540.33008 | D17: 24705.7207 | E17: 24421.0293 | F17: 24640.44922 | G17: 374410000 | H17: 24640.44922 | I17: =IF(F17=0,1,H17/F17) -> 1 | J17: =INDEX(OFFSET($T$15,0,0,$S$13+1,1),MATCH(B17,OFFSET($Q$15,0,0,$S$13+1,1),-1)) -> 1 | K17: =ROUND($I17*C17,2) -> 24540.33 | L17: =ROUND($I17*D17,2) -> 24705.72 | M17: =ROUND($I17*E17,2) -> 24421.03 | N17: =ROUND($I17*F17,2) -> 24640.45 | O17: =G17*J17 -> 374410000
A18: 3 | B18: 2018-02-12 | C18: 24337.75977 | D18: 24765.16016 | E18: 24290.48047 | F18: 24601.26953 | G18: 496610000 | H18: 24601.26953 | I18: 1 | J18: 1 | K18: 24337.76 | L18: 24765.16 | M18: 24290.48 | N18: 24601.27 | O18: 496610000
A19: 4 | B19: 2018-02-09 | C19: 23992.66992 | D19: 24382.14062 | E19: 23360.28906 | F19: 24190.90039 | G19: 735030000 | H19: 24190.90039 | I19: 1 | J19: 1 | K19: 23992.67 | L19: 24382.14 | M19: 23360.29 | N19: 24190.9 | O19: 735030000
A20: 5 | B20: 2018-02-08 | C20: 24902.30078 | D20: 24903.67969 | E20: 23849.23047 | F20: 23860.46094 | G20: 657500000 | H20: 23860.46094 | I20: 1 | J20: 1 | K20: 24902.3 | L20: 24903.68 | M20: 23849.23 | N20: 23860.46 | O20: 657500000
A21: 6 | B21: 2018-02-07 | C21: 24892.86914 | D21: 25293.96094 | E21: 24785.43945 | F21: 24893.34961 | G21: 504620000 | H21: 24893.34961 | I21: 1 | J21: 1 | K21: 24892.87 | L21: 25293.96 | M21: 24785.44 | N21: 24893.35 | O21: 504620000
A22: 7 | B22: 2018-02-06 | C22: 24085.16992 | D22: 24946.23047 | E22: 23778.74023 | F22: 24912.76953 | G22: 823940000 | H22: 24912.76953 | I22: 1 | J22: 1 | K22: 24085.17 | L22: 24946.23 | M22: 23778.74 | N22: 24912.77 | O22: 823940000
A23: 8 | B23: 2018-02-05 | C23: 25337.86914 | D23: 25520.5293 | E23: 23923.88086 | F23: 24345.75 | G23: 714450000 | H23: 24345.75 | I23: 1 | J23: 1 | K23: 25337.87 | L23: 25520.53 | M23: 23923.88 | N23: 24345.75 | O23: 714450000
A24: 9 | B24: 2018-02-02 | C24: 26061.78906 | D24: 26061.78906 | E24: 25490.66016 | F24: 25520.96094 | G24: 522880000 | H24: 25520.96094 | I24: 1 | J24: 1 | K24: 26061.79 | L24: 26061.79 | M24: 25490.66 | N24: 25520.96 | O24: 522880000
A25: 10 | B25: 2018-02-01 | C25: 26083.03906 | D25: 26306.69922 | E25: 26014.43945 | F25: 26186.71094 | G25: 410620000 | H25: 26186.71094 | I25: 1 | J25: 1 | K25: 26083.04 | L25: 26306.7 | M25: 26014.44 | N25: 26186.71 | O25: 410620000
A26: 11 | B26: 2018-01-31 | C26: 26268.16992 | D26: 26338.0293 | E26: 26050.98047 | F26: 26149.39062 | G26: 479130000 | H26: 26149.39062 | I26: 1 | J26: 1 | K26: 26268.17 | L26: 26338.03 | M26: 26050.98 | N26: 26149.39 | O26: 479130000
A27: 12 | B27: 2018-01-30 | C27: 26198.44922 | D27: 26256.99023 | E27: 26028.41992 | F27: 26076.89062 | G27: 448330000 | H27: 26076.89062 | I27: 1 | J27: 1 | K27: 26198.45 | L27: 26256.99 | M27: 26028.42 | N27: 26076.89 | O27: 448330000
A28: 13 | B28: 2018-01-29 | C28: 26584.2793 | D28: 26608.90039 | E28: 26435.33984 | F28: 26439.48047 | G28: 421000000 | H28: 26439.48047 | I28: 1 | J28: 1 | K28: 26584.28 | L28: 26608.9 | M28: 26435.34 | N28: 26439.48 | O28: 421000000
A29: 14 | B29: 2018-01-26 | C29: 26466.74023 | D29: 26616.71094 | E29: 26425.34961 | F29: 26616.71094 | G29: 477780000 | H29: 26616.71094 | I29: 1 | J29: 1 | K29: 26466.74 | L29: 26616.71 | M29: 26425.35 | N29: 26616.71 | O29: 477780000
A30: 15 | B30: 2018-01-25 | C30: 26313.06055 | D30: 26458.25 | E30: 26259.7207 | F30: 26392.78906 | G30: 401390000 | H30: 26392.78906 | I30: 1 | J30: 1 | K30: 26313.06 | L30: 26458.25 | M30: 26259.72 | N30: 26392.79 | O30: 401390000
A31: 16 | B31: 2018-01-24 | C31: 26282.07031 | D31: 26392.80078 | E31: 26106.93945 | F31: 26252.11914 | G31: 518790000 | H31: 26252.11914 | I31: 1 | J31: 1 | K31: 26282.07 | L31: 26392.8 | M31: 26106.94 | N31: 26252.12 | O31: 518790000
A32: 17 | B32: 2018-01-23 | C32: 26214.86914 | D32: 26246.18945 | E32: 26143.90039 | F32: 26210.81055 | G32: 433490000 | H32: 26210.81055 | I32: 1 | J32: 1 | K32: 26214.87 | L32: 26246.19 | M32: 26143.9 | N32: 26210.81 | O32: 433490000
A33: 18 | B33: 2018-01-22 | C33: 26025.32031 | D33: 26215.23047 | E33: 25974.65039 | F33: 26214.59961 | G33: 431200000 | H33: 26214.59961 | I33: 1 | J33: 1 | K33: 26025.32 | L33: 26215.23 | M33: 25974.65 | N33: 26214.6 | O33: 431200000
A34: 19 | B34: 2018-01-19 | C34: 25987.34961 | D34: 26071.7207 | E34: 25942.83008 | F34: 26071.7207 | G34: 585000000 | H34: 26071.7207 | I34: 1 | J34: 1 | K34: 25987.35 | L34: 26071.72 | M34: 25942.83 | N34: 26071.72 | O34: 585000000
A35: 20 | B35: 2018-01-18 | C35: 26149.55078 | D35: 26153.41992 | E35: 25947.32031 | F35: 26017.81055 | G35: 492780000 | H35: 26017.81055 | I35: 1 | J35: 1 | K35: 26149.55 | L35: 26153.42 | M35: 25947.32 | N35: 26017.81 | O35: 492780000
A36: 21 | B36: 2018-01-17 | C36: 25910.7793 | D36: 26130.44922 | E36: 25865.01953 | F36: 26115.65039 | G36: 522720000 | H36: 26115.65039 | I36: 1 | J36: 1 | K36: 25910.78 | L36: 26130.45 | M36: 25865.02 | N36: 26115.65 | O36: 522720000
A37: 22 | B37: 2018-01-16 | C37: 25987.61914 | D37: 26086.11914 | E37: 25702.99023 | F37: 25792.85938 | G37: 606520000 | H37: 25792.85938 | I37: 1 | J37: 1 | K37: 25987.62 | L37: 26086.12 | M37: 25702.99 | N37: 25792.86 | O37: 606520000
A38: 23 | B38: 2018-01-12 | C38: 25638.39062 | D38: 25810.42969 | E38: 25633.08008 | F38: 25803.18945 | G38: 376390000 | H38: 25803.18945 | I38: 1 | J38: 1 | K38: 25638.39 | L38: 25810.43 | M38: 25633.08 | N38: 25803.19 | O38: 376390000
A39: 24 | B39: 2018-01-11 | C39: 25398.59961 | D39: 25575.41992 | E39: 25396.18945 | F39: 25574.73047 | G39: 346830000 | H39: 25574.73047 | I39: 1 | J39: 1 | K39: 25398.6 | L39: 25575.42 | M39: 25396.19 | N39: 25574.73 | O39: 346830000
A40: 25 | B40: 2018-01-10 | C40: 25348.13086 | D40: 25404.91992 | E40: 25256.99023 | F40: 25369.13086 | G40: 341470000 | H40: 25369.13086 | I40: 1 | J40: 1 | K40: 25348.13 | L40: 25404.92 | M40: 25256.99 | N40: 25369.13 | O40: 341470000
A41: 26 | B41: 2018-01-09 | C41: 25312.05078 | D41: 25439.7793 | E41: 25308.41016 | F41: 25385.80078 | G41: 333490000 | H41: 25385.80078 | I41: 1 | J41: 1 | K41: 25312.05 | L41: 25439.78 | M41: 25308.41 | N41: 25385.8 | O41: 333490000
A42: 27 | B42: 2018-01-08 | C42: 25308.40039 | D42: 25311.99023 | E42: 25235.41016 | F42: 25283 | G42: 341390000 | H42: 25283 | I42: 1 | J42: 1 | K42: 25308.4 | L42: 25311.99 | M42: 25235.41 | N42: 25283 | O42: 341390000
A43: 28 | B43: 2018-01-05 | C43: 25114.91992 | D43: 25299.78906 | E43: 25112.00977 | F43: 25295.86914 | G43: 358020000 | H43: 25295.86914 | I43: 1 | J43: 1 | K43: 25114.92 | L43: 25299.79 | M43: 25112.01 | N43: 25295.87 | O43: 358020000
A44: 29 | B44: 2018-01-04 | C44: 24964.85938 | D44: 25105.96094 | E44: 24963.26953 | F44: 25075.13086 | G44: 403280000 | H44: 25075.13086 | I44: 1 | J44: 1 | K44: 24964.86 | L44: 25105.96 | M44: 24963.27 | N44: 25075.13 | O44: 403280000
A45: 30 | B45: 2018-01-03 | C45: 24850.44922 | D45: 24941.91992 | E45: 24825.55078 | F45: 24922.67969 | G45: 456790000 | H45: 24922.67969 | I45: 1 | J45: 1 | K45: 24850.45 | L45: 24941.92 | M45: 24825.55 | N45: 24922.68 | O45: 456790000
A46: 31 | B46: 2018-01-02 | C46: 24809.34961 | D46: 24864.18945 | E46: 24741.69922 | F46: 24824.00977 | G46: 341130000 | H46: 24824.00977 | I46: 1 | J46: 1 | K46: 24809.35 | L46: 24864.19 | M46: 24741.7 | N46: 24824.01 | O46: 341130000
A47: 32 | B47: 2017-12-29 | C47: 24849.63086 | D47: 24871.66016 | E47: 24719.2207 | F47: 24719.2207 | G47: 270760000 | H47: 24719.2207 | I47: 1 | J47: 1 | K47: 24849.63 | L47: 24871.66 | M47: 24719.22 | N47: 24719.22 | O47: 270760000
A48: 33 | B48: 2017-12-28 | C48: 24807.21094 | D48: 24839.23047 | E48: 24797.13086 | F48: 24837.50977 | G48: 200960000 | H48: 24837.50977 | I48: 1 | J48: 1 | K48: 24807.21 | L48: 24839.23 | M48: 24797.13 | N48: 24837.51 | O48: 200960000
A49: 34 | B49: 2017-12-27 | C49: 24766.51953 | D49: 24789.51953 | E49: 24731.67969 | F49: 24774.30078 | G49: 225890000 | H49: 24774.30078 | I49: 1 | J49: 1 | K49: 24766.52 | L49: 24789.52 | M49: 24731.68 | N49: 24774.3 | O49: 225890000
A50: 35 | B50: 2017-12-26 | C50: 24715.83984 | D50: 24778.13086 | E50: 24708.41992 | F50: 24746.21094 | G50: 208290000 | H50: 24746.21094 | I50: 1 | J50: 1 | K50: 24715.84 | L50: 24778.13 | M50: 24708.42 | N50: 24746.21 | O50: 208290000
A51: 36 | B51: 2017-12-22 | C51: 24764.03906 | D51: 24784.15039 | E51: 24717.50977 | F51: 24754.06055 | G51: 255140000 | H51: 24754.06055 | I51: 1 | J51: 1 | K51: 24764.04 | L51: 24784.15 | M51: 24717.51 | N51: 24754.06 | O51: 255140000
A52: 37 | B52: 2017-12-21 | C52: 24778.25977 | D52: 24850.91016 | E52: 24766.26953 | F52: 24782.28906 | G52: 339530000 | H52: 24782.28906 | I52: 1 | J52: 1 | K52: 24778.26 | L52: 24850.91 | M52: 24766.27 | N52: 24782.29 | O52: 339530000
A53: 38 | B53: 2017-12-20 | C53: 24838.08984 | D53: 24852.43945 | E53: 24697.10938 | F53: 24726.65039 | G53: 341790000 | H53: 24726.65039 | I53: 1 | J53: 1 | K53: 24838.09 | L53: 24852.44 | M53: 24697.11 | N53: 24726.65 | O53: 341790000
A54: 39 | B54: 2017-12-19 | C54: 24834.38086 | D54: 24850.10938 | E54: 24715.59961 | F54: 24754.75 | G54: 335330000 | H54: 24754.75 | I54: 1 | J54: 1 | K54: 24834.38 | L54: 24850.11 | M54: 24715.6 | N54: 24754.75 | O54: 335330000
A55: 40 | B55: 2017-12-18 | C55: 24739.56055 | D55: 24876.07031 | E55: 24739.56055 | F55: 24792.19922 | G55: 354880000 | H55: 24792.19922 | I55: 1 | J55: 1 | K55: 24739.56 | L55: 24876.07 | M55: 24739.56 | N55: 24792.2 | O55: 354880000
A56: 41 | B56: 2017-12-15 | C56: 24585.71094 | D56: 24688.61914 | E56: 24584.43945 | F56: 24651.74023 | G56: 635740000 | H56: 24651.74023 | I56: 1 | J56: 1 | K56: 24585.71 | L56: 24688.62 | M56: 24584.44 | N56: 24651.74 | O56: 635740000
A57: 42 | B57: 2017-12-14 | C57: 24631.00977 | D57: 24672.48047 | E57: 24508.66016 | F57: 24508.66016 | G57: 314780000 | H57: 24508.66016 | I57: 1 | J57: 1 | K57: 24631.01 | L57: 24672.48 | M57: 24508.66 | N57: 24508.66 | O57: 314780000
A58: 43 | B58: 2017-12-13 | C58: 24525.18945 | D58: 24666.01953 | E58: 24518.30078 | F58: 24585.42969 | G58: 325280000 | H58: 24585.42969 | I58: 1 | J58: 1 | K58: 24525.19 | L58: 24666.02 | M58: 24518.3 | N58: 24585.43 | O58: 325280000
A59: 44 | B59: 2017-12-12 | C59: 24452.96094 | D59: 24552.9707 | E59: 24443.83008 | F59: 24504.80078 | G59: 342220000 | H59: 24504.80078 | I59: 1 | J59: 1 | K59: 24452.96 | L59: 24552.97 | M59: 24443.83 | N59: 24504.8 | O59: 342220000
A60: 45 | B60: 2017-12-11 | C60: 24338.10938 | D60: 24389.7207 | E60: 24314.74023 | F60: 24386.0293 | G60: 300580000 | H60: 24386.0293 | I60: 1 | J60: 1 | K60: 24338.11 | L60: 24389.72 | M60: 24314.74 | N60: 24386.03 | O60: 300580000
A61: 46 | B61: 2017-12-08 | C61: 24263.25977 | D61: 24330.11914 | E61: 24225.5 | F61: 24329.16016 | G61: 293590000 | H61: 24329.16016 | I61: 1 | J61: 1 | K61: 24263.26 | L61: 24330.12 | M61: 24225.5 | N61: 24329.16 | O61: 293590000
A62: 47 | B62: 2017-12-07 | C62: 24116.59961 | D62: 24262.88086 | E62: 24101.24023 | F62: 24211.48047 | G62: 319060000 | H62: 24211.48047 | I62: 1 | J62: 1 | K62: 24116.6 | L62: 24262.88 | M62: 24101.24 | N62: 24211.48 | O62: 319060000
A63: 48 | B63: 2017-12-06 | C63: 24171.90039 | D63: 24229.34961 | E63: 24134.49023 | F63: 24140.91016 | G63: 312720000 | H63: 24140.91016 | I63: 1 | J63: 1 | K63: 24171.9 | L63: 24229.35 | M63: 24134.49 | N63: 24140.91 | O63: 312720000
A64: 49 | B64: 2017-12-05 | C64: 24335.00977 | D64: 24349.74023 | E64: 24155.2793 | F64: 24180.64062 | G64: 371190000 | H64: 24180.64062 | I64: 1 | J64: 1 | K64: 24335.01 | L64: 24349.74 | M64: 24155.28 | N64: 24180.64 | O64: 371190000
A65: 50 | B65: 2017-12-04 | C65: 24424.10938 | D65: 24534.03906 | E65: 24288.18945 | F65: 24290.05078 | G65: 424250000 | H65: 24290.05078 | I65: 1 | J65: 1 | K65: 24424.11 | L65: 24534.04 | M65: 24288.19 | N65: 24290.05 | O65: 424250000
A66: 51 | B66: 2017-12-01 | C66: 24305.40039 | D66: 24322.06055 | E66: 23921.90039 | F66: 24231.58984 | G66: 417910000 | H66: 24231.58984 | I66: 1 | J66: 1 | K66: 24305.4 | L66: 24322.06 | M66: 23921.9 | N66: 24231.59 | O66: 417910000
A67: 52 | B67: 2017-11-30 | C67: 24013.80078 | D67: 24327.82031 | E67: 24013.80078 | F67: 24272.34961 | G67: 488200000 | H67: 24272.34961 | I67: 1 | J67: 1 | K67: 24013.8 | L67: 24327.82 | M67: 24013.8 | N67: 24272.35 | O67: 488200000
A68: 53 | B68: 2017-11-29 | C68: 23883.25977 | D68: 23959.75977 | E68: 23872.58984 | F68: 23940.67969 | G68: 401410000 | H68: 23940.67969 | I68: 1 | J68: 1 | K68: 23883.26 | L68: 23959.76 | M68: 23872.59 | N68: 23940.68 | O68: 401410000
A69: 54 | B69: 2017-11-28 | C69: 23625.18945 | D69: 23849.60938 | E69: 23617.10938 | F69: 23836.71094 | G69: 319240000 | H69: 23836.71094 | I69: 1 | J69: 1 | K69: 23625.19 | L69: 23849.61 | M69: 23617.11 | N69: 23836.71 | O69: 319240000
A70: 55 | B70: 2017-11-27 | C70: 23552.85938 | D70: 23638.91992 | E70: 23545.01953 | F70: 23580.7793 | G70: 296320000 | H70: 23580.7793 | I70: 1 | J70: 1 | K70: 23552.86 | L70: 23638.92 | M70: 23545.02 | N70: 23580.78 | O70: 296320000
A71: 56 | B71: 2017-11-24 | C71: 23552.75 | D71: 23599.17969 | E71: 23551.58984 | F71: 23557.99023 | G71: 118610000 | H71: 23557.99023 | I71: 1 | J71: 1 | K71: 23552.75 | L71: 23599.18 | M71: 23551.59 | N71: 23557.99 | O71: 118610000
A72: 57 | B72: 2017-11-22 | C72: 23597.24023 | D72: 23605.76953 | E72: 23507.60938 | F72: 23526.17969 | G72: 268760000 | H72: 23526.17969 | I72: 1 | J72: 1 | K72: 23597.24 | L72: 23605.77 | M72: 23507.61 | N72: 23526.18 | O72: 268760000
A73: 58 | B73: 2017-11-21 | C73: 23500.15039 | D73: 23617.80078 | E73: 23500.15039 | F73: 23590.83008 | G73: 329650000 | H73: 23590.83008 | I73: 1 | J73: 1 | K73: 23500.15 | L73: 23617.8 | M73: 23500.15 | N73: 23590.83 | O73: 329650000
A74: 59 | B74: 2017-11-20 | C74: 23370.71094 | D74: 23456.88086 | E74: 23360.58008 | F74: 23430.33008 | G74: 315330000 | H74: 23430.33008 | I74: 1 | J74: 1 | K74: 23370.71 | L74: 23456.88 | M74: 23360.58 | N74: 23430.33 | O74: 315330000
A75: 60 | B75: 2017-11-17 | C75: 23433.76953 | D75: 23433.76953 | E75: 23356.00977 | F75: 23358.24023 | G75: 386000000 | H75: 23358.24023 | I75: 1 | J75: 1 | K75: 23433.77 | L75: 23433.77 | M75: 23356.01 | N75: 23358.24 | O75: 386000000
A76: 61 | B76: 2017-11-16 | C76: 23365.33984 | D76: 23492.18945 | E76: 23365.33984 | F76: 23458.35938 | G76: 402020000 | H76: 23458.35938 | I76: 1 | J76: 1 | K76: 23365.34 | L76: 23492.19 | M76: 23365.34 | N76: 23458.36 | O76: 402020000
A77: 62 | B77: 2017-11-15 | C77: 23334.58984 | D77: 23344.99023 | E77: 23242.75 | F77: 23271.2793 | G77: 404300000 | H77: 23271.2793 | I77: 1 | J77: 1 | K77: 23334.59 | L77: 23344.99 | M77: 23242.75 | N77: 23271.28 | O77: 404300000
A78: 63 | B78: 2017-11-14 | C78: 23388.40039 | D78: 23414.08008 | E78: 23271.57031 | F78: 23409.4707 | G78: 561330000 | H78: 23409.4707 | I78: 1 | J78: 1 | K78: 23388.4 | L78: 23414.08 | M78: 23271.57 | N78: 23409.47 | O78: 561330000
A79: 64 | B79: 2017-11-13 | C79: 23367.4707 | D79: 23461.67969 | E79: 23343.33984 | F79: 23439.69922 | G79: 491260000 | H79: 23439.69922 | I79: 1 | J79: 1 | K79: 23367.47 | L79: 23461.68 | M79: 23343.34 | N79: 23439.7 | O79: 491260000
A80: 65 | B80: 2017-11-10 | C80: 23432.71094 | D80: 23452.19922 | E80: 23392.96094 | F80: 23422.21094 | G80: 351280000 | H80: 23422.21094 | I80: 1 | J80: 1 | K80: 23432.71 | L80: 23452.2 | M80: 23392.96 | N80: 23422.21 | O80: 351280000
A81: 66 | B81: 2017-11-09 | C81: 23492.08984 | D81: 23516.74023 | E81: 23310.01953 | F81: 23461.93945 | G81: 305440000 | H81: 23461.93945 | I81: =IF(F81=0,1,H81/F81) -> 1 | J81: =INDEX(OFFSET($T$15,0,0,$S$13+1,1),MATCH(B81,OFFSET($Q$15,0,0,$S$13+1,1),-1)) -> 1 | K81: =ROUND($I81*C81,2) -> 23492.09 | L81: =ROUND($I81*D81,2) -> 23516.74 | M81: =ROUND($I81*E81,2) -> 23310.02 | N81: =ROUND($I81*F81,2) -> 23461.94 | O81: =G81*J81 -> 305440000
A82: 67 | B82: 2017-11-08 | C82: 23542.59961 | D82: 23575 | E82: 23510.56055 | F82: 23563.35938 | G82: 264670000 | H82: 23563.35938 | I82: 1 | J82: 1 | K82: 23542.6 | L82: 23575 | M82: 23510.56 | N82: 23563.36 | O82: 264670000
A83: 68 | B83: 2017-11-07 | C83: 23574.0293 | D83: 23602.11914 | E83: 23484.18945 | F83: 23557.23047 | G83: 285080000 | H83: 23557.23047 | I83: 1 | J83: 1 | K83: 23574.03 | L83: 23602.12 | M83: 23484.19 | N83: 23557.23 | O83: 285080000
A84: 69 | B84: 2017-11-06 | C84: 23533.96094 | D84: 23574.85938 | E84: 23520.75 | F84: 23548.41992 | G84: 325190000 | H84: 23548.41992 | I84: 1 | J84: 1 | K84: 23533.96 | L84: 23574.86 | M84: 23520.75 | N84: 23548.42 | O84: 325190000
A85: 70 | B85: 2017-11-03 | C85: 23549.58984 | D85: 23557.06055 | E85: 23481.57031 | F85: 23539.18945 | G85: 312250000 | H85: 23539.18945 | I85: 1 | J85: 1 | K85: 23549.59 | L85: 23557.06 | M85: 23481.57 | N85: 23539.19 | O85: 312250000
A86: 71 | B86: 2017-11-02 | C86: 23463.24023 | D86: 23531.38086 | E86: 23350.98047 | F86: 23516.25977 | G86: 348040000 | H86: 23516.25977 | I86: 1 | J86: 1 | K86: 23463.24 | L86: 23531.38 | M86: 23350.98 | N86: 23516.26 | O86: 348040000
A87: 72 | B87: 2017-11-01 | C87: 23442.90039 | D87: 23517.71094 | E87: 23388.91016 | F87: 23435.00977 | G87: 361260000 | H87: 23435.00977 | I87: 1 | J87: 1 | K87: 23442.9 | L87: 23517.71 | M87: 23388.91 | N87: 23435.01 | O87: 361260000
A88: 73 | B88: 2017-10-31 | C88: 23369.2207 | D88: 23406.34961 | E88: 23334.39062 | F88: 23377.24023 | G88: 388050000 | H88: 23377.24023 | I88: 1 | J88: 1 | K88: 23369.22 | L88: 23406.35 | M88: 23334.39 | N88: 23377.24 | O88: 388050000
A89: 74 | B89: 2017-10-30 | C89: 23405.75 | D89: 23428.75 | E89: 23327.86914 | F89: 23348.74023 | G89: 436900000 | H89: 23348.74023 | I89: 1 | J89: 1 | K89: 23405.75 | L89: 23428.75 | M89: 23327.87 | N89: 23348.74 | O89: 436900000
A90: 75 | B90: 2017-10-27 | C90: 23419.16016 | D90: 23449.40039 | E90: 23353.16016 | F90: 23434.18945 | G90: 518870000 | H90: 23434.18945 | I90: 1 | J90: 1 | K90: 23419.16 | L90: 23449.4 | M90: 23353.16 | N90: 23434.19 | O90: 518870000
A91: 76 | B91: 2017-10-26 | C91: 23380.89062 | D91: 23459.83984 | E91: 23380.89062 | F91: 23400.85938 | G91: 370600000 | H91: 23400.85938 | I91: 1 | J91: 1 | K91: 23380.89 | L91: 23459.84 | M91: 23380.89 | N91: 23400.86 | O91: 370600000
A92: 77 | B92: 2017-10-25 | C92: 23431.08984 | D92: 23451.50977 | E92: 23251.10938 | F92: 23329.46094 | G92: 399560000 | H92: 23329.46094 | I92: 1 | J92: 1 | K92: 23431.09 | L92: 23451.51 | M92: 23251.11 | N92: 23329.46 | O92: 399560000
A93: 78 | B93: 2017-10-24 | C93: 23346.7793 | D93: 23485.25 | E93: 23343.23047 | F93: 23441.75977 | G93: 406850000 | H93: 23441.75977 | I93: 1 | J93: 1 | K93: 23346.78 | L93: 23485.25 | M93: 23343.23 | N93: 23441.76 | O93: 406850000
A94: 79 | B94: 2017-10-23 | C94: 23348.94922 | D94: 23368.36914 | E94: 23273.96094 | F94: 23273.96094 | G94: 456830000 | H94: 23273.96094 | I94: 1 | J94: 1 | K94: 23348.95 | L94: 23368.37 | M94: 23273.96 | N94: 23273.96 | O94: 456830000
A95: 80 | B95: 2017-10-20 | C95: 23205.17969 | D95: 23328.83984 | E95: 23201.7793 | F95: 23328.63086 | G95: 474380000 | H95: 23328.63086 | I95: 1 | J95: 1 | K95: 23205.18 | L95: 23328.84 | M95: 23201.78 | N95: 23328.63 | O95: 474380000
A96: 81 | B96: 2017-10-19 | C96: 23107.4707 | D96: 23167.24023 | E96: 23052.66992 | F96: 23163.03906 | G96: 350400000 | H96: 23163.03906 | I96: 1 | J96: 1 | K96: 23107.47 | L96: 23167.24 | M96: 23052.67 | N96: 23163.04 | O96: 350400000
A97: 82 | B97: 2017-10-18 | C97: 23087.13086 | D97: 23172.92969 | E97: 23086.75 | F97: 23157.59961 | G97: 271870000 | H97: 23157.59961 | I97: 1 | J97: 1 | K97: 23087.13 | L97: 23172.93 | M97: 23086.75 | N97: 23157.6 | O97: 271870000
A98: 83 | B98: 2017-10-17 | C98: 22952.41016 | D98: 23002.19922 | E98: 22948.23047 | F98: 22997.43945 | G98: 273090000 | H98: 22997.43945 | I98: 1 | J98: 1 | K98: 22952.41 | L98: 23002.2 | M98: 22948.23 | N98: 22997.44 | O98: 273090000
A99: 84 | B99: 2017-10-16 | C99: 22892.91992 | D99: 22960.11914 | E99: 22887.11914 | F99: 22956.96094 | G99: 247180000 | H99: 22956.96094 | I99: 1 | J99: 1 | K99: 22892.92 | L99: 22960.12 | M99: 22887.12 | N99: 22956.96 | O99: 247180000
A100: 85 | B100: 2017-10-13 | C100: 22876.42969 | D100: 22905.33008 | E100: 22855.92969 | F100: 22871.7207 | G100: 259560000 | H100: 22871.7207 | I100: 1 | J100: 1 | K100: 22876.43 | L100: 22905.33 | M100: 22855.93 | N100: 22871.72 | O100: 259560000
A101: 86 | B101: 2017-10-12 | C101: 22854.84961 | D101: 22884.82031 | E101: 22821.13086 | F101: 22841.00977 | G101: 291790000 | H101: 22841.00977 | I101: 1 | J101: 1 | K101: 22854.85 | L101: 22884.82 | M101: 22821.13 | N101: 22841.01 | O101: 291790000
A102: 87 | B102: 2017-10-11 | C102: 22827.65039 | D102: 22872.89062 | E102: 22821.66016 | F102: 22872.89062 | G102: 316000000 | H102: 22872.89062 | I102: 1 | J102: 1 | K102: 22827.65 | L102: 22872.89 | M102: 22821.66 | N102: 22872.89 | O102: 316000000
A103: 88 | B103: 2017-10-10 | C103: 22784.75977 | D103: 22850.50977 | E103: 22770.99023 | F103: 22830.67969 | G103: 319270000 | H103: 22830.67969 | I103: 1 | J103: 1 | K103: 22784.76 | L103: 22850.51 | M103: 22770.99 | N103: 22830.68 | O103: 319270000
A104: 89 | B104: 2017-10-09 | C104: 22779.73047 | D104: 22803.36914 | E104: 22739.38086 | F104: 22761.07031 | G104: 310770000 | H104: 22761.07031 | I104: 1 | J104: 1 | K104: 22779.73 | L104: 22803.37 | M104: 22739.38 | N104: 22761.07 | O104: 310770000
A105: 90 | B105: 2017-10-06 | C105: 22762.0293 | D105: 22773.66992 | E105: 22730.84961 | F105: 22773.66992 | G105: 221450000 | H105: 22773.66992 | I105: 1 | J105: 1 | K105: 22762.03 | L105: 22773.67 | M105: 22730.85 | N105: 22773.67 | O105: 221450000
A106: 91 | B106: 2017-10-05 | C106: 22669.08008 | D106: 22777.03906 | E106: 22655.14062 | F106: 22775.39062 | G106: 246400000 | H106: 22775.39062 | I106: 1 | J106: 1 | K106: 22669.08 | L106: 22777.04 | M106: 22655.14 | N106: 22775.39 | O106: 246400000
A107: 92 | B107: 2017-10-04 | C107: 22645.66992 | D107: 22685.93945 | E107: 22632.80078 | F107: 22661.64062 | G107: 235730000 | H107: 22661.64062 | I107: 1 | J107: 1 | K107: 22645.67 | L107: 22685.94 | M107: 22632.8 | N107: 22661.64 | O107: 235730000
A108: 93 | B108: 2017-10-03 | C108: 22564.44922 | D108: 22646.32031 | E108: 22562.90039 | F108: 22641.66992 | G108: 238830000 | H108: 22641.66992 | I108: 1 | J108: 1 | K108: 22564.45 | L108: 22646.32 | M108: 22562.9 | N108: 22641.67 | O108: 238830000
A109: 94 | B109: 2017-10-02 | C109: 22423.4707 | D109: 22559.38086 | E109: 22416 | F109: 22557.59961 | G109: 268530000 | H109: 22557.59961 | I109: 1 | J109: 1 | K109: 22423.47 | L109: 22559.38 | M109: 22416 | N109: 22557.6 | O109: 268530000
A110: 95 | B110: 2017-09-29 | C110: 22358.4707 | D110: 22405.63086 | E110: 22332.96094 | F110: 22405.08984 | G110: 274790000 | H110: 22405.08984 | I110: 1 | J110: 1 | K110: 22358.47 | L110: 22405.63 | M110: 22332.96 | N110: 22405.09 | O110: 274790000
A111: 96 | B111: 2017-09-28 | C111: 22306.83008 | D111: 22394.74023 | E111: 22288.9707 | F111: 22381.19922 | G111: 263010000 | H111: 22381.19922 | I111: 1 | J111: 1 | K111: 22306.83 | L111: 22394.74 | M111: 22288.97 | N111: 22381.2 | O111: 263010000
A112: 97 | B112: 2017-09-27 | C112: 22330.92969 | D112: 22371.09961 | E112: 22254.92969 | F112: 22340.71094 | G112: 342900000 | H112: 22340.71094 | I112: 1 | J112: 1 | K112: 22330.93 | L112: 22371.1 | M112: 22254.93 | N112: 22340.71 | O112: 342900000
A113: 98 | B113: 2017-09-26 | C113: 22322.0293 | D113: 22369.34961 | E113: 22279.51953 | F113: 22284.32031 | G113: 285990000 | H113: 22284.32031 | I113: 1 | J113: 1 | K113: 22322.03 | L113: 22369.35 | M113: 22279.52 | N113: 22284.32 | O113: 285990000
A114: 99 | B114: 2017-09-25 | C114: 22320.4707 | D114: 22359.88086 | E114: 22219.10938 | F114: 22296.08984 | G114: 332430000 | H114: 22296.08984 | I114: 1 | J114: 1 | K114: 22320.47 | L114: 22359.88 | M114: 22219.11 | N114: 22296.09 | O114: 332430000
A115: 100 | B115: 2017-09-22 | C115: 22334.07031 | D115: 22364.31055 | E115: 22299.58008 | F115: 22349.58984 | G115: 297140000 | H115: 22349.58984 | I115: 1 | J115: 1 | K115: 22334.07 | L115: 22364.31 | M115: 22299.58 | N115: 22349.59 | O115: 297140000
A116: 101 | B116: 2017-09-21 | C116: 22414.01953 | D116: 22419.50977 | E116: 22356.55078 | F116: 22359.23047 | G116: 287390000 | H116: 22359.23047 | I116: 1 | J116: 1 | K116: 22414.02 | L116: 22419.51 | M116: 22356.55 | N116: 22359.23 | O116: 287390000
A117: 102 | B117: 2017-09-20 | C117: 22351.38086 | D117: 22413.25977 | E117: 22314.67969 | F117: 22412.58984 | G117: 334560000 | H117: 22412.58984 | I117: 1 | J117: 1 | K117: 22351.38 | L117: 22413.26 | M117: 22314.68 | N117: 22412.59 | O117: 334560000
A118: 103 | B118: 2017-09-19 | C118: 22349.69922 | D118: 22386.00977 | E118: 22340.71094 | F118: 22370.80078 | G118: 295570000 | H118: 22370.80078 | I118: 1 | J118: 1 | K118: 22349.7 | L118: 22386.01 | M118: 22340.71 | N118: 22370.8 | O118: 295570000
A119: 104 | B119: 2017-09-18 | C119: 22297.91992 | D119: 22355.61914 | E119: 22283.34961 | F119: 22331.34961 | G119: 302740000 | H119: 22331.34961 | I119: 1 | J119: 1 | K119: 22297.92 | L119: 22355.62 | M119: 22283.35 | N119: 22331.35 | O119: 302740000
A120: 105 | B120: 2017-09-15 | C120: 22252.43945 | D120: 22275.01953 | E120: 22214.51953 | F120: 22268.33984 | G120: 527540000 | H120: 22268.33984 | I120: 1 | J120: 1 | K120: 22252.44 | L120: 22275.02 | M120: 22214.52 | N120: 22268.34 | O120: 527540000
A121: 106 | B121: 2017-09-14 | C121: 22144.96094 | D121: 22216.43945 | E121: 22135.25977 | F121: 22203.48047 | G121: 297780000 | H121: 22203.48047 | I121: 1 | J121: 1 | K121: 22144.96 | L121: 22216.44 | M121: 22135.26 | N121: 22203.48 | O121: 297780000
A122: 107 | B122: 2017-09-13 | C122: 22103.4707 | D122: 22158.17969 | E122: 22095.78906 | F122: 22158.17969 | G122: 291890000 | H122: 22158.17969 | I122: 1 | J122: 1 | K122: 22103.47 | L122: 22158.18 | M122: 22095.79 | N122: 22158.18 | O122: 291890000
A123: 108 | B123: 2017-09-12 | C123: 22090.56055 | D123: 22134.57031 | E123: 22087.08984 | F123: 22118.85938 | G123: 364580000 | H123: 22118.85938 | I123: 1 | J123: 1 | K123: 22090.56 | L123: 22134.57 | M123: 22087.09 | N123: 22118.86 | O123: 364580000
A124: 109 | B124: 2017-09-11 | C124: 21927.78906 | D124: 22067.09961 | E124: 21927.78906 | F124: 22057.36914 | G124: 312770000 | H124: 22057.36914 | I124: 1 | J124: 1 | K124: 21927.79 | L124: 22067.1 | M124: 21927.79 | N124: 22057.37 | O124: 312770000
A125: 110 | B125: 2017-09-08 | C125: 21764.42969 | D125: 21846.63086 | E125: 21731.11914 | F125: 21797.78906 | G125: 289400000 | H125: 21797.78906 | I125: 1 | J125: 1 | K125: 21764.43 | L125: 21846.63 | M125: 21731.12 | N125: 21797.79 | O125: 289400000
A126: 111 | B126: 2017-09-07 | C126: 21820.38086 | D126: 21850.00977 | E126: 21745.71094 | F126: 21784.7793 | G126: 333810000 | H126: 21784.7793 | I126: 1 | J126: 1 | K126: 21820.38 | L126: 21850.01 | M126: 21745.71 | N126: 21784.78 | O126: 333810000
A127: 112 | B127: 2017-09-06 | C127: 21815.75977 | D127: 21849.24023 | E127: 21794.07031 | F127: 21807.64062 | G127: 318760000 | H127: 21807.64062 | I127: 1 | J127: 1 | K127: 21815.76 | L127: 21849.24 | M127: 21794.07 | N127: 21807.64 | O127: 318760000
A128: 113 | B128: 2017-09-05 | C128: 21912.36914 | D128: 21921.08984 | E128: 21709.63086 | F128: 21753.31055 | G128: 332840000 | H128: 21753.31055 | I128: 1 | J128: 1 | K128: 21912.37 | L128: 21921.09 | M128: 21709.63 | N128: 21753.31 | O128: 332840000
A129: 114 | B129: 2017-09-01 | C129: 21981.76953 | D129: 22038.9707 | E129: 21974.91016 | F129: 21987.56055 | G129: 256240000 | H129: 21987.56055 | I129: 1 | J129: 1 | K129: 21981.77 | L129: 22038.97 | M129: 21974.91 | N129: 21987.56 | O129: 256240000
A130: 115 | B130: 2017-08-31 | C130: 21936.00977 | D130: 21985.75977 | E130: 21910.5 | F130: 21948.09961 | G130: 376790000 | H130: 21948.09961 | I130: 1 | J130: 1 | K130: 21936.01 | L130: 21985.76 | M130: 21910.5 | N130: 21948.1 | O130: 376790000
A131: 116 | B131: 2017-08-30 | C131: 21859.75977 | D131: 21914.25977 | E131: 21839.4707 | F131: 21892.42969 | G131: 242840000 | H131: 21892.42969 | I131: 1 | J131: 1 | K131: 21859.76 | L131: 21914.26 | M131: 21839.47 | N131: 21892.43 | O131: 242840000
A132: 117 | B132: 2017-08-29 | C132: 21718 | D132: 21879.2207 | E132: 21673.58008 | F132: 21865.36914 | G132: 227340000 | H132: 21865.36914 | I132: 1 | J132: 1 | K132: 21718 | L132: 21879.22 | M132: 21673.58 | N132: 21865.37 | O132: 227340000
A133: 118 | B133: 2017-08-28 | C133: 21832.5 | D133: 21861.49023 | E133: 21767.93945 | F133: 21808.40039 | G133: 218740000 | H133: 21808.40039 | I133: 1 | J133: 1 | K133: 21832.5 | L133: 21861.49 | M133: 21767.94 | N133: 21808.4 | O133: 218740000
A134: 119 | B134: 2017-08-25 | C134: 21819.08008 | D134: 21906.85938 | E134: 21812.81055 | F134: 21813.66992 | G134: 217570000 | H134: 21813.66992 | I134: 1 | J134: 1 | K134: 21819.08 | L134: 21906.86 | M134: 21812.81 | N134: 21813.67 | O134: 217570000
A135: 120 | B135: 2017-08-24 | C135: 21839.90039 | D135: 21870.10938 | E135: 21765.82031 | F135: 21783.40039 | G135: 228480000 | H135: 21783.40039 | I135: 1 | J135: 1 | K135: 21839.9 | L135: 21870.11 | M135: 21765.82 | N135: 21783.4 | O135: 228480000
A136: 121 | B136: 2017-08-23 | C136: 21850.26953 | D136: 21866.66016 | E136: 21808.39062 | F136: 21812.08984 | G136: 234810000 | H136: 21812.08984 | I136: 1 | J136: 1 | K136: 21850.27 | L136: 21866.66 | M136: 21808.39 | N136: 21812.09 | O136: 234810000
A137: 122 | B137: 2017-08-22 | C137: 21739.7793 | D137: 21912.83008 | E137: 21738.13086 | F137: 21899.89062 | G137: 244980000 | H137: 21899.89062 | I137: 1 | J137: 1 | K137: 21739.78 | L137: 21912.83 | M137: 21738.13 | N137: 21899.89 | O137: 244980000
A138: 123 | B138: 2017-08-21 | C138: 21671.35938 | D138: 21718.74023 | E138: 21600.33984 | F138: 21703.75 | G138: 277880000 | H138: 21703.75 | I138: 1 | J138: 1 | K138: 21671.36 | L138: 21718.74 | M138: 21600.34 | N138: 21703.75 | O138: 277880000
A139: 124 | B139: 2017-08-18 | C139: 21724.88086 | D139: 21793.34961 | E139: 21641.63086 | F139: 21674.50977 | G139: 309070000 | H139: 21674.50977 | I139: 1 | J139: 1 | K139: 21724.88 | L139: 21793.35 | M139: 21641.63 | N139: 21674.51 | O139: 309070000
A140: 125 | B140: 2017-08-17 | C140: 21984.74023 | D140: 21984.74023 | E140: 21750.32031 | F140: 21750.73047 | G140: 311030000 | H140: 21750.73047 | I140: 1 | J140: 1 | K140: 21984.74 | L140: 21984.74 | M140: 21750.32 | N140: 21750.73 | O140: 311030000
A141: 126 | B141: 2017-08-16 | C141: 22031.92969 | D141: 22085.71094 | E141: 22002.4707 | F141: 22024.86914 | G141: 264920000 | H141: 22024.86914 | I141: 1 | J141: 1 | K141: 22031.93 | L141: 22085.71 | M141: 22002.47 | N141: 22024.87 | O141: 264920000
A142: 127 | B142: 2017-08-15 | C142: 22029.91016 | D142: 22038.91992 | E142: 21971.48047 | F142: 21998.99023 | G142: 269070000 | H142: 21998.99023 | I142: 1 | J142: 1 | K142: 22029.91 | L142: 22038.92 | M142: 21971.48 | N142: 21998.99 | O142: 269070000
A143: 128 | B143: 2017-08-14 | C143: 21945.64062 | D143: 22019.23047 | E143: 21945.64062 | F143: 21993.71094 | G143: 235030000 | H143: 21993.71094 | I143: 1 | J143: 1 | K143: 21945.64 | L143: 22019.23 | M143: 21945.64 | N143: 21993.71 | O143: 235030000
A144: 129 | B144: 2017-08-11 | C144: 21883.32031 | D144: 21911.08984 | E144: 21842.74023 | F144: 21858.32031 | G144: 237790000 | H144: 21858.32031 | I144: 1 | J144: 1 | K144: 21883.32 | L144: 21911.09 | M144: 21842.74 | N144: 21858.32 | O144: 237790000
A145: 130 | B145: 2017-08-10 | C145: 21988.19922 | D145: 21988.19922 | E145: 21843.93945 | F145: 21844.00977 | G145: 303310000 | H145: 21844.00977 | I145: =IF(F145=0,1,H145/F145) -> 1 | J145: =INDEX(OFFSET($T$15,0,0,$S$13+1,1),MATCH(B145,OFFSET($Q$15,0,0,$S$13+1,1),-1)) -> 1 | K145: =ROUND($I145*C145,2) -> 21988.2 | L145: =ROUND($I145*D145,2) -> 21988.2 | M145: =ROUND($I145*E145,2) -> 21843.94 | N145: =ROUND($I145*F145,2) -> 21844.01 | O145: =G145*J145 -> 303310000
A146: 131 | B146: 2017-08-09 | C146: 22022.33984 | D146: 22057.18945 | E146: 21996.68945 | F146: 22048.69922 | G146: 277800000 | H146: 22048.69922 | I146: 1 | J146: 1 | K146: 22022.34 | L146: 22057.19 | M146: 21996.69 | N146: 22048.7 | O146: 277800000
A147: 132 | B147: 2017-08-08 | C147: 22095.14062 | D147: 22179.10938 | E147: 22057.28906 | F147: 22085.33984 | G147: 262000000 | H147: 22085.33984 | I147: 1 | J147: 1 | K147: 22095.14 | L147: 22179.11 | M147: 22057.29 | N147: 22085.34 | O147: 262000000
A148: 133 | B148: 2017-08-07 | C148: 22100.19922 | D148: 22121.15039 | E148: 22081.9707 | F148: 22118.41992 | G148: 213010000 | H148: 22118.41992 | I148: 1 | J148: 1 | K148: 22100.2 | L148: 22121.15 | M148: 22081.97 | N148: 22118.42 | O148: 213010000
A149: 134 | B149: 2017-08-04 | C149: 22058.39062 | D149: 22092.81055 | E149: 22024.64062 | F149: 22092.81055 | G149: 253640000 | H149: 22092.81055 | I149: 1 | J149: 1 | K149: 22058.39 | L149: 22092.81 | M149: 22024.64 | N149: 22092.81 | O149: 253640000
A150: 135 | B150: 2017-08-03 | C150: 22007.58008 | D150: 22044.84961 | E150: 21991.32031 | F150: 22026.09961 | G150: 278730000 | H150: 22026.09961 | I150: 1 | J150: 1 | K150: 22007.58 | L150: 22044.85 | M150: 21991.32 | N150: 22026.1 | O150: 278730000
A151: 136 | B151: 2017-08-02 | C151: 22004.35938 | D151: 22036.09961 | E151: 21967.46094 | F151: 22016.24023 | G151: 336820000 | H151: 22016.24023 | I151: 1 | J151: 1 | K151: 22004.36 | L151: 22036.1 | M151: 21967.46 | N151: 22016.24 | O151: 336820000
A152: 137 | B152: 2017-08-01 | C152: 21961.41992 | D152: 21990.96094 | E152: 21940.81055 | F152: 21963.91992 | G152: 328410000 | H152: 21963.91992 | I152: 1 | J152: 1 | K152: 21961.42 | L152: 21990.96 | M152: 21940.81 | N152: 21963.92 | O152: 328410000
A153: 138 | B153: 2017-07-31 | C153: 21863.39062 | D153: 21929.80078 | E153: 21861.71094 | F153: 21891.11914 | G153: 307610000 | H153: 21891.11914 | I153: 1 | J153: 1 | K153: 21863.39 | L153: 21929.8 | M153: 21861.71 | N153: 21891.12 | O153: 307610000
A154: 139 | B154: 2017-07-28 | C154: 21787.50977 | D154: 21841.17969 | E154: 21756.11914 | F154: 21830.31055 | G154: 285630000 | H154: 21830.31055 | I154: 1 | J154: 1 | K154: 21787.51 | L154: 21841.18 | M154: 21756.12 | N154: 21830.31 | O154: 285630000
A155: 140 | B155: 2017-07-27 | C155: 21717.41992 | D155: 21798.4707 | E155: 21687.84961 | F155: 21796.55078 | G155: 407320000 | H155: 21796.55078 | I155: 1 | J155: 1 | K155: 21717.42 | L155: 21798.47 | M155: 21687.85 | N155: 21796.55 | O155: 407320000
A156: 141 | B156: 2017-07-26 | C156: 21690.38086 | D156: 21742.69922 | E156: 21683.28906 | F156: 21711.00977 | G156: 278240000 | H156: 21711.00977 | I156: 1 | J156: 1 | K156: 21690.38 | L156: 21742.7 | M156: 21683.29 | N156: 21711.01 | O156: 278240000
A157: 142 | B157: 2017-07-25 | C157: 21638.56055 | D157: 21670.61914 | E157: 21577.36914 | F157: 21613.42969 | G157: 304300000 | H157: 21613.42969 | I157: 1 | J157: 1 | K157: 21638.56 | L157: 21670.62 | M157: 21577.37 | N157: 21613.43 | O157: 304300000
A158: 143 | B158: 2017-07-24 | C158: 21577.7793 | D158: 21577.7793 | E158: 21496.13086 | F158: 21513.16992 | G158: 284080000 | H158: 21513.16992 | I158: 1 | J158: 1 | K158: 21577.78 | L158: 21577.78 | M158: 21496.13 | N158: 21513.17 | O158: 284080000
A159: 144 | B159: 2017-07-21 | C159: 21591.7207 | D159: 21592.60938 | E159: 21503.7793 | F159: 21580.07031 | G159: 362830000 | H159: 21580.07031 | I159: 1 | J159: 1 | K159: 21591.72 | L159: 21592.61 | M159: 21503.78 | N159: 21580.07 | O159: 362830000
A160: 145 | B160: 2017-07-20 | C160: 21641.53906 | D160: 21661.91016 | E160: 21576.96094 | F160: 21611.7793 | G160: 313950000 | H160: 21611.7793 | I160: 1 | J160: 1 | K160: 21641.54 | L160: 21661.91 | M160: 21576.96 | N160: 21611.78 | O160: 313950000
A161: 146 | B161: 2017-07-19 | C161: 21569.25 | D161: 21640.75 | E161: 21565.83984 | F161: 21640.75 | G161: 253040000 | H161: 21640.75 | I161: 1 | J161: 1 | K161: 21569.25 | L161: 21640.75 | M161: 21565.84 | N161: 21640.75 | O161: 253040000
A162: 147 | B162: 2017-07-18 | C162: 21589.93945 | D162: 21589.93945 | E162: 21471.14062 | F162: 21574.73047 | G162: 251110000 | H162: 21574.73047 | I162: 1 | J162: 1 | K162: 21589.94 | L162: 21589.94 | M162: 21471.14 | N162: 21574.73 | O162: 251110000
A163: 148 | B163: 2017-07-17 | C163: 21633.9707 | D163: 21661.81055 | E163: 21617.66016 | F163: 21629.7207 | G163: 244780000 | H163: 21629.7207 | I163: 1 | J163: 1 | K163: 21633.97 | L163: 21661.81 | M163: 21617.66 | N163: 21629.72 | O163: 244780000
A164: 149 | B164: 2017-07-14 | C164: 21532.76953 | D164: 21681.5293 | E164: 21521.7207 | F164: 21637.74023 | G164: 235590000 | H164: 21637.74023 | I164: 1 | J164: 1 | K164: 21532.77 | L164: 21681.53 | M164: 21521.72 | N164: 21637.74 | O164: 235590000
A165: 150 | B165: 2017-07-13 | C165: 21537.18945 | D165: 21568.7207 | E165: 21512.35938 | F165: 21553.08984 | G165: 232270000 | H165: 21553.08984 | I165: 1 | J165: 1 | K165: 21537.19 | L165: 21568.72 | M165: 21512.36 | N165: 21553.09 | O165: 232270000
A166: 151 | B166: 2017-07-12 | C166: 21467.92969 | D166: 21580.78906 | E166: 21467.92969 | F166: 21532.14062 | G166: 267870000 | H166: 21532.14062 | I166: 1 | J166: 1 | K166: 21467.93 | L166: 21580.79 | M166: 21467.93 | N166: 21532.14 | O166: 267870000
A167: 152 | B167: 2017-07-11 | C167: 21410.16992 | D167: 21441.61914 | E167: 21279.30078 | F167: 21409.07031 | G167: 247570000 | H167: 21409.07031 | I167: 1 | J167: 1 | K167: 21410.17 | L167: 21441.62 | M167: 21279.3 | N167: 21409.07 | O167: 247570000
A168: 153 | B168: 2017-07-10 | C168: 21381.23047 | D168: 21446.39062 | E168: 21371.10938 | F168: 21408.51953 | G168: 270340000 | H168: 21408.51953 | I168: 1 | J168: 1 | K168: 21381.23 | L168: 21446.39 | M168: 21371.11 | N168: 21408.52 | O168: 270340000
A169: 154 | B169: 2017-07-07 | C169: 21354.66016 | D169: 21425.82031 | E169: 21350.7207 | F169: 21414.33984 | G169: 242240000 | H169: 21414.33984 | I169: 1 | J169: 1 | K169: 21354.66 | L169: 21425.82 | M169: 21350.72 | N169: 21414.34 | O169: 242240000
A170: 155 | B170: 2017-07-06 | C170: 21423.92969 | D170: 21433.09961 | E170: 21305.38086 | F170: 21320.03906 | G170: 320450000 | H170: 21320.03906 | I170: 1 | J170: 1 | K170: 21423.93 | L170: 21433.1 | M170: 21305.38 | N170: 21320.04 | O170: 320450000
A171: 156 | B171: 2017-07-05 | C171: 21492.83008 | D171: 21505.35938 | E171: 21404.75977 | F171: 21478.16992 | G171: 273690000 | H171: 21478.16992 | I171: 1 | J171: 1 | K171: 21492.83 | L171: 21505.36 | M171: 21404.76 | N171: 21478.17 | O171: 273690000
A172: 157 | B172: 2017-07-03 | C172: 21392.30078 | D172: 21562.75 | E172: 21391.71094 | F172: 21479.26953 | G172: 186810000 | H172: 21479.26953 | I172: 1 | J172: 1 | K172: 21392.3 | L172: 21562.75 | M172: 21391.71 | N172: 21479.27 | O172: 186810000
A173: 158 | B173: 2017-06-30 | C173: 21348.59961 | D173: 21426.11914 | E173: 21325.08008 | F173: 21349.63086 | G173: 313260000 | H173: 21349.63086 | I173: 1 | J173: 1 | K173: 21348.6 | L173: 21426.12 | M173: 21325.08 | N173: 21349.63 | O173: 313260000
A174: 159 | B174: 2017-06-29 | C174: 21487.38086 | D174: 21487.38086 | E174: 21197.08008 | F174: 21287.0293 | G174: 336750000 | H174: 21287.0293 | I174: 1 | J174: 1 | K174: 21487.38 | L174: 21487.38 | M174: 21197.08 | N174: 21287.03 | O174: 336750000
A175: 160 | B175: 2017-06-28 | C175: 21372.35938 | D175: 21478.75 | E175: 21372.35938 | F175: 21454.60938 | G175: 271510000 | H175: 21454.60938 | I175: 1 | J175: 1 | K175: 21372.36 | L175: 21478.75 | M175: 21372.36 | N175: 21454.61 | O175: 271510000
A176: 161 | B176: 2017-06-27 | C176: 21411.18945 | D176: 21440.59961 | E176: 21310.66016 | F176: 21310.66016 | G176: 292170000 | H176: 21310.66016 | I176: 1 | J176: 1 | K176: 21411.19 | L176: 21440.6 | M176: 21310.66 | N176: 21310.66 | O176: 292170000
A177: 162 | B177: 2017-06-26 | C177: 21434.67969 | D177: 21506.21094 | E177: 21381.25 | F177: 21409.55078 | G177: 241880000 | H177: 21409.55078 | I177: 1 | J177: 1 | K177: 21434.68 | L177: 21506.21 | M177: 21381.25 | N177: 21409.55 | O177: 241880000
A178: 163 | B178: 2017-06-23 | C178: 21380.91992 | D178: 21421.78906 | E178: 21333.89062 | F178: 21394.75977 | G178: 368400000 | H178: 21394.75977 | I178: 1 | J178: 1 | K178: 21380.92 | L178: 21421.79 | M178: 21333.89 | N178: 21394.76 | O178: 368400000
A179: 164 | B179: 2017-06-22 | C179: 21407.98047 | D179: 21456.4707 | E179: 21394.81055 | F179: 21397.28906 | G179: 270680000 | H179: 21397.28906 | I179: 1 | J179: 1 | K179: 21407.98 | L179: 21456.47 | M179: 21394.81 | N179: 21397.29 | O179: 270680000
A180: 165 | B180: 2017-06-21 | C180: 21466.39062 | D180: 21492.61914 | E180: 21390 | F180: 21410.0293 | G180: 292500000 | H180: 21410.0293 | I180: 1 | J180: 1 | K180: 21466.39 | L180: 21492.62 | M180: 21390 | N180: 21410.03 | O180: 292500000
A181: 166 | B181: 2017-06-20 | C181: 21521.25 | D181: 21535.0293 | E181: 21464.24023 | F181: 21467.14062 | G181: 310200000 | H181: 21467.14062 | I181: 1 | J181: 1 | K181: 21521.25 | L181: 21535.03 | M181: 21464.24 | N181: 21467.14 | O181: 310200000
A182: 167 | B182: 2017-06-19 | C182: 21444.75 | D182: 21528.99023 | E182: 21436.08008 | F182: 21528.99023 | G182: 289400000 | H182: 21528.99023 | I182: 1 | J182: 1 | K182: 21444.75 | L182: 21528.99 | M182: 21436.08 | N182: 21528.99 | O182: 289400000
A183: 168 | B183: 2017-06-16 | C183: 21335.92969 | D183: 21384.41992 | E183: 21308.00977 | F183: 21384.2793 | G183: 603260000 | H183: 21384.2793 | I183: 1 | J183: 1 | K183: 21335.93 | L183: 21384.42 | M183: 21308.01 | N183: 21384.28 | O183: 603260000
A184: 169 | B184: 2017-06-15 | C184: 21291.68945 | D184: 21367.2793 | E184: 21261.86914 | F184: 21359.90039 | G184: 317200000 | H184: 21359.90039 | I184: 1 | J184: 1 | K184: 21291.69 | L184: 21367.28 | M184: 21261.87 | N184: 21359.9 | O184: 317200000
A185: 170 | B185: 2017-06-14 | C185: 21342.71094 | D185: 21391.9707 | E185: 21294.08984 | F185: 21374.56055 | G185: 295090000 | H185: 21374.56055 | I185: 1 | J185: 1 | K185: 21342.71 | L185: 21391.97 | M185: 21294.09 | N185: 21374.56 | O185: 295090000
A186: 171 | B186: 2017-06-13 | C186: 21256.83008 | D186: 21332.76953 | E186: 21256.83008 | F186: 21328.4707 | G186: 323510000 | H186: 21328.4707 | I186: 1 | J186: 1 | K186: 21256.83 | L186: 21332.77 | M186: 21256.83 | N186: 21328.47 | O186: 323510000
A187: 172 | B187: 2017-06-12 | C187: 21259.94922 | D187: 21277.08008 | E187: 21186.15039 | F187: 21235.66992 | G187: 528080000 | H187: 21235.66992 | I187: 1 | J187: 1 | K187: 21259.95 | L187: 21277.08 | M187: 21186.15 | N187: 21235.67 | O187: 528080000
A188: 173 | B188: 2017-06-09 | C188: 21208.96094 | D188: 21305.34961 | E188: 21159.44922 | F188: 21271.9707 | G188: 397200000 | H188: 21271.9707 | I188: 1 | J188: 1 | K188: 21208.96 | L188: 21305.35 | M188: 21159.45 | N188: 21271.97 | O188: 397200000
A189: 174 | B189: 2017-06-08 | C189: 21169.75977 | D189: 21265.68945 | E189: 21138.16016 | F189: 21182.5293 | G189: 330330000 | H189: 21182.5293 | I189: 1 | J189: 1 | K189: 21169.76 | L189: 21265.69 | M189: 21138.16 | N189: 21182.53 | O189: 330330000
A190: 175 | B190: 2017-06-07 | C190: 21171.57031 | D190: 21189.83984 | E190: 21113.31055 | F190: 21173.68945 | G190: 273400000 | H190: 21173.68945 | I190: 1 | J190: 1 | K190: 21171.57 | L190: 21189.84 | M190: 21113.31 | N190: 21173.69 | O190: 273400000
A191: 176 | B191: 2017-06-06 | C191: 21145.48047 | D191: 21180.4707 | E191: 21118.46094 | F191: 21136.23047 | G191: 283550000 | H191: 21136.23047 | I191: 1 | J191: 1 | K191: 21145.48 | L191: 21180.47 | M191: 21118.46 | N191: 21136.23 | O191: 283550000
A192: 177 | B192: 2017-06-05 | C192: 21195.0293 | D192: 21224.41016 | E192: 21168.68945 | F192: 21184.03906 | G192: 269790000 | H192: 21184.03906 | I192: 1 | J192: 1 | K192: 21195.03 | L192: 21224.41 | M192: 21168.69 | N192: 21184.04 | O192: 269790000
A193: 178 | B193: 2017-06-02 | C193: 21142.08984 | D193: 21225.03906 | E193: 21129.56055 | F193: 21206.28906 | G193: 329700000 | H193: 21206.28906 | I193: 1 | J193: 1 | K193: 21142.09 | L193: 21225.04 | M193: 21129.56 | N193: 21206.29 | O193: 329700000
A194: 179 | B194: 2017-06-01 | C194: 21030.55078 | D194: 21144.17969 | E194: 20994.2207 | F194: 21144.17969 | G194: 276730000 | H194: 21144.17969 | I194: 1 | J194: 1 | K194: 21030.55 | L194: 21144.18 | M194: 20994.22 | N194: 21144.18 | O194: 276730000
A195: 180 | B195: 2017-05-31 | C195: 21048.46094 | D195: 21051.69922 | E195: 20942.57031 | F195: 21008.65039 | G195: 371580000 | H195: 21008.65039 | I195: 1 | J195: 1 | K195: 21048.46 | L195: 21051.7 | M195: 20942.57 | N195: 21008.65 | O195: 371580000
A196: 181 | B196: 2017-05-30 | C196: 21045.49023 | D196: 21063.61914 | E196: 21009.59961 | F196: 21029.4707 | G196: 242810000 | H196: 21029.4707 | I196: 1 | J196: 1 | K196: 21045.49 | L196: 21063.62 | M196: 21009.6 | N196: 21029.47 | O196: 242810000
A197: 182 | B197: 2017-05-26 | C197: 21070.15039 | D197: 21092.82031 | E197: 21050.49023 | F197: 21080.2793 | G197: 208000000 | H197: 21080.2793 | I197: 1 | J197: 1 | K197: 21070.15 | L197: 21092.82 | M197: 21050.49 | N197: 21080.28 | O197: 208000000
A198: 183 | B198: 2017-05-25 | C198: 21062.96094 | D198: 21112.32031 | E198: 21051.41016 | F198: 21082.94922 | G198: 268970000 | H198: 21082.94922 | I198: 1 | J198: 1 | K198: 21062.96 | L198: 21112.32 | M198: 21051.41 | N198: 21082.95 | O198: 268970000
A199: 184 | B199: 2017-05-24 | C199: 20949.21094 | D199: 21022.82031 | E199: 20933.58008 | F199: 21012.41992 | G199: 283180000 | H199: 21012.41992 | I199: 1 | J199: 1 | K199: 20949.21 | L199: 21022.82 | M199: 20933.58 | N199: 21012.42 | O199: 283180000
A200: 185 | B200: 2017-05-23 | C200: 20908.66992 | D200: 20961.14062 | E200: 20896.2207 | F200: 20937.91016 | G200: 244950000 | H200: 20937.91016 | I200: 1 | J200: 1 | K200: 20908.67 | L200: 20961.14 | M200: 20896.22 | N200: 20937.91 | O200: 244950000
... 4300 more rows

Sheet CalculationsAndCharts
A1: Recursive Median Filters
A2: =InputPriceData!A1 -> Dow Jones Industrial Average (^DJI) -DJI (Daily) | R2: Chart Clutter Controls
R3: Price Chart
A4: User Charting Controls | E4: Click to Shift Chart One Bar: | R4: TRUE
A5: Data Control | R5: TRUE
A6: =InputPriceData!$B$10 -> 8331 | B6: Available Input Data Rows | E6: Earliest: | F6: =OFFSET(InputPriceData!B15,CalculationsAndCharts!A6,0,1,1) -> 1985-01-29 | R6: TRUE
B7: Use Close Adjusted: | C7: FALSE | E7: Latest: | F7: =OFFSET(InputPriceData!B15,1,0,1,1) -> 2018-02-14 | R7: TRUE
A8: =MIN(A6-A11,LOOKUP(2,1/(B:B<>0),ROW(A:A))-32) -> 1000 | B8: Logically Available for Calc / Plot | E8: $ Change: | F8: =G33-G34 -> -32.950195
A10: Price Chart Windowing Controls | F10: Y-axis Range
A11: 3300 | B11: Input Data Offset (Pan) | E11: Max High+ | F11: =CEILING(MAX(MAX(OFFSET($E$33,0,0,$A$12,1)))+2*F14,0.1) -> 10984.2
A12: 254 | B12: Data Points to Plot (Zoom) | E12: Min Low- | F12: =FLOOR(MIN(MIN(OFFSET($F$33,0,0,$A$12,1)))-2*F14,0.1) -> 9592.3
B13: First: | C13: =OFFSET(B32,A12,0,1,1) -> 2004-01-05 | E13: White space %: | F13: 0.05
B14: ="Last: " & IF(OFFSET(InputPriceData!P15,1+A11,0,1,1)="","",TEXT(OFFSET(InputPriceData!P15,1+A11,0,1,1),"H:MM AM/PM")) -> Last: | C14: =B33 -> 2005-01-05 | E14: Allowance: | F14: =FLOOR((CEILING(MAX(MAX(OFFSET($E$33,0,0,$A$12,1))),1)-FLOOR(MIN(MIN(OFFSET($F$33,0,0,$A$12,1))),1))*F13,0.01) -> 58.05
A15: User Controls
A16: 10 | B16: :Periods | C16: PDS: | D16: =A16+1 -> 11 | E16: FirstAvail: | F16: =LogicallyAvailableRows-A16 -> 990
A18: 2 | B18: :Fast | C18: FastSC: | D18: =2/(A18+1) -> 0.6666666667
A19: 30 | B19: :Slow | C19: SlowSC: | D19: =2/(A19+1) -> 0.06451612903
C20: FastSC-SlowSC | D20: =D18-D19 -> 0.6021505376
A23: Help! I would like to plot data
A24: From | B24: 2003-11-20 | C24: =OFFSET(InputPriceData!$A$15,MATCH(B24,OFFSET(InputPriceData!B15,1,0,InputPriceData!$B$10,1),0),0,1,1)-C25 -> 254 | E24: 219
A25: To | B25: 2004-11-23 | C25: =OFFSET(InputPriceData!$A$15,MATCH(B25,OFFSET(InputPriceData!$B$15,1,0,InputPriceData!$B$10,1),0),0,1,1)-1 -> 3329 | E25: =$A$12-$E$24+1 -> 36
H28: @ Cursor => | I28: =OFFSET(A32,$E$25,0,1,1)&"(RR)" -> 36(RR) | J28: =OFFSET($B$32,E25,0,1,1) -> 2004-11-15 | K28: =TEXT(OFFSET(D32,$E$25,0,1,1),"#,##0.00")&"(o)" -> 10,541.89(o) | L28: =TEXT(OFFSET(E32,$E$25,0,1,1),"#,##0.00")&"(h)" -> 10,563.02(h) | M28: =TEXT(OFFSET(F32,$E$25,0,1,1),"#,##0.00")&"(l)" -> 10,517.13(l) | N28: =TEXT(OFFSET(G32,$E$25,0,1,1),"#,##0.00")&"(c)" -> 10,550.24(c)
E29: Cursor ==> | AT29: Chart Cursor work area
Y30: Chart Clutter Control Work Area | BA30: Recursive Median Oscillator Chart Cursor
A31: Rel Row | H31: Kama Calculations | O31: AMA Calculations | U31: Bullish Cross | V31: Bearish Cross | Y31: Kama | Z31: AMA | AA31: Bullish Cross | AB31: Bearish Cross | AO31: Used To Color Vol Bars
B32: Date | C32: Volume | D32: Open | E32: High | F32: Low | G32: Close | H32: Direction | I32: ROC(1) | J32: Volatility | K32: ER | L32: SSC | M32: Const | N32: KAMA | O32: ="MaxHigh("&D16&")" -> MaxHigh(11) | P32: ="MinLow("&D16&")" -> MinLow(11) | Q32: MLTP | R32: SSC | S32: Constant | T32: AMA | AO32: Up Vol | AP32: Dn Vol | AT32: Volume Cursor | AV32: =MAX(OFFSET(C33,0,0,A12,1)) -> 619180000 | AW32: MyRSI Chart Cursor | AY32: Price Chart Cursor
A33: 1 | B33: =OFFSET(InputPriceData!B$15,CalculationsAndCharts!$A33+$A$11,0,1,1) -> 2005-01-05 | C33: =OFFSET(InputPriceData!G$15,CalculationsAndCharts!$A33+$A$11,IF($C$7,8,0),1,1) -> 263550000 | D33: =OFFSET(InputPriceData!C$15,CalculationsAndCharts!$A33+$A$11,IF($C$7,8,0),1,1) -> 10629.53027 | E33: =OFFSET(InputPriceData!D$15,CalculationsAndCharts!$A33+$A$11,IF($C$7,8,0),1,1) -> 10684.42969 | F33: =OFFSET(InputPriceData!E$15,CalculationsAndCharts!$A33+$A$11,IF($C$7,8,0),1,1) -> 10597.75 | G33: =OFFSET(InputPriceData!F$15,CalculationsAndCharts!$A33+$A$11,IF($C$7,8,0),1,1) -> 10597.83008 | H33: =IF(A33<=$F$16,ABS(G33-OFFSET(G33,$A$16,0,1,1)),0) -> 161.59961 | I33: =IF(A33<$A$8,ABS(G33-G34),0) -> 32.950195 | J33: =IF(A33<=$F$16,SUM(OFFSET(I33,0,0,$A$16,1)),0) -> 453.80078 | K33: =IF(A33<=$F$16,H33/J33,0) -> 0.3561025391 | L33: =IF(A33<=$F$16,K33*$D$20+$D$19,0) -> 0.2789434644 | M33: =IF(A33<=$F$16,L33^2,0) -> 0.07780945633 | N33: =IF(A33=$F$16,$G34+M33*($G33-$G34),IF(A33<$F$16,N34+M33*($G33-N34),0)) -> 10727.18903 | O33: =IF(A33<=$F$16,MAX(OFFSET(E33,0,0,$D$16,1)),0) -> 10868.07031 | P33: =IF(A33<=$F$16,MIN(OFFSET(F33,0,0,$D$16,1)),0) -> 10597.75 | Q33: =IF(A33<=$F$16,ABS((G33-P33)-(O33-G33))/(O33-P33),0) -> 0.9994075325 | R33: =IF(A33<=$F$16,Q33*$D$20+$D$19,0) -> 0.666309912 | S33: =IF(A33<=$F$16,R33^2,0) -> 0.4439688989 | T33: =IF(A33=$F$16,$G34+S33*($G33-$G34),IF(A33<$F$16,T34+S33*($G33-T34),0)) -> 10683.77735 | U33: =IF(AND(T34<N34,T33>N33),TRUE,FALSE) -> FALSE | V33: =IF(AND(T34>N34,T33<N33),TRUE,FALSE) -> TRUE | Y33: =IF($R$4,N33,NA()) -> 10727.18903 | Z33: =IF($R$5,T33,NA()) -> 10683.77735 | AA33: =IF(AND($R$6,U33),$AZ$34,NA()) ->  | AB33: =IF(AND($R$7,V33),$AZ$34,NA()) -> 11139.77207 | AO33: =IF(G33>=D33,C33,NA()) ->  | AP33: =IF(G33<D33,C33,NA()) -> 263550000 | AT33: =$E$25 -> 36 | AV33: 0 | AW33: =$E$25 -> 36 | AX33: -36 | AY33: =$E$25 -> 36 | AZ33: 9465.690381 | BA33: =$E$25 -> 36 | BB33: -220
A34: 2 | B34: =OFFSET(InputPriceData!B$15,CalculationsAndCharts!$A34+$A$11,0,1,1) -> 2005-01-04 | C34: =OFFSET(InputPriceData!G$15,CalculationsAndCharts!$A34+$A$11,IF($C$7,8,0),1,1) -> 293280000 | D34: =OFFSET(InputPriceData!C$15,CalculationsAndCharts!$A34+$A$11,IF($C$7,8,0),1,1) -> 10727.80957 | E34: =OFFSET(InputPriceData!D$15,CalculationsAndCharts!$A34+$A$11,IF($C$7,8,0),1,1) -> 10769.55957 | F34: =OFFSET(InputPriceData!E$15,CalculationsAndCharts!$A34+$A$11,IF($C$7,8,0),1,1) -> 10605.15039 | G34: =OFFSET(InputPriceData!F$15,CalculationsAndCharts!$A34+$A$11,IF($C$7,8,0),1,1) -> 10630.78027 | H34: =IF(A34<=$F$16,ABS(G34-OFFSET(G34,$A$16,0,1,1)),0) -> 30.819336 | I34: =IF(A34<$A$8,ABS(G34-G35),0) -> 98.649415 | J34: =IF(A34<=$F$16,SUM(OFFSET(I34,0,0,$A$16,1)),0) -> 518.680664 | K34: =IF(A34<=$F$16,H34/J34,0) -> 0.05941871008 | L34: =IF(A34<=$F$16,K34*$D$20+$D$19,0) -> 0.1002951373 | M34: =IF(A34<=$F$16,L34^2,0) -> 0.01005911456 | N34: =IF(A34=$F$16,$G35+M34*($G34-$G35),IF(A34<$F$16,N35+M34*($G34-N35),0)) -> 10738.10364 | O34: =IF(A34<=$F$16,MAX(OFFSET(E34,0,0,$D$16,1)),0) -> 10868.07031 | P34: =IF(A34<=$F$16,MIN(OFFSET(F34,0,0,$D$16,1)),0) -> 10605.15039 | Q34: =IF(A34<=$F$16,ABS((G34-P34)-(O34-G34))/(O34-P34),0) -> 0.8050365921 | R34: 0.5492693458 | S34: 0.3016968142 | T34: 10752.40286 | U34: FALSE | V34: FALSE | Y34: =IF($R$4,N34,NA()) -> 10738.10364 | Z34: 10752.40286 | AP34: 293280000 | AT34: =$E$25 -> 36 | AV34: =1.2*AV32 -> 743016000 | AW34: =$E$25 -> 36 | AX34: 12 | AY34: =$E$25 -> 36 | AZ34: 11139.77207 | BA34: =$E$25 -> 36 | BB34: 189
A35: 3 | B35: =OFFSET(InputPriceData!B$15,CalculationsAndCharts!$A35+$A$11,0,1,1) -> 2005-01-03 | C35: =OFFSET(InputPriceData!G$15,CalculationsAndCharts!$A35+$A$11,IF($C$7,8,0),1,1) -> 270620000 | D35: =OFFSET(InputPriceData!C$15,CalculationsAndCharts!$A35+$A$11,IF($C$7,8,0),1,1) -> 10783.75 | E35: =OFFSET(InputPriceData!D$15,CalculationsAndCharts!$A35+$A$11,IF($C$7,8,0),1,1) -> 10867.38965 | F35: =OFFSET(InputPriceData!E$15,CalculationsAndCharts!$A35+$A$11,IF($C$7,8,0),1,1) -> 10710.07031 | G35: =OFFSET(InputPriceData!F$15,CalculationsAndCharts!$A35+$A$11,IF($C$7,8,0),1,1) -> 10729.42969 | H35: 79.509766 | I35: 53.580078 | J35: 431.710936 | K35: 0.1841736203 | L35: 0.1754163735 | M35: 0.03077090409 | N35: 10739.19419 | O35: 10868.07031 | P35: 10641.87988 | Q35: 0.2258752503 | R35: 0.2005270325 | S35: 0.04021109075 | T35: 10804.94901 | U35: FALSE | V35: FALSE | Y35: 10739.19419 | Z35: 10804.94901 | AP35: 270620000
A36: 4 | B36: =OFFSET(InputPriceData!B$15,CalculationsAndCharts!$A36+$A$11,0,1,1) -> 2004-12-31 | C36: =OFFSET(InputPriceData!G$15,CalculationsAndCharts!$A36+$A$11,IF($C$7,8,0),1,1) -> 141140000 | D36: =OFFSET(InputPriceData!C$15,CalculationsAndCharts!$A36+$A$11,IF($C$7,8,0),1,1) -> 10800.29981 | E36: =OFFSET(InputPriceData!D$15,CalculationsAndCharts!$A36+$A$11,IF($C$7,8,0),1,1) -> 10832.51953 | F36: =OFFSET(InputPriceData!E$15,CalculationsAndCharts!$A36+$A$11,IF($C$7,8,0),1,1) -> 10781.00977 | G36: =OFFSET(InputPriceData!F$15,CalculationsAndCharts!$A36+$A$11,IF($C$7,8,0),1,1) -> 10783.00977 | H36: 77.370118 | I36: 17.290039 | J36: 433.850584 | K36: 0.1783335573 | L36: 0.1718997765 | M36: 0.02954953315 | N36: 10739.50419 | O36: 10868.07031 | P36: 10641.87988 | Q36: 0.2478855361 | R36: 0.2137805379 | S36: 0.04570211837 | T36: 10808.11295 | U36: FALSE | V36: FALSE | Y36: 10739.50419 | Z36: 10808.11295 | AP36: 141140000
A37: 5 | B37: =OFFSET(InputPriceData!B$15,CalculationsAndCharts!$A37+$A$11,0,1,1) -> 2004-12-30 | C37: =OFFSET(InputPriceData!G$15,CalculationsAndCharts!$A37+$A$11,IF($C$7,8,0),1,1) -> 146210000 | D37: =OFFSET(InputPriceData!C$15,CalculationsAndCharts!$A37+$A$11,IF($C$7,8,0),1,1) -> 10829.12012 | E37: =OFFSET(InputPriceData!D$15,CalculationsAndCharts!$A37+$A$11,IF($C$7,8,0),1,1) -> 10850.17969 | F37: =OFFSET(InputPriceData!E$15,CalculationsAndCharts!$A37+$A$11,IF($C$7,8,0),1,1) -> 10799.70996 | G37: =OFFSET(InputPriceData!F$15,CalculationsAndCharts!$A37+$A$11,IF($C$7,8,0),1,1) -> 10800.29981 | H37: 108.84961 | I37: 28.890625 | J37: 430.749998 | K37: 0.252697877 | L37: 0.2166782915 | M37: 0.04694948201 | N37: 10738.17947 | O37: 10868.07031 | P37: 10636.46973 | Q37: 0.4147639333 | R37: 0.3142664544 | S37: 0.09876340439 | T37: 10809.31516 | U37: FALSE | V37: FALSE | Y37: 10738.17947 | Z37: 10809.31516 | AP37: 146210000
A38: 6 | B38: =OFFSET(InputPriceData!B$15,CalculationsAndCharts!$A38+$A$11,0,1,1) -> 2004-12-29 | C38: =OFFSET(InputPriceData!G$15,CalculationsAndCharts!$A38+$A$11,IF($C$7,8,0),1,1) -> 162830000 | D38: =OFFSET(InputPriceData!C$15,CalculationsAndCharts!$A38+$A$11,IF($C$7,8,0),1,1) -> 10853.71973 | E38: =OFFSET(InputPriceData!D$15,CalculationsAndCharts!$A38+$A$11,IF($C$7,8,0),1,1) -> 10853.71973 | F38: =OFFSET(InputPriceData!E$15,CalculationsAndCharts!$A38+$A$11,IF($C$7,8,0),1,1) -> 10795.57031 | G38: =OFFSET(InputPriceData!F$15,CalculationsAndCharts!$A38+$A$11,IF($C$7,8,0),1,1) -> 10829.19043 | H38: 152.740235 | I38: 25.349609 | J38: 416.859373 | K38: 0.3664071025 | L38: 0.2851483628 | M38: 0.0813095888 | N38: 10735.11928 | O38: 10868.07031 | P38: 10621.03027 | Q38: 0.6852341588 | R38: 0.4771302462 | S38: 0.2276532718 | T38: 10810.30312 | U38: FALSE | V38: FALSE | Y38: 10735.11928 | Z38: 10810.30312 | AP38: 162830000
A39: 7 | B39: =OFFSET(InputPriceData!B$15,CalculationsAndCharts!$A39+$A$11,0,1,1) -> 2004-12-28 | C39: =OFFSET(InputPriceData!G$15,CalculationsAndCharts!$A39+$A$11,IF($C$7,8,0),1,1) -> 169870000 | D39: =OFFSET(InputPriceData!C$15,CalculationsAndCharts!$A39+$A$11,IF($C$7,8,0),1,1) -> 10776.05957 | E39: =OFFSET(InputPriceData!D$15,CalculationsAndCharts!$A39+$A$11,IF($C$7,8,0),1,1) -> 10859.04004 | F39: =OFFSET(InputPriceData!E$15,CalculationsAndCharts!$A39+$A$11,IF($C$7,8,0),1,1) -> 10773.91992 | G39: =OFFSET(InputPriceData!F$15,CalculationsAndCharts!$A39+$A$11,IF($C$7,8,0),1,1) -> 10854.54004 | H39: 216.219726 | I39: 78.410156 | J39: 429.639646 | K39: 0.5032583189 | L39: 0.3675533964 | M39: 0.1350954992 | N39: 10726.79342 | O39: 10868.07031 | P39: 10543.20996 | Q39: 0.916700983 | R39: 0.6165081188 | S39: 0.3800822605 | T39: 10804.73599 | U39: FALSE | V39: FALSE | Y39: 10726.79342 | Z39: 10804.73599 | AO39: 169870000
A40: 8 | B40: =OFFSET(InputPriceData!B$15,CalculationsAndCharts!$A40+$A$11,0,1,1) -> 2004-12-27 | C40: =OFFSET(InputPriceData!G$15,CalculationsAndCharts!$A40+$A$11,IF($C$7,8,0),1,1) -> 170140000 | D40: =OFFSET(InputPriceData!C$15,CalculationsAndCharts!$A40+$A$11,IF($C$7,8,0),1,1) -> 10828.00977 | E40: =OFFSET(InputPriceData!D$15,CalculationsAndCharts!$A40+$A$11,IF($C$7,8,0),1,1) -> 10868.07031 | F40: =OFFSET(InputPriceData!E$15,CalculationsAndCharts!$A40+$A$11,IF($C$7,8,0),1,1) -> 10776.12988 | G40: =OFFSET(InputPriceData!F$15,CalculationsAndCharts!$A40+$A$11,IF($C$7,8,0),1,1) -> 10776.12988 | H40: 232.910156 | I40: 50.990234 | J40: 446.330076 | K40: 0.5218338815 | L40: 0.3787386813 | M40: 0.1434429887 | N40: 10706.83978 | O40: 10868.07031 | P40: 10522.67969 | Q40: 0.4676147912 | R40: 0.346090627 | S40: 0.1197787221 | T40: 10774.20027 | U40: FALSE | V40: FALSE | Y40: 10706.83978 | Z40: 10774.20027 | AP40: 170140000
A41: 9 | B41: =OFFSET(InputPriceData!B$15,CalculationsAndCharts!$A41+$A$11,0,1,1) -> 2004-12-23 | C41: =OFFSET(InputPriceData!G$15,CalculationsAndCharts!$A41+$A$11,IF($C$7,8,0),1,1) -> 193270000 | D41: =OFFSET(InputPriceData!C$15,CalculationsAndCharts!$A41+$A$11,IF($C$7,8,0),1,1) -> 10815 | E41: =OFFSET(InputPriceData!D$15,CalculationsAndCharts!$A41+$A$11,IF($C$7,8,0),1,1) -> 10864.66992 | F41: =OFFSET(InputPriceData!E$15,CalculationsAndCharts!$A41+$A$11,IF($C$7,8,0),1,1) -> 10809.53027 | G41: =OFFSET(InputPriceData!F$15,CalculationsAndCharts!$A41+$A$11,IF($C$7,8,0),1,1) -> 10827.12012 | H41: 274.299804 | I41: 11.230469 | J41: 404.940428 | K41: 0.6773831039 | L41: 0.4724027292 | M41: 0.2231643386 | N41: 10695.23614 | O41: 10864.66992 | P41: 10418.62988 | Q41: 0.8316303394 | R41: 0.565282785 | S41: 0.319544627 | T41: 10773.93769 | U41: FALSE | V41: FALSE | Y41: 10695.23614 | Z41: 10773.93769 | AO41: 193270000
A42: 10 | B42: =OFFSET(InputPriceData!B$15,CalculationsAndCharts!$A42+$A$11,0,1,1) -> 2004-12-22 | C42: =OFFSET(InputPriceData!G$15,CalculationsAndCharts!$A42+$A$11,IF($C$7,8,0),1,1) -> 252910000 | D42: =OFFSET(InputPriceData!C$15,CalculationsAndCharts!$A42+$A$11,IF($C$7,8,0),1,1) -> 10752.33984 | E42: =OFFSET(InputPriceData!D$15,CalculationsAndCharts!$A42+$A$11,IF($C$7,8,0),1,1) -> 10822.67969 | F42: =OFFSET(InputPriceData!E$15,CalculationsAndCharts!$A42+$A$11,IF($C$7,8,0),1,1) -> 10739.19043 | G42: =OFFSET(InputPriceData!F$15,CalculationsAndCharts!$A42+$A$11,IF($C$7,8,0),1,1) -> 10815.88965 | H42: 321.659179 | I42: 56.45996 | J42: 452.299803 | K42: 0.7111636505 | L42: 0.4927437035 | M42: 0.2427963573 | N42: 10657.34937 | O42: 10822.67969 | P42: 10418.62988 | Q42: 0.966390084 | R42: 0.6464284377 | S42: 0.417869725 | T42: 10748.963 | U42: FALSE | V42: FALSE | Y42: 10657.34937 | Z42: 10748.963 | AO42: 252910000
A43: 11 | B43: =OFFSET(InputPriceData!B$15,CalculationsAndCharts!$A43+$A$11,0,1,1) -> 2004-12-21 | C43: =OFFSET(InputPriceData!G$15,CalculationsAndCharts!$A43+$A$11,IF($C$7,8,0),1,1) -> 294880000 | D43: =OFFSET(InputPriceData!C$15,CalculationsAndCharts!$A43+$A$11,IF($C$7,8,0),1,1) -> 10661.88965 | E43: =OFFSET(InputPriceData!D$15,CalculationsAndCharts!$A43+$A$11,IF($C$7,8,0),1,1) -> 10765.26953 | F43: =OFFSET(InputPriceData!E$15,CalculationsAndCharts!$A43+$A$11,IF($C$7,8,0),1,1) -> 10661.88965 | G43: =OFFSET(InputPriceData!F$15,CalculationsAndCharts!$A43+$A$11,IF($C$7,8,0),1,1) -> 10759.42969 | H43: 318.84961 | I43: 97.830079 | J43: 449.490234 | K43: 0.7093582594 | L43: 0.4916565863 | M43: 0.2417261988 | N43: 10606.51363 | O43: 10765.26953 | P43: 10418.62988 | Q43: 0.966305972 | R43: 0.6463777896 | S43: 0.4178042469 | T43: 10700.92115 | U43: FALSE | V43: FALSE | Y43: 10606.51363 | Z43: 10700.92115 | AO43: 294880000
A44: 12 | B44: =OFFSET(InputPriceData!B$15,CalculationsAndCharts!$A44+$A$11,0,1,1) -> 2004-12-20 | C44: =OFFSET(InputPriceData!G$15,CalculationsAndCharts!$A44+$A$11,IF($C$7,8,0),1,1) -> 298650000 | D44: =OFFSET(InputPriceData!C$15,CalculationsAndCharts!$A44+$A$11,IF($C$7,8,0),1,1) -> 10652.13965 | E44: =OFFSET(InputPriceData!D$15,CalculationsAndCharts!$A44+$A$11,IF($C$7,8,0),1,1) -> 10735.26953 | F44: =OFFSET(InputPriceData!E$15,CalculationsAndCharts!$A44+$A$11,IF($C$7,8,0),1,1) -> 10652.07031 | G44: =OFFSET(InputPriceData!F$15,CalculationsAndCharts!$A44+$A$11,IF($C$7,8,0),1,1) -> 10661.59961 | H44: 114.540039 | I44: 11.679687 | J44: 458.139647 | K44: 0.2500111915 | L44: 0.2150605024 | M44: 0.04625101969 | N44: 10557.76631 | O44: 10739.33008 | P44: 10418.62988 | Q44: 0.5152452651 | R44: 0.3747713424 | S44: 0.1404535591 | T44: 10658.93335 | U44: FALSE | V44: FALSE | Y44: 10557.76631 | Z44: 10658.93335 | AO44: 298650000
A45: 13 | B45: =OFFSET(InputPriceData!B$15,CalculationsAndCharts!$A45+$A$11,0,1,1) -> 2004-12-17 | C45: =OFFSET(InputPriceData!G$15,CalculationsAndCharts!$A45+$A$11,IF($C$7,8,0),1,1) -> 619180000 | D45: =OFFSET(InputPriceData!C$15,CalculationsAndCharts!$A45+$A$11,IF($C$7,8,0),1,1) -> 10704.83008 | E45: =OFFSET(InputPriceData!D$15,CalculationsAndCharts!$A45+$A$11,IF($C$7,8,0),1,1) -> 10739.33008 | F45: =OFFSET(InputPriceData!E$15,CalculationsAndCharts!$A45+$A$11,IF($C$7,8,0),1,1) -> 10641.87988 | G45: =OFFSET(InputPriceData!F$15,CalculationsAndCharts!$A45+$A$11,IF($C$7,8,0),1,1) -> 10649.91992 | H45: 57.709961 | I45: 55.719726 | J45: 491.610351 | K45: 0.1173896377 | L45: 0.1352023625 | M45: 0.01827967882 | N45: 10552.73103 | O45: 10739.33008 | P45: 10418.62988 | Q45: 0.4424066003 | R45: 0.3309115013 | S45: 0.1095024217 | T45: 10658.49767 | U45: FALSE | V45: FALSE | Y45: 10552.73103 | Z45: 10658.49767 | AP45: 619180000
A46: 14 | B46: =OFFSET(InputPriceData!B$15,CalculationsAndCharts!$A46+$A$11,0,1,1) -> 2004-12-16 | C46: =OFFSET(InputPriceData!G$15,CalculationsAndCharts!$A46+$A$11,IF($C$7,8,0),1,1) -> 293600000 | D46: =OFFSET(InputPriceData!C$15,CalculationsAndCharts!$A46+$A$11,IF($C$7,8,0),1,1) -> 10691.70996 | E46: =OFFSET(InputPriceData!D$15,CalculationsAndCharts!$A46+$A$11,IF($C$7,8,0),1,1) -> 10726.84961 | F46: =OFFSET(InputPriceData!E$15,CalculationsAndCharts!$A46+$A$11,IF($C$7,8,0),1,1) -> 10661.66992 | G46: =OFFSET(InputPriceData!F$15,CalculationsAndCharts!$A46+$A$11,IF($C$7,8,0),1,1) -> 10705.63965 | H46: 120.519531 | I46: 14.189453 | J46: 442.980469 | K46: 0.2720651122 | L46: 0.2283402826 | M46: 0.05213928466 | N46: 10550.92137 | O46: 10726.84961 | P46: 10418.62988 | Q46: 0.8623711644 | R46: 0.5837933893 | S46: 0.3408147214 | T46: 10659.55246 | U46: FALSE | V46: FALSE | Y46: 10550.92137 | Z46: 10659.55246 | AO46: 293600000
A47: 15 | B47: =OFFSET(InputPriceData!B$15,CalculationsAndCharts!$A47+$A$11,0,1,1) -> 2004-12-15 | C47: =OFFSET(InputPriceData!G$15,CalculationsAndCharts!$A47+$A$11,IF($C$7,8,0),1,1) -> 305010000 | D47: =OFFSET(InputPriceData!C$15,CalculationsAndCharts!$A47+$A$11,IF($C$7,8,0),1,1) -> 10675.70996 | E47: =OFFSET(InputPriceData!D$15,CalculationsAndCharts!$A47+$A$11,IF($C$7,8,0),1,1) -> 10706.16016 | F47: =OFFSET(InputPriceData!E$15,CalculationsAndCharts!$A47+$A$11,IF($C$7,8,0),1,1) -> 10636.46973 | G47: =OFFSET(InputPriceData!F$15,CalculationsAndCharts!$A47+$A$11,IF($C$7,8,0),1,1) -> 10691.45019 | H47: 101.230468 | I47: 15 | J47: 433.890626 | K47: 0.2333087233 | L47: 0.2050031022 | M47: 0.04202627191 | N47: 10542.41073 | O47: 10706.16016 | P47: 10418.62988 | Q47: 0.8976806105 | R47: 0.6050549913 | S47: 0.3660915424 | T47: 10635.72426 | U47: FALSE | V47: FALSE | Y47: 10542.41073 | Z47: 10635.72426 | AO47: 305010000
A48: 16 | B48: =OFFSET(InputPriceData!B$15,CalculationsAndCharts!$A48+$A$11,0,1,1) -> 2004-12-14 | C48: =OFFSET(InputPriceData!G$15,CalculationsAndCharts!$A48+$A$11,IF($C$7,8,0),1,1) -> 303800000 | D48: =OFFSET(InputPriceData!C$15,CalculationsAndCharts!$A48+$A$11,IF($C$7,8,0),1,1) -> 10640.53027 | E48: =OFFSET(InputPriceData!D$15,CalculationsAndCharts!$A48+$A$11,IF($C$7,8,0),1,1) -> 10695.07031 | F48: =OFFSET(InputPriceData!E$15,CalculationsAndCharts!$A48+$A$11,IF($C$7,8,0),1,1) -> 10621.03027 | G48: =OFFSET(InputPriceData!F$15,CalculationsAndCharts!$A48+$A$11,IF($C$7,8,0),1,1) -> 10676.45019 | H48: 248.430664 | I48: 38.129882 | J48: 581.090822 | K48: 0.4275246736 | L48: 0.3219503411 | M48: 0.1036520221 | N48: 10535.87237 | O48: 10695.07031 | P48: 10418.62988 | Q48: 0.8652865791 | R48: 0.5855489078 | S48: 0.3428675235 | T48: 10603.54171 | U48: FALSE | V48: FALSE | Y48: 10535.87237 | Z48: 10603.54171 | AO48: 303800000
A49: 17 | B49: =OFFSET(InputPriceData!B$15,CalculationsAndCharts!$A49+$A$11,0,1,1) -> 2004-12-13 | C49: =OFFSET(InputPriceData!G$15,CalculationsAndCharts!$A49+$A$11,IF($C$7,8,0),1,1) -> 257530000 | D49: =OFFSET(InputPriceData!C$15,CalculationsAndCharts!$A49+$A$11,IF($C$7,8,0),1,1) -> 10543.44043 | E49: =OFFSET(InputPriceData!D$15,CalculationsAndCharts!$A49+$A$11,IF($C$7,8,0),1,1) -> 10642.53027 | F49: =OFFSET(InputPriceData!E$15,CalculationsAndCharts!$A49+$A$11,IF($C$7,8,0),1,1) -> 10543.20996 | G49: =OFFSET(InputPriceData!F$15,CalculationsAndCharts!$A49+$A$11,IF($C$7,8,0),1,1) -> 10638.32031 | H49: 162.419922 | I49: 95.100586 | J49: 590.8418 | K49: 0.2748957877 | L49: 0.2300447754 | M49: 0.05292059868 | N49: 10519.61621 | O49: 10643.04981 | P49: 10417.08008 | Q49: 0.9581404814 | R49: 0.641460935 | S49: 0.4114721311 | T49: 10565.50075 | U49: FALSE | V49: FALSE | Y49: 10519.61621 | Z49: 10565.50075 | AO49: 257530000
A50: 18 | B50: =OFFSET(InputPriceData!B$15,CalculationsAndCharts!$A50+$A$11,0,1,1) -> 2004-12-10 | C50: =OFFSET(InputPriceData!G$15,CalculationsAndCharts!$A50+$A$11,IF($C$7,8,0),1,1) -> 242290000 | D50: =OFFSET(InputPriceData!C$15,CalculationsAndCharts!$A50+$A$11,IF($C$7,8,0),1,1) -> 10552.16016 | E50: =OFFSET(InputPriceData!D$15,CalculationsAndCharts!$A50+$A$11,IF($C$7,8,0),1,1) -> 10575.58008 | F50: =OFFSET(InputPriceData!E$15,CalculationsAndCharts!$A50+$A$11,IF($C$7,8,0),1,1) -> 10522.67969 | G50: =OFFSET(InputPriceData!F$15,CalculationsAndCharts!$A50+$A$11,IF($C$7,8,0),1,1) -> 10543.21973 | H50: 20.989258 | I50: 9.600586 | J50: 542.071292 | K50: 0.03872047517 | L50: 0.08783168397 | M50: 0.007714404709 | N50: 10512.9833 | O50: 10643.04981 | P50: 10417.08008 | Q50: 0.1164296269 | R50: 0.1346242915 | S50: 0.01812369985 | T50: 10514.58859 | U50: FALSE | V50: FALSE | Y50: 10512.9833 | Z50: 10514.58859 | AP50: 242290000
A51: 19 | B51: =OFFSET(InputPriceData!B$15,CalculationsAndCharts!$A51+$A$11,0,1,1) -> 2004-12-09 | C51: =OFFSET(InputPriceData!G$15,CalculationsAndCharts!$A51+$A$11,IF($C$7,8,0),1,1) -> 278740000 | D51: =OFFSET(InputPriceData!C$15,CalculationsAndCharts!$A51+$A$11,IF($C$7,8,0),1,1) -> 10492.45019 | E51: =OFFSET(InputPriceData!D$15,CalculationsAndCharts!$A51+$A$11,IF($C$7,8,0),1,1) -> 10562.50977 | F51: =OFFSET(InputPriceData!E$15,CalculationsAndCharts!$A51+$A$11,IF($C$7,8,0),1,1) -> 10418.62988 | G51: =OFFSET(InputPriceData!F$15,CalculationsAndCharts!$A51+$A$11,IF($C$7,8,0),1,1) -> 10552.82031 | H51: 32.510743 | I51: 58.589844 | J51: 534.391605 | K51: 0.06083692688 | L51: 0.1011491173 | M51: 0.01023114392 | N51: 10512.74823 | O51: 10643.04981 | P51: 10417.08008 | Q51: 0.2014019471 | R51: 0.1857904197 | S51: 0.03451808007 | T51: 10514.06011 | U51: FALSE | V51: FALSE | Y51: 10512.74823 | Z51: 10514.06011 | AO51: 278740000
A52: 20 | B52: =OFFSET(InputPriceData!B$15,CalculationsAndCharts!$A52+$A$11,0,1,1) -> 2004-12-08 | C52: =OFFSET(InputPriceData!G$15,CalculationsAndCharts!$A52+$A$11,IF($C$7,8,0),1,1) -> 247020000 | D52: =OFFSET(InputPriceData!C$15,CalculationsAndCharts!$A52+$A$11,IF($C$7,8,0),1,1) -> 10438.76953 | E52: =OFFSET(InputPriceData!D$15,CalculationsAndCharts!$A52+$A$11,IF($C$7,8,0),1,1) -> 10506.84961 | F52: =OFFSET(InputPriceData!E$15,CalculationsAndCharts!$A52+$A$11,IF($C$7,8,0),1,1) -> 10438.66016 | G52: =OFFSET(InputPriceData!F$15,CalculationsAndCharts!$A52+$A$11,IF($C$7,8,0),1,1) -> 10494.23047 | H52: 1.63086 | I52: 53.650391 | J52: 503.511722 | K52: 0.003238971267 | L52: 0.06646647732 | M52: 0.004417792608 | N52: 10512.33401 | O52: 10643.04981 | P52: 10417.08008 | Q52: 0.3171617099 | R52: 0.2554952232 | S52: 0.06527780906 | T52: 10512.67435 | U52: FALSE | V52: FALSE | Y52: 10512.33401 | Z52: 10512.67435 | AO52: 247020000
A53: 21 | B53: =OFFSET(InputPriceData!B$15,CalculationsAndCharts!$A53+$A$11,0,1,1) -> 2004-12-07 | C53: =OFFSET(InputPriceData!G$15,CalculationsAndCharts!$A53+$A$11,IF($C$7,8,0),1,1) -> 258710000 | D53: =OFFSET(InputPriceData!C$15,CalculationsAndCharts!$A53+$A$11,IF($C$7,8,0),1,1) -> 10546.79981 | E53: =OFFSET(InputPriceData!D$15,CalculationsAndCharts!$A53+$A$11,IF($C$7,8,0),1,1) -> 10567.16016 | F53: =OFFSET(InputPriceData!E$15,CalculationsAndCharts!$A53+$A$11,IF($C$7,8,0),1,1) -> 10440.36035 | G53: =OFFSET(InputPriceData!F$15,CalculationsAndCharts!$A53+$A$11,IF($C$7,8,0),1,1) -> 10440.58008 | H53: 48.839844 | I53: 106.479492 | J53: 453.041018 | K53: 0.1078044637 | L53: 0.1294306448 | M53: 0.01675229182 | N53: 10512.41435 | O53: 10643.04981 | P53: 10417.08008 | Q53: 0.7920075374 | R53: 0.5414238935 | S53: 0.2931398324 | T53: 10513.96241 | U53: FALSE | V53: FALSE | Y53: 10512.41435 | Z53: 10513.96241 | AP53: 258710000
A54: 22 | B54: =OFFSET(InputPriceData!B$15,CalculationsAndCharts!$A54+$A$11,0,1,1) -> 2004-12-06 | C54: =OFFSET(InputPriceData!G$15,CalculationsAndCharts!$A54+$A$11,IF($C$7,8,0),1,1) -> 218660000 | D54: =OFFSET(InputPriceData!C$15,CalculationsAndCharts!$A54+$A$11,IF($C$7,8,0),1,1) -> 10591.32031 | E54: =OFFSET(InputPriceData!D$15,CalculationsAndCharts!$A54+$A$11,IF($C$7,8,0),1,1) -> 10591.99023 | F54: =OFFSET(InputPriceData!E$15,CalculationsAndCharts!$A54+$A$11,IF($C$7,8,0),1,1) -> 10526.82031 | G54: =OFFSET(InputPriceData!F$15,CalculationsAndCharts!$A54+$A$11,IF($C$7,8,0),1,1) -> 10547.05957 | H54: 90.149414 | I54: 45.150391 | J54: 379.071292 | K54: 0.2378165161 | L54: 0.207717472 | M54: 0.04314654819 | N54: 10513.63824 | O54: 10643.04981 | P54: 10417.08008 | Q54: 0.1504150908 | R54: 0.1550886568 | S54: 0.02405249147 | T54: 10544.39457 | U54: FALSE | V54: FALSE | Y54: 10513.63824 | Z54: 10544.39457 | AP54: 218660000
A55: 23 | B55: =OFFSET(InputPriceData!B$15,CalculationsAndCharts!$A55+$A$11,0,1,1) -> 2004-12-03 | C55: =OFFSET(InputPriceData!G$15,CalculationsAndCharts!$A55+$A$11,IF($C$7,8,0),1,1) -> 286270000 | D55: =OFFSET(InputPriceData!C$15,CalculationsAndCharts!$A55+$A$11,IF($C$7,8,0),1,1) -> 10597.90039 | E55: =OFFSET(InputPriceData!D$15,CalculationsAndCharts!$A55+$A$11,IF($C$7,8,0),1,1) -> 10643.04981 | F55: =OFFSET(InputPriceData!E$15,CalculationsAndCharts!$A55+$A$11,IF($C$7,8,0),1,1) -> 10560.58008 | G55: =OFFSET(InputPriceData!F$15,CalculationsAndCharts!$A55+$A$11,IF($C$7,8,0),1,1) -> 10592.20996 | H55: 19.660156 | I55: 7.089844 | J55: 449.56055 | K55: 0.04373194223 | L55: 0.09084934156 | M55: 0.008253602861 | N55: 10512.1312 | O55: 10643.04981 | P55: 10417.08008 | Q55: 0.550029602 | R55: 0.3957167496 | S55: 0.1565917459 | T55: 10544.32889 | U55: FALSE | V55: FALSE | Y55: =IF($R$4,N55,NA()) -> 10512.1312 | Z55: 10544.32889 | AP55: 286270000
A56: 24 | B56: =OFFSET(InputPriceData!B$15,CalculationsAndCharts!$A56+$A$11,0,1,1) -> 2004-12-02 | C56: =OFFSET(InputPriceData!G$15,CalculationsAndCharts!$A56+$A$11,IF($C$7,8,0),1,1) -> 296050000 | D56: =OFFSET(InputPriceData!C$15,CalculationsAndCharts!$A56+$A$11,IF($C$7,8,0),1,1) -> 10590.44043 | E56: =OFFSET(InputPriceData!D$15,CalculationsAndCharts!$A56+$A$11,IF($C$7,8,0),1,1) -> 10629.16016 | F56: =OFFSET(InputPriceData!E$15,CalculationsAndCharts!$A56+$A$11,IF($C$7,8,0),1,1) -> 10544.76953 | G56: =OFFSET(InputPriceData!F$15,CalculationsAndCharts!$A56+$A$11,IF($C$7,8,0),1,1) -> 10585.12012 | H56: 35.549804 | I56: 5.09961 | J56: 465.450198 | K56: 0.07637724541 | L56: 0.1105067284 | M56: 0.01221173703 | N56: 10511.46476 | O56: 10629.16016 | P56: 10417.08008 | Q56: 0.5846848095 | R56: 0.4165844014 | S56: 0.1735425635 | T56: 10535.43903 | U56: FALSE | V56: FALSE | Y56: 10511.46476 | Z56: 10535.43903 | AP56: 296050000
A57: 25 | B57: =OFFSET(InputPriceData!B$15,CalculationsAndCharts!$A57+$A$11,0,1,1) -> 2004-12-01 | C57: =OFFSET(InputPriceData!G$15,CalculationsAndCharts!$A57+$A$11,IF($C$7,8,0),1,1) -> 307970000 | D57: =OFFSET(InputPriceData!C$15,CalculationsAndCharts!$A57+$A$11,IF($C$7,8,0),1,1) -> 10425.79981 | E57: =OFFSET(InputPriceData!D$15,CalculationsAndCharts!$A57+$A$11,IF($C$7,8,0),1,1) -> 10590.21973 | F57: =OFFSET(InputPriceData!E$15,CalculationsAndCharts!$A57+$A$11,IF($C$7,8,0),1,1) -> 10425.75977 | G57: =OFFSET(InputPriceData!F$15,CalculationsAndCharts!$A57+$A$11,IF($C$7,8,0),1,1) -> 10590.21973 | H57: 102.569336 | I57: 162.200196 | J57: 522.27051 | K57: 0.1963912073 | L57: 0.1827732001 | M57: 0.03340604267 | N57: 10510.55418 | O57: 10602.84961 | P57: 10417.08008 | Q57: 0.8640263349 | R57: 0.5847900511 | S57: 0.3419794039 | T57: 10525.00682 | U57: TRUE | V57: FALSE | Y57: 10510.55418 | Z57: 10525.00682 | AA57: 11139.77207 | AO57: 307970000
A58: 26 | B58: =OFFSET(InputPriceData!B$15,CalculationsAndCharts!$A58+$A$11,0,1,1) -> 2004-11-30 | C58: =OFFSET(InputPriceData!G$15,CalculationsAndCharts!$A58+$A$11,IF($C$7,8,0),1,1) -> 286900000 | D58: =OFFSET(InputPriceData!C$15,CalculationsAndCharts!$A58+$A$11,IF($C$7,8,0),1,1) -> 10475.26953 | E58: =OFFSET(InputPriceData!D$15,CalculationsAndCharts!$A58+$A$11,IF($C$7,8,0),1,1) -> 10483.13965 | F58: =OFFSET(InputPriceData!E$15,CalculationsAndCharts!$A58+$A$11,IF($C$7,8,0),1,1) -> 10428.01953 | G58: =OFFSET(InputPriceData!F$15,CalculationsAndCharts!$A58+$A$11,IF($C$7,8,0),1,1) -> 10428.01953 | H58: 122.220703 | I58: 47.88086 | J58: 422.660157 | K58: 0.2891701547 | L58: 0.2386400932 | M58: 0.05694909407 | N58: 10507.80089 | O58: 10602.84961 | P58: 10417.08008 | Q58: 0.8822255411 | R58: 0.5957487129 | S58: 0.3549165289 | T58: 10491.11506 | U58: FALSE | V58: TRUE | Y58: 10507.80089 | Z58: 10491.11506 | AB58: 11139.77207 | AP58: 286900000
A59: 27 | B59: =OFFSET(InputPriceData!B$15,CalculationsAndCharts!$A59+$A$11,0,1,1) -> 2004-11-29 | C59: =OFFSET(InputPriceData!G$15,CalculationsAndCharts!$A59+$A$11,IF($C$7,8,0),1,1) -> 247670000 | D59: =OFFSET(InputPriceData!C$15,CalculationsAndCharts!$A59+$A$11,IF($C$7,8,0),1,1) -> 10520.63965 | E59: =OFFSET(InputPriceData!D$15,CalculationsAndCharts!$A59+$A$11,IF($C$7,8,0),1,1) -> 10557.41016 | F59: =OFFSET(InputPriceData!E$15,CalculationsAndCharts!$A59+$A$11,IF($C$7,8,0),1,1) -> 10417.08008 | G59: =OFFSET(InputPriceData!F$15,CalculationsAndCharts!$A59+$A$11,IF($C$7,8,0),1,1) -> 10475.90039 | H59: 63.109375 | I59: 46.330078 | J59: 386.009765 | K59: 0.1634916542 | L59: 0.1629627165 | M59: 0.02655684696 | N59: 10512.61874 | O59: 10602.84961 | P59: 10417.08008 | Q59: 0.3667388545 | R59: 0.2853481274 | S59: 0.08142355383 | T59: 10525.8294 | U59: FALSE | V59: FALSE | Y59: 10512.61874 | Z59: 10525.8294 | AP59: 247670000
A60: 28 | B60: =OFFSET(InputPriceData!B$15,CalculationsAndCharts!$A60+$A$11,0,1,1) -> 2004-11-26 | C60: =OFFSET(InputPriceData!G$15,CalculationsAndCharts!$A60+$A$11,IF($C$7,8,0),1,1) -> 91510000 | D60: =OFFSET(InputPriceData!C$15,CalculationsAndCharts!$A60+$A$11,IF($C$7,8,0),1,1) -> 10518.69043 | E60: =OFFSET(InputPriceData!D$15,CalculationsAndCharts!$A60+$A$11,IF($C$7,8,0),1,1) -> 10543.29004 | F60: =OFFSET(InputPriceData!E$15,CalculationsAndCharts!$A60+$A$11,IF($C$7,8,0),1,1) -> 10508.55957 | G60: =OFFSET(InputPriceData!F$15,CalculationsAndCharts!$A60+$A$11,IF($C$7,8,0),1,1) -> 10522.23047 | H60: 52.390625 | I60: 1.920899 | J60: 408.849609 | K60: 0.1281415558 | L60: 0.1416766358 | M60: 0.02007226912 | N60: 10513.62047 | O60: 10602.84961 | P60: 10386.95019 | Q60: 0.2531787048 | R60: 0.2169678222 | S60: 0.04707503589 | T60: 10530.25516 | U60: FALSE | V60: FALSE | Y60: 10513.62047 | Z60: 10530.25516 | AO60: 91510000
A61: 29 | B61: =OFFSET(InputPriceData!B$15,CalculationsAndCharts!$A61+$A$11,0,1,1) -> 2004-11-24 | C61: =OFFSET(InputPriceData!G$15,CalculationsAndCharts!$A61+$A$11,IF($C$7,8,0),1,1) -> 204070000 | D61: =OFFSET(InputPriceData!C$15,CalculationsAndCharts!$A61+$A$11,IF($C$7,8,0),1,1) -> 10493.86035 | E61: =OFFSET(InputPriceData!D$15,CalculationsAndCharts!$A61+$A$11,IF($C$7,8,0),1,1) -> 10527.40039 | F61: =OFFSET(InputPriceData!E$15,CalculationsAndCharts!$A61+$A$11,IF($C$7,8,0),1,1) -> 10482.25977 | G61: =OFFSET(InputPriceData!F$15,CalculationsAndCharts!$A61+$A$11,IF($C$7,8,0),1,1) -> 10520.30957 | H61: 134.829101 | I61: 27.709961 | J61: 491.288085 | K61: 0.2744399979 | L61: 0.2297703213 | M61: 0.05279440055 | N61: 10513.44411 | O61: 10602.84961 | P61: 10378.58984 | Q61: 0.2638890084 | R61: 0.2234170373 | S61: 0.04991517255 | T61: 10530.65158 | U61: FALSE | V61: FALSE | Y61: 10513.44411 | Z61: 10530.65158 | AO61: 204070000
A62: 30 | B62: =OFFSET(InputPriceData!B$15,CalculationsAndCharts!$A62+$A$11,0,1,1) -> 2004-11-23 | C62: =OFFSET(InputPriceData!G$15,CalculationsAndCharts!$A62+$A$11,IF($C$7,8,0),1,1) -> 254780000 | D62: =OFFSET(InputPriceData!C$15,CalculationsAndCharts!$A62+$A$11,IF($C$7,8,0),1,1) -> 10486.69043 | E62: =OFFSET(InputPriceData!D$15,CalculationsAndCharts!$A62+$A$11,IF($C$7,8,0),1,1) -> 10514.99023 | F62: =OFFSET(InputPriceData!E$15,CalculationsAndCharts!$A62+$A$11,IF($C$7,8,0),1,1) -> 10436.37988 | G62: =OFFSET(InputPriceData!F$15,CalculationsAndCharts!$A62+$A$11,IF($C$7,8,0),1,1) -> 10492.59961 | H62: 106.229492 | I62: 3.179687 | J62: 464.467772 | K62: 0.2287122991 | L62: 0.2022353629 | M62: 0.04089914201 | N62: 10513.06145 | O62: 10602.84961 | P62: 10368.58984 | Q62: 0.05873720995 | R62: 0.09988477158 | S62: 0.009976967594 | T62: 10531.19493 | U62: FALSE | V62: FALSE | Y62: 10513.06145 | Z62: 10531.19493 | AO62: 254780000
A63: 31 | B63: =OFFSET(InputPriceData!B$15,CalculationsAndCharts!$A63+$A$11,0,1,1) -> 2004-11-22 | C63: =OFFSET(InputPriceData!G$15,CalculationsAndCharts!$A63+$A$11,IF($C$7,8,0),1,1) -> 240410000 | D63: =OFFSET(InputPriceData!C$15,CalculationsAndCharts!$A63+$A$11,IF($C$7,8,0),1,1) -> 10455.73047 | E63: =OFFSET(InputPriceData!D$15,CalculationsAndCharts!$A63+$A$11,IF($C$7,8,0),1,1) -> 10508.04004 | F63: =OFFSET(InputPriceData!E$15,CalculationsAndCharts!$A63+$A$11,IF($C$7,8,0),1,1) -> 10432.00977 | G63: =OFFSET(InputPriceData!F$15,CalculationsAndCharts!$A63+$A$11,IF($C$7,8,0),1,1) -> 10489.41992 | H63: 98.110352 | I63: 32.509766 | J63: 466.227538 | K63: 0.2104344853 | L63: 0.1912293675 | M63: 0.036568671 | N63: 10513.934 | O63: 10602.84961 | P63: 10361.44043 | Q63: 0.06027030563 | R63: 0.100807926 | S63: 0.01016223794 | T63: 10531.58387 | U63: FALSE | V63: FALSE | Y63: 10513.934 | Z63: 10531.58387 | AO63: 240410000
A64: 32 | B64: =OFFSET(InputPriceData!B$15,CalculationsAndCharts!$A64+$A$11,0,1,1) -> 2004-11-19 | C64: =OFFSET(InputPriceData!G$15,CalculationsAndCharts!$A64+$A$11,IF($C$7,8,0),1,1) -> 275340000 | D64: =OFFSET(InputPriceData!C$15,CalculationsAndCharts!$A64+$A$11,IF($C$7,8,0),1,1) -> 10571.62988 | E64: =OFFSET(InputPriceData!D$15,CalculationsAndCharts!$A64+$A$11,IF($C$7,8,0),1,1) -> 10573.74023 | F64: =OFFSET(InputPriceData!E$15,CalculationsAndCharts!$A64+$A$11,IF($C$7,8,0),1,1) -> 10438.58008 | G64: =OFFSET(InputPriceData!F$15,CalculationsAndCharts!$A64+$A$11,IF($C$7,8,0),1,1) -> 10456.91016 | H64: 69.370117 | I64: 115.639649 | J64: 437.487303 | K64: 0.1585648693 | L64: 0.1599960503 | M64: 0.02559873611 | N64: 10514.86448 | O64: 10602.84961 | P64: 10316.98047 | Q64: 0.02102278686 | R64: 0.07717501144 | S64: 0.005955982391 | T64: 10532.01675 | U64: FALSE | V64: FALSE | Y64: 10514.86448 | Z64: 10532.01675 | AP64: 275340000
A65: 33 | B65: =OFFSET(InputPriceData!B$15,CalculationsAndCharts!$A65+$A$11,0,1,1) -> 2004-11-18 | C65: =OFFSET(InputPriceData!G$15,CalculationsAndCharts!$A65+$A$11,IF($C$7,8,0),1,1) -> 242230000 | D65: =OFFSET(InputPriceData!C$15,CalculationsAndCharts!$A65+$A$11,IF($C$7,8,0),1,1) -> 10549.20019 | E65: =OFFSET(InputPriceData!D$15,CalculationsAndCharts!$A65+$A$11,IF($C$7,8,0),1,1) -> 10585.25977 | F65: =OFFSET(InputPriceData!E$15,CalculationsAndCharts!$A65+$A$11,IF($C$7,8,0),1,1) -> 10547.38965 | G65: =OFFSET(InputPriceData!F$15,CalculationsAndCharts!$A65+$A$11,IF($C$7,8,0),1,1) -> 10572.54981 | H65: 257.790039 | I65: 22.979492 | J65: 394.627927 | K65: 0.653248342 | L65: 0.4578699693 | M65: 0.2096449088 | N65: 10516.38701 | O65: 10602.84961 | P65: 10127.98047 | Q65: 0.8723867211 | R65: 0.5898242622 | S65: 0.3478926602 | T65: 10532.46677 | U65: FALSE | V65: FALSE | Y65: 10516.38701 | Z65: 10532.46677 | AO65: 242230000
A66: 34 | B66: =OFFSET(InputPriceData!B$15,CalculationsAndCharts!$A66+$A$11,0,1,1) -> 2004-11-17 | C66: =OFFSET(InputPriceData!G$15,CalculationsAndCharts!$A66+$A$11,IF($C$7,8,0),1,1) -> 295230000 | D66: =OFFSET(InputPriceData!C$15,CalculationsAndCharts!$A66+$A$11,IF($C$7,8,0),1,1) -> 10481.83008 | E66: =OFFSET(InputPriceData!D$15,CalculationsAndCharts!$A66+$A$11,IF($C$7,8,0),1,1) -> 10602.84961 | F66: =OFFSET(InputPriceData!E$15,CalculationsAndCharts!$A66+$A$11,IF($C$7,8,0),1,1) -> 10481.83008 | G66: =OFFSET(InputPriceData!F$15,CalculationsAndCharts!$A66+$A$11,IF($C$7,8,0),1,1) -> 10549.57031 | H66: 412.520508 | I66: 61.919922 | J66: 549.358396 | K66: 0.7509132672 | L66: 0.5166789566 | M66: 0.2669571442 | N66: 10501.4896 | O66: 10602.84961 | P66: 10037.42969 | Q66: 0.8115407893 | R66: 0.5531858516 | S66: 0.3060145865 | T66: 10511.08287 | U66: FALSE | V66: FALSE | Y66: 10501.4896 | Z66: 10511.08287 | AO66: 295230000
A67: 35 | B67: =OFFSET(InputPriceData!B$15,CalculationsAndCharts!$A67+$A$11,0,1,1) -> 2004-11-16 | C67: =OFFSET(InputPriceData!G$15,CalculationsAndCharts!$A67+$A$11,IF($C$7,8,0),1,1) -> 237060000 | D67: =OFFSET(InputPriceData!C$15,CalculationsAndCharts!$A67+$A$11,IF($C$7,8,0),1,1) -> 10549.79004 | E67: =OFFSET(InputPriceData!D$15,CalculationsAndCharts!$A67+$A$11,IF($C$7,8,0),1,1) -> 10549.79004 | F67: =OFFSET(InputPriceData!E$15,CalculationsAndCharts!$A67+$A$11,IF($C$7,8,0),1,1) -> 10477.95019 | G67: =OFFSET(InputPriceData!F$15,CalculationsAndCharts!$A67+$A$11,IF($C$7,8,0),1,1) -> 10487.65039 | H67: 451.919922 | I67: 62.589843 | J67: 588.75781 | K67: 0.7675820419 | L67: 0.5267160683 | M67: 0.2774298166 | N67: 10483.97972 | O67: 10563.01953 | P67: 10011.17969 | Q67: 0.7268441525 | R67: 0.5021857262 | S67: 0.2521905036 | T67: 10494.11174 | U67: FALSE | V67: FALSE | Y67: 10483.97972 | Z67: 10494.11174 | AP67: 237060000
A68: 36 | B68: =OFFSET(InputPriceData!B$15,CalculationsAndCharts!$A68+$A$11,0,1,1) -> 2004-11-15 | C68: =OFFSET(InputPriceData!G$15,CalculationsAndCharts!$A68+$A$11,IF($C$7,8,0),1,1) -> 266460000 | D68: =OFFSET(InputPriceData!C$15,CalculationsAndCharts!$A68+$A$11,IF($C$7,8,0),1,1) -> 10541.88965 | E68: =OFFSET(InputPriceData!D$15,CalculationsAndCharts!$A68+$A$11,IF($C$7,8,0),1,1) -> 10563.01953 | F68: =OFFSET(InputPriceData!E$15,CalculationsAndCharts!$A68+$A$11,IF($C$7,8,0),1,1) -> 10517.12988 | G68: =OFFSET(InputPriceData!F$15,CalculationsAndCharts!$A68+$A$11,IF($C$7,8,0),1,1) -> 10550.24023 | H68: 495.850586 | I68: 11.230468 | J68: 544.827146 | K68: 0.9101062413 | L68: 0.6125370915 | M68: 0.3752016885 | N68: 10482.57037 | O68: 10563.01953 | P68: 10010.15039 | Q68: 0.9537709882 | R68: 0.6388298424 | S68: 0.4081035675 | T68: 10496.29076 | U68: FALSE | V68: FALSE | Y68: 10482.57037 | Z68: 10496.29076 | AO68: 266460000
A69: 37 | B69: =OFFSET(InputPriceData!B$15,CalculationsAndCharts!$A69+$A$11,0,1,1) -> 2004-11-12 | C69: =OFFSET(InputPriceData!G$15,CalculationsAndCharts!$A69+$A$11,IF($C$7,8,0),1,1) -> 322250000 | D69: =OFFSET(InputPriceData!C$15,CalculationsAndCharts!$A69+$A$11,IF($C$7,8,0),1,1) -> 10469.20996 | E69: =OFFSET(InputPriceData!D$15,CalculationsAndCharts!$A69+$A$11,IF($C$7,8,0),1,1) -> 10539.59961 | F69: =OFFSET(InputPriceData!E$15,CalculationsAndCharts!$A69+$A$11,IF($C$7,8,0),1,1) -> 10460.40039 | G69: =OFFSET(InputPriceData!F$15,CalculationsAndCharts!$A69+$A$11,IF($C$7,8,0),1,1) -> 10539.00977 | H69: 511.540039 | I69: 69.169922 | J69: 560.516599 | K69: 0.9126224628 | L69: 0.6140522356 | M69: 0.3770601481 | N69: 10441.93351 | O69: 10539.59961 | P69: 9990.830078 | Q69: 0.997850307 | R69: 0.6653722279 | S69: 0.4427202017 | T69: 10459.09342 | U69: FALSE | V69: FALSE | Y69: 10441.93351 | Z69: 10459.09342 | AO69: 322250000
A70: 38 | B70: =OFFSET(InputPriceData!B$15,CalculationsAndCharts!$A70+$A$11,0,1,1) -> 2004-11-11 | C70: =OFFSET(InputPriceData!G$15,CalculationsAndCharts!$A70+$A$11,IF($C$7,8,0),1,1) -> 254080000 | D70: =OFFSET(InputPriceData!C$15,CalculationsAndCharts!$A70+$A$11,IF($C$7,8,0),1,1) -> 10386.95019 | E70: =OFFSET(InputPriceData!D$15,CalculationsAndCharts!$A70+$A$11,IF($C$7,8,0),1,1) -> 10486.65039 | F70: =OFFSET(InputPriceData!E$15,CalculationsAndCharts!$A70+$A$11,IF($C$7,8,0),1,1) -> 10386.95019 | G70: =OFFSET(InputPriceData!F$15,CalculationsAndCharts!$A70+$A$11,IF($C$7,8,0),1,1) -> 10469.83984 | H70: 465.299805 | I70: 84.359375 | J70: 514.276365 | K70: 0.9047660687 | L70: 0.6093215037 | M70: 0.3712726949 | N70: 10383.17408 | O70: 10486.65039 | P70: 9952.480469 | Q70: 0.937059178 | R70: 0.6287668168 | S70: 0.39534771 | T70: 10395.60541 | U70: FALSE | V70: FALSE | Y70: 10383.17408 | Z70: 10395.60541 | AO70: 254080000
A71: 39 | B71: =OFFSET(InputPriceData!B$15,CalculationsAndCharts!$A71+$A$11,0,1,1) -> 2004-11-10 | C71: =OFFSET(InputPriceData!G$15,CalculationsAndCharts!$A71+$A$11,IF($C$7,8,0),1,1) -> 281290000 | D71: =OFFSET(InputPriceData!C$15,CalculationsAndCharts!$A71+$A$11,IF($C$7,8,0),1,1) -> 10378.58984 | E71: =OFFSET(InputPriceData!D$15,CalculationsAndCharts!$A71+$A$11,IF($C$7,8,0),1,1) -> 10439.40039 | F71: =OFFSET(InputPriceData!E$15,CalculationsAndCharts!$A71+$A$11,IF($C$7,8,0),1,1) -> 10378.58984 | G71: =OFFSET(InputPriceData!F$15,CalculationsAndCharts!$A71+$A$11,IF($C$7,8,0),1,1) -> 10385.48047 | H71: 383.450196 | I71: 0.889648 | J71: 432.426756 | K71: 0.8867402183 | L71: 0.5984672282 | M71: 0.3581630232 | N71: 10331.99668 | O71: 10439.40039 | P71: 9841.950195 | Q71: 0.81949986 | R71: 0.5579784103 | S71: 0.3113399064 | T71: 10347.06775 | U71: FALSE | V71: FALSE | Y71: 10331.99668 | Z71: 10347.06775 | AO71: 281290000
A72: 40 | B72: =OFFSET(InputPriceData!B$15,CalculationsAndCharts!$A72+$A$11,0,1,1) -> 2004-11-09 | C72: =OFFSET(InputPriceData!G$15,CalculationsAndCharts!$A72+$A$11,IF($C$7,8,0),1,1) -> 248430000 | D72: =OFFSET(InputPriceData!C$15,CalculationsAndCharts!$A72+$A$11,IF($C$7,8,0),1,1) -> 10387.62012 | E72: =OFFSET(InputPriceData!D$15,CalculationsAndCharts!$A72+$A$11,IF($C$7,8,0),1,1) -> 10427.80957 | F72: =OFFSET(InputPriceData!E$15,CalculationsAndCharts!$A72+$A$11,IF($C$7,8,0),1,1) -> 10368.58984 | G72: =OFFSET(InputPriceData!F$15,CalculationsAndCharts!$A72+$A$11,IF($C$7,8,0),1,1) -> 10386.37012 | H72: 497.889648 | I72: 4.939453 | J72: 545.086912 | K72: 0.9134133237 | L72: 0.614528453 | M72: 0.3776452195 | N72: 10302.15123 | O72: 10427.80957 | P72: 9749.549805 | Q72: 0.8778065422 | R72: 0.5930878103 | S72: 0.3517531508 | T72: 10329.70154 | U72: FALSE | V72: FALSE | Y72: 10302.15123 | Z72: 10329.70154 | AP72: 248430000
A73: 41 | B73: =OFFSET(InputPriceData!B$15,CalculationsAndCharts!$A73+$A$11,0,1,1) -> 2004-11-08 | C73: =OFFSET(InputPriceData!G$15,CalculationsAndCharts!$A73+$A$11,IF($C$7,8,0),1,1) -> 258040000 | D73: =OFFSET(InputPriceData!C$15,CalculationsAndCharts!$A73+$A$11,IF($C$7,8,0),1,1) -> 10385.15039 | E73: =OFFSET(InputPriceData!D$15,CalculationsAndCharts!$A73+$A$11,IF($C$7,8,0),1,1) -> 10405.69043 | F73: =OFFSET(InputPriceData!E$15,CalculationsAndCharts!$A73+$A$11,IF($C$7,8,0),1,1) -> 10361.44043 | G73: =OFFSET(InputPriceData!F$15,CalculationsAndCharts!$A73+$A$11,IF($C$7,8,0),1,1) -> 10391.30957 | H73: 641.319336 | I73: 3.769531 | J73: 678.637694 | K73: 0.9450098951 | L73: 0.6335543454 | M73: 0.4013911086 | N73: 10251.04716 | O73: 10416.66992 | P73: 9708.400391 | Q73: 0.9283878499 | R73: 0.623545372 | S73: 0.3888088309 | T73: 10298.95191 | U73: FALSE | V73: FALSE | Y73: 10251.04716 | Z73: 10298.95191 | AO73: 258040000
A74: 42 | B74: =OFFSET(InputPriceData!B$15,CalculationsAndCharts!$A74+$A$11,0,1,1) -> 2004-11-05 | C74: =OFFSET(InputPriceData!G$15,CalculationsAndCharts!$A74+$A$11,IF($C$7,8,0),1,1) -> 325770000 | D74: =OFFSET(InputPriceData!C$15,CalculationsAndCharts!$A74+$A$11,IF($C$7,8,0),1,1) -> 10317.04981 | E74: =OFFSET(InputPriceData!D$15,CalculationsAndCharts!$A74+$A$11,IF($C$7,8,0),1,1) -> 10416.66992 | F74: =OFFSET(InputPriceData!E$15,CalculationsAndCharts!$A74+$A$11,IF($C$7,8,0),1,1) -> 10316.98047 | G74: =OFFSET(InputPriceData!F$15,CalculationsAndCharts!$A74+$A$11,IF($C$7,8,0),1,1) -> 10387.54004 | H74: 629.730469 | I74: 72.780273 | J74: 682.687499 | K74: 0.9224285928 | L74: 0.6199570021 | M74: 0.3843466844 | N74: 10156.99562 | O74: 10416.66992 | P74: 9708.400391 | Q74: 0.9177435094 | R74: 0.6171358766 | S74: 0.3808566902 | T74: 10240.19865 | U74: FALSE | V74: FALSE | Y74: 10156.99562 | Z74: 10240.19865 | AO74: 325770000
A75: 43 | B75: =OFFSET(InputPriceData!B$15,CalculationsAndCharts!$A75+$A$11,0,1,1) -> 2004-11-04 | C75: =OFFSET(InputPriceData!G$15,CalculationsAndCharts!$A75+$A$11,IF($C$7,8,0),1,1) -> 365770000 | D75: =OFFSET(InputPriceData!C$15,CalculationsAndCharts!$A75+$A$11,IF($C$7,8,0),1,1) -> 10132.48047 | E75: =OFFSET(InputPriceData!D$15,CalculationsAndCharts!$A75+$A$11,IF($C$7,8,0),1,1) -> 10318.23047 | F75: =OFFSET(InputPriceData!E$15,CalculationsAndCharts!$A75+$A$11,IF($C$7,8,0),1,1) -> 10127.98047 | G75: =OFFSET(InputPriceData!F$15,CalculationsAndCharts!$A75+$A$11,IF($C$7,8,0),1,1) -> 10314.75977 | H75: 449 | I75: 177.709961 | J75: 717.857422 | K75: 0.6254723936 | L75: 0.4411446671 | M75: 0.1946086173 | N75: 10013.06887 | O75: 10318.23047 | P75: 9708.400391 | Q75: 0.9886174752 | R75: 0.6598126732 | S75: 0.4353527637 | T75: 10149.56381 | U75: FALSE | V75: FALSE | Y75: 10013.06887 | Z75: 10149.56381 | AO75: 365770000
A76: 44 | B76: =OFFSET(InputPriceData!B$15,CalculationsAndCharts!$A76+$A$11,0,1,1) -> 2004-11-03 | C76: =OFFSET(InputPriceData!G$15,CalculationsAndCharts!$A76+$A$11,IF($C$7,8,0),1,1) -> 332790000 | D76: =OFFSET(InputPriceData!C$15,CalculationsAndCharts!$A76+$A$11,IF($C$7,8,0),1,1) -> 10037.5 | E76: =OFFSET(InputPriceData!D$15,CalculationsAndCharts!$A76+$A$11,IF($C$7,8,0),1,1) -> 10215.50977 | F76: =OFFSET(InputPriceData!E$15,CalculationsAndCharts!$A76+$A$11,IF($C$7,8,0),1,1) -> 10037.42969 | G76: =OFFSET(InputPriceData!F$15,CalculationsAndCharts!$A76+$A$11,IF($C$7,8,0),1,1) -> 10137.04981 | H76: 250.120117 | I76: 101.319336 | J76: 561.317383 | K76: 0.4455948178 | L76: 0.3328312881 | M76: 0.1107766664 | N76: 9940.170592 | O76: 10215.50977 | P76: 9708.400391 | Q76: 0.6905600059 | R76: 0.4803372079 | S76: 0.2307238333 | T76: 10022.19487 | U76: FALSE | V76: FALSE | Y76: 9940.170592 | Z76: 10022.19487 | AO76: 332790000
A77: 45 | B77: =OFFSET(InputPriceData!B$15,CalculationsAndCharts!$A77+$A$11,0,1,1) -> 2004-11-02 | C77: =OFFSET(InputPriceData!G$15,CalculationsAndCharts!$A77+$A$11,IF($C$7,8,0),1,1) -> 369480000 | D77: =OFFSET(InputPriceData!C$15,CalculationsAndCharts!$A77+$A$11,IF($C$7,8,0),1,1) -> 10053.87012 | E77: =OFFSET(InputPriceData!D$15,CalculationsAndCharts!$A77+$A$11,IF($C$7,8,0),1,1) -> 10132.99023 | F77: =OFFSET(InputPriceData!E$15,CalculationsAndCharts!$A77+$A$11,IF($C$7,8,0),1,1) -> 10011.17969 | G77: =OFFSET(InputPriceData!F$15,CalculationsAndCharts!$A77+$A$11,IF($C$7,8,0),1,1) -> 10035.73047 | H77: 138.110352 | I77: 18.659179 | J77: 470.688476 | K77: 0.2934219957 | L77: 0.2412003415 | M77: 0.05817760475 | N77: 9915.643994 | O77: 10132.99023 | P77: 9708.400391 | Q77: 0.5418648533 | R77: 0.3908003418 | S77: 0.1527249071 | T77: 9987.747202 | U77: FALSE | V77: FALSE | Y77: 9915.643994 | Z77: 9987.747202 | AP77: 369480000
A78: 46 | B78: =OFFSET(InputPriceData!B$15,CalculationsAndCharts!$A78+$A$11,0,1,1) -> 2004-11-01 | C78: =OFFSET(InputPriceData!G$15,CalculationsAndCharts!$A78+$A$11,IF($C$7,8,0),1,1) -> 267040000 | D78: =OFFSET(InputPriceData!C$15,CalculationsAndCharts!$A78+$A$11,IF($C$7,8,0),1,1) -> 10028.73047 | E78: =OFFSET(InputPriceData!D$15,CalculationsAndCharts!$A78+$A$11,IF($C$7,8,0),1,1) -> 10076.58984 | F78: =OFFSET(InputPriceData!E$15,CalculationsAndCharts!$A78+$A$11,IF($C$7,8,0),1,1) -> 10010.15039 | G78: =OFFSET(InputPriceData!F$15,CalculationsAndCharts!$A78+$A$11,IF($C$7,8,0),1,1) -> 10054.38965 | H78: 98.069335 | I78: 26.919921 | J78: 510.729493 | K78: 0.1920181551 | L78: 0.1801399644 | M78: 0.03245040676 | N78: 9908.226095 | O78: 10076.58984 | P78: 9708.400391 | Q78: 0.8794088434 | R78: 0.5940526369 | S78: 0.3528985354 | T78: 9979.098016 | U78: FALSE | V78: FALSE | Y78: 9908.226095 | Z78: 9979.098016 | AO78: 267040000
A79: 47 | B79: =OFFSET(InputPriceData!B$15,CalculationsAndCharts!$A79+$A$11,0,1,1) -> 2004-10-29 | C79: =OFFSET(InputPriceData!G$15,CalculationsAndCharts!$A79+$A$11,IF($C$7,8,0),1,1) -> 262950000 | D79: =OFFSET(InputPriceData!C$15,CalculationsAndCharts!$A79+$A$11,IF($C$7,8,0),1,1) -> 10004.69043 | E79: =OFFSET(InputPriceData!D$15,CalculationsAndCharts!$A79+$A$11,IF($C$7,8,0),1,1) -> 10044.13965 | F79: =OFFSET(InputPriceData!E$15,CalculationsAndCharts!$A79+$A$11,IF($C$7,8,0),1,1) -> 9990.830078 | G79: =OFFSET(InputPriceData!F$15,CalculationsAndCharts!$A79+$A$11,IF($C$7,8,0),1,1) -> 10027.46973 | H79: 94.089844 | I79: 22.929688 | J79: 506.750002 | K79: 0.1856731004 | L79: 0.1763192863 | M79: 0.03108849071 | N79: 9903.323952 | O79: 10044.95019 | P79: 9708.400391 | Q79: 0.896119577 | R79: 0.6041150141 | S79: 0.3649549503 | T79: 9938.037521 | U79: TRUE | V79: FALSE | Y79: 9903.323952 | Z79: 9938.037521 | AA79: 11139.77207 | AO79: 262950000
A80: 48 | B80: =OFFSET(InputPriceData!B$15,CalculationsAndCharts!$A80+$A$11,0,1,1) -> 2004-10-28 | C80: =OFFSET(InputPriceData!G$15,CalculationsAndCharts!$A80+$A$11,IF($C$7,8,0),1,1) -> 254490000 | D80: =OFFSET(InputPriceData!C$15,CalculationsAndCharts!$A80+$A$11,IF($C$7,8,0),1,1) -> 9998.94043 | E80: =OFFSET(InputPriceData!D$15,CalculationsAndCharts!$A80+$A$11,IF($C$7,8,0),1,1) -> 10044.95019 | F80: =OFFSET(InputPriceData!E$15,CalculationsAndCharts!$A80+$A$11,IF($C$7,8,0),1,1) -> 9952.480469 | G80: =OFFSET(InputPriceData!F$15,CalculationsAndCharts!$A80+$A$11,IF($C$7,8,0),1,1) -> 10004.54004 | H80: 110.089844 | I80: 2.509766 | J80: 522.750002 | K80: 0.2105975009 | L80: 0.1913275274 | M80: 0.03660622274 | N80: 9899.340611 | O80: 10044.95019 | P80: 9708.400391 | Q80: 0.7598563094 | R80: 0.5220640143 | S80: 0.272550835 | T80: 9886.641598 | U80: FALSE | V80: FALSE | Y80: 9899.340611 | Z80: 9886.641598 | AO80: 254490000
A81: 49 | B81: =OFFSET(InputPriceData!B$15,CalculationsAndCharts!$A81+$A$11,0,1,1) -> 2004-10-27 | C81: =OFFSET(InputPriceData!G$15,CalculationsAndCharts!$A81+$A$11,IF($C$7,8,0),1,1) -> 256200000 | D81: =OFFSET(InputPriceData!C$15,CalculationsAndCharts!$A81+$A$11,IF($C$7,8,0),1,1) -> 9888.25 | E81: =OFFSET(InputPriceData!D$15,CalculationsAndCharts!$A81+$A$11,IF($C$7,8,0),1,1) -> 10018.54981 | F81: =OFFSET(InputPriceData!E$15,CalculationsAndCharts!$A81+$A$11,IF($C$7,8,0),1,1) -> 9841.950195 | G81: =OFFSET(InputPriceData!F$15,CalculationsAndCharts!$A81+$A$11,IF($C$7,8,0),1,1) -> 10002.03027 | H81: 0.299805 | I81: 113.549804 | J81: 628.120119 | K81: 0.0004773052016 | L81: 0.06480353862 | M81: 0.004199498617 | N81: 9895.343332 | O81: 10127.16992 | P81: 9708.400391 | Q81: 0.4023459696 | R81: 0.306788971 | S81: 0.0941194727 | T81: 9842.469001 | U81: FALSE | V81: FALSE | Y81: 9895.343332 | Z81: 9842.469001 | AO81: 256200000
A82: 50 | B82: =OFFSET(InputPriceData!B$15,CalculationsAndCharts!$A82+$A$11,0,1,1) -> 2004-10-26 | C82: =OFFSET(InputPriceData!G$15,CalculationsAndCharts!$A82+$A$11,IF($C$7,8,0),1,1) -> 273770000 | D82: =OFFSET(InputPriceData!C$15,CalculationsAndCharts!$A82+$A$11,IF($C$7,8,0),1,1) -> 9750.589844 | E82: =OFFSET(InputPriceData!D$15,CalculationsAndCharts!$A82+$A$11,IF($C$7,8,0),1,1) -> 9888.480469 | F82: =OFFSET(InputPriceData!E$15,CalculationsAndCharts!$A82+$A$11,IF($C$7,8,0),1,1) -> 9749.549805 | G82: =OFFSET(InputPriceData!F$15,CalculationsAndCharts!$A82+$A$11,IF($C$7,8,0),1,1) -> 9888.480469 | H82: 188.699219 | I82: 138.490235 | J82: 589.419925 | K82: 0.3201439432 | L82: 0.2572909766 | M82: 0.06619864662 | N82: 9894.893411 | O82: 10127.16992 | P82: 9708.400391 | Q82: 0.1399561588 | R82: 0.1487908053 | S82: 0.02213870375 | T82: 9825.890852 | U82: FALSE | V82: FALSE | Y82: 9894.893411 | Z82: 9825.890852 | AO82: =IF(G82>=D82,C82,NA()) -> 273770000 | AP82: =IF(G82<D82,C82,NA()) -> 
A83: 51 | B83: =OFFSET(InputPriceData!B$15,CalculationsAndCharts!$A83+$A$11,0,1,1) -> 2004-10-25 | C83: =OFFSET(InputPriceData!G$15,CalculationsAndCharts!$A83+$A$11,IF($C$7,8,0),1,1) -> 233370000 | D83: =OFFSET(InputPriceData!C$15,CalculationsAndCharts!$A83+$A$11,IF($C$7,8,0),1,1) -> 9757.219727 | E83: =OFFSET(InputPriceData!D$15,CalculationsAndCharts!$A83+$A$11,IF($C$7,8,0),1,1) -> 9777.870117 | F83: =OFFSET(InputPriceData!E$15,CalculationsAndCharts!$A83+$A$11,IF($C$7,8,0),1,1) -> 9708.400391 | G83: =OFFSET(InputPriceData!F$15,CalculationsAndCharts!$A83+$A$11,IF($C$7,8,0),1,1) -> 9749.990234 | H83: 331.979493 | I83: 7.819336 | J83: 455.719729 | K83: 0.7284729448 | L83: 0.5031665044 | M83: 0.2531765312 | N83: 9895.348034 | O83: 10127.16992 | P83: 9708.400391 | Q83: 0.8013712082 | R83: 0.5470622329 | S83: 0.2992770866 | T83: 9824.473828 | U83: FALSE | V83: FALSE | Y83: 9895.348034 | Z83: 9824.473828 | AP83: 233370000
A84: 52 | B84: =OFFSET(InputPriceData!B$15,CalculationsAndCharts!$A84+$A$11,0,1,1) -> 2004-10-22 | C84: =OFFSET(InputPriceData!G$15,CalculationsAndCharts!$A84+$A$11,IF($C$7,8,0),1,1) -> 258220000 | D84: =OFFSET(InputPriceData!C$15,CalculationsAndCharts!$A84+$A$11,IF($C$7,8,0),1,1) -> 9863.849609 | E84: =OFFSET(InputPriceData!D$15,CalculationsAndCharts!$A84+$A$11,IF($C$7,8,0),1,1) -> 9883.25 | F84: =OFFSET(InputPriceData!E$15,CalculationsAndCharts!$A84+$A$11,IF($C$7,8,0),1,1) -> 9753.019531 | G84: =OFFSET(InputPriceData!F$15,CalculationsAndCharts!$A84+$A$11,IF($C$7,8,0),1,1) -> 9757.80957 | H84: 297.390625 | I84: 107.950196 | J84: 474.669925 | K84: 0.6265208924 | L84: 0.4417760212 | M84: 0.1951660529 | N84: 9944.624986 | O84: 10148.04004 | P84: 9753.019531 | Q84: 0.9757478971 | R84: 0.6520632499 | S84: 0.4251864818 | T84: 9856.285593 | U84: FALSE | V84: FALSE | Y84: 9944.624986 | Z84: 9856.285593 | AP84: 258220000
A85: 53 | B85: =OFFSET(InputPriceData!B$15,CalculationsAndCharts!$A85+$A$11,0,1,1) -> 2004-10-21 | C85: =OFFSET(InputPriceData!G$15,CalculationsAndCharts!$A85+$A$11,IF($C$7,8,0),1,1) -> 272050000 | D85: =OFFSET(InputPriceData!C$15,CalculationsAndCharts!$A85+$A$11,IF($C$7,8,0),1,1) -> 9884.650391 | E85: =OFFSET(InputPriceData!D$15,CalculationsAndCharts!$A85+$A$11,IF($C$7,8,0),1,1) -> 9903.150391 | F85: =OFFSET(InputPriceData!E$15,CalculationsAndCharts!$A85+$A$11,IF($C$7,8,0),1,1) -> 9800.870117 | G85: =OFFSET(InputPriceData!F$15,CalculationsAndCharts!$A85+$A$11,IF($C$7,8,0),1,1) -> 9865.759766 | H85: 259.640625 | I85: 21.169922 | J85: 436.919925 | K85: 0.5942521962 | L85: 0.4223454085 | M85: 0.1783756441 | N85: 9989.92629 | O85: 10240.95019 | P85: 9800.870117 | Q85: 0.7051007203 | R85: 0.4890929069 | S85: 0.2392118715 | T85: 9929.127781 | U85: FALSE | V85: FALSE | Y85: 9989.92629 | Z85: 9929.127781 | AP85: 272050000
A86: 54 | B86: =OFFSET(InputPriceData!B$15,CalculationsAndCharts!$A86+$A$11,0,1,1) -> 2004-10-20 | C86: =OFFSET(InputPriceData!G$15,CalculationsAndCharts!$A86+$A$11,IF($C$7,8,0),1,1) -> 272670000 | D86: =OFFSET(InputPriceData!C$15,CalculationsAndCharts!$A86+$A$11,IF($C$7,8,0),1,1) -> 9895.19043 | E86: =OFFSET(InputPriceData!D$15,CalculationsAndCharts!$A86+$A$11,IF($C$7,8,0),1,1) -> 9895.700195 | F86: =OFFSET(InputPriceData!E$15,CalculationsAndCharts!$A86+$A$11,IF($C$7,8,0),1,1) -> 9804.19043 | G86: =OFFSET(InputPriceData!F$15,CalculationsAndCharts!$A86+$A$11,IF($C$7,8,0),1,1) -> 9886.929688 | H86: 352.990234 | I86: 10.690429 | J86: 530.269534 | K86: 0.6656807743 | L86: 0.4653561652 | M86: 0.2165563605 | N86: 10016.88299 | O86: 10240.95019 | P86: 9804.19043 | Q86: 0.621122344 | R86: 0.4385252824 | S86: 0.1923044233 | T86: 9949.052358 | U86: FALSE | V86: FALSE | Y86: 10016.88299 | Z86: 9949.052358 | AP86: 272670000
A87: 55 | B87: =OFFSET(InputPriceData!B$15,CalculationsAndCharts!$A87+$A$11,0,1,1) -> 2004-10-19 | C87: =OFFSET(InputPriceData!G$15,CalculationsAndCharts!$A87+$A$11,IF($C$7,8,0),1,1) -> 264220000 | D87: =OFFSET(InputPriceData!C$15,CalculationsAndCharts!$A87+$A$11,IF($C$7,8,0),1,1) -> 9958.379883 | E87: =OFFSET(InputPriceData!D$15,CalculationsAndCharts!$A87+$A$11,IF($C$7,8,0),1,1) -> 10020.54981 | F87: =OFFSET(InputPriceData!E$15,CalculationsAndCharts!$A87+$A$11,IF($C$7,8,0),1,1) -> 9894.889648 | G87: =OFFSET(InputPriceData!F$15,CalculationsAndCharts!$A87+$A$11,IF($C$7,8,0),1,1) -> 9897.620117 | H87: 280.059571 | I87: 58.700196 | J87: 581.819339 | K87: 0.4813514303 | L87: 0.3543621516 | M87: 0.1255725345 | N87: 10052.80417 | O87: 10240.95019 | P87: 9861.629883 | Q87: 0.810238298 | R87: 0.5524015558 | S87: 0.3051474788 | T87: 9963.843158 | U87: FALSE | V87: FALSE | Y87: 10052.80417 | Z87: 9963.843158 | AP87: 264220000
A88: 56 | B88: =OFFSET(InputPriceData!B$15,CalculationsAndCharts!$A88+$A$11,0,1,1) -> 2004-10-18 | C88: =OFFSET(InputPriceData!G$15,CalculationsAndCharts!$A88+$A$11,IF($C$7,8,0),1,1) -> 227840000 | D88: =OFFSET(InputPriceData!C$15,CalculationsAndCharts!$A88+$A$11,IF($C$7,8,0),1,1) -> 9932.980469 | E88: =OFFSET(InputPriceData!D$15,CalculationsAndCharts!$A88+$A$11,IF($C$7,8,0),1,1) -> 9960.150391 | F88: =OFFSET(InputPriceData!E$15,CalculationsAndCharts!$A88+$A$11,IF($C$7,8,0),1,1) -> 9861.629883 | G88: =OFFSET(InputPriceData!F$15,CalculationsAndCharts!$A88+$A$11,IF($C$7,8,0),1,1) -> 9956.320313 | H88: 260.219726 | I88: 22.94043 | J88: 561.979494 | K88: 0.4630413187 | L88: 0.3433367081 | M88: 0.1178800951 | N88: 10075.08944 | O88: 10270.37012 | P88: 9861.629883 | Q88: 0.5366718413 | R88: 0.3876733668 | S88: 0.1502906393 | T88: 9992.925292 | U88: FALSE | V88: FALSE | Y88: 10075.08944 | Z88: 9992.925292 | AO88: 227840000
A89: 57 | B89: =OFFSET(InputPriceData!B$15,CalculationsAndCharts!$A89+$A$11,0,1,1) -> 2004-10-15 | C89: =OFFSET(InputPriceData!G$15,CalculationsAndCharts!$A89+$A$11,IF($C$7,8,0),1,1) -> 317590000 | D89: =OFFSET(InputPriceData!C$15,CalculationsAndCharts!$A89+$A$11,IF($C$7,8,0),1,1) -> 9895.629883 | E89: =OFFSET(InputPriceData!D$15,CalculationsAndCharts!$A89+$A$11,IF($C$7,8,0),1,1) -> 9982.709961 | F89: =OFFSET(InputPriceData!E$15,CalculationsAndCharts!$A89+$A$11,IF($C$7,8,0),1,1) -> 9895.549805 | G89: =OFFSET(InputPriceData!F$15,CalculationsAndCharts!$A89+$A$11,IF($C$7,8,0),1,1) -> 9933.379883 | H89: 259.270508 | I89: 38.929688 | J89: 562.928712 | K89: 0.4605743187 | L89: 0.3418512027 | M89: 0.1168622448 | N89: 10090.96088 | O89: 10270.37012 | P89: 9875.129883 | Q89: 0.7052425589 | R89: 0.489178315 | S89: 0.2392954239 | T89: 9999.399724 | U89: FALSE | V89: FALSE | Y89: 10090.96088 | Z89: 9999.399724 | AO89: 317590000
A90: 58 | B90: =OFFSET(InputPriceData!B$15,CalculationsAndCharts!$A90+$A$11,0,1,1) -> 2004-10-14 | C90: =OFFSET(InputPriceData!G$15,CalculationsAndCharts!$A90+$A$11,IF($C$7,8,0),1,1) -> 268650000 | D90: =OFFSET(InputPriceData!C$15,CalculationsAndCharts!$A90+$A$11,IF($C$7,8,0),1,1) -> 10002.54004 | E90: =OFFSET(InputPriceData!D$15,CalculationsAndCharts!$A90+$A$11,IF($C$7,8,0),1,1) -> 10003.36035 | F90: =OFFSET(InputPriceData!E$15,CalculationsAndCharts!$A90+$A$11,IF($C$7,8,0),1,1) -> 9875.129883 | G90: =OFFSET(InputPriceData!F$15,CalculationsAndCharts!$A90+$A$11,IF($C$7,8,0),1,1) -> 9894.450195 | H90: 185.819336 | I90: 107.879883 | J90: 636.379884 | K90: 0.2919943585 | L90: 0.240340689 | M90: 0.05776364679 | N90: 10111.81297 | O90: 10270.37012 | P90: 9875.129883 | Q90: 0.9022350948 | R90: 0.6077974765 | S90: 0.3694177724 | T90: 10020.16764 | U90: FALSE | V90: FALSE | Y90: 10111.81297 | Z90: 10020.16764 | AP90: 268650000
A91: 59 | B91: =OFFSET(InputPriceData!B$15,CalculationsAndCharts!$A91+$A$11,0,1,1) -> 2004-10-13 | C91: =OFFSET(InputPriceData!G$15,CalculationsAndCharts!$A91+$A$11,IF($C$7,8,0),1,1) -> 276800000 | D91: =OFFSET(InputPriceData!C$15,CalculationsAndCharts!$A91+$A$11,IF($C$7,8,0),1,1) -> 10085.20996 | E91: =OFFSET(InputPriceData!D$15,CalculationsAndCharts!$A91+$A$11,IF($C$7,8,0),1,1) -> 10127.16992 | F91: =OFFSET(InputPriceData!E$15,CalculationsAndCharts!$A91+$A$11,IF($C$7,8,0),1,1) -> 9957.790039 | G91: =OFFSET(InputPriceData!F$15,CalculationsAndCharts!$A91+$A$11,IF($C$7,8,0),1,1) -> 10002.33008 | H91: 133.910156 | I91: 74.84961 | J91: 584.470704 | K91: 0.2291135468 | L91: 0.2024769744 | M91: 0.04099692517 | N91: 10125.13836 | O91: 10270.37012 | P91: 9957.790039 | Q91: 0.7150167772 | R91: 0.4950638659 | S91: 0.2450882313 | T91: 10093.81744 | U91: FALSE | V91: FALSE | Y91: 10125.13836 | Z91: 10093.81744 | AP91: 276800000
A92: 60 | B92: =OFFSET(InputPriceData!B$15,CalculationsAndCharts!$A92+$A$11,0,1,1) -> 2004-10-12 | C92: =OFFSET(InputPriceData!G$15,CalculationsAndCharts!$A92+$A$11,IF($C$7,8,0),1,1) -> 215820000 | D92: =OFFSET(InputPriceData!C$15,CalculationsAndCharts!$A92+$A$11,IF($C$7,8,0),1,1) -> 10080.41992 | E92: =OFFSET(InputPriceData!D$15,CalculationsAndCharts!$A92+$A$11,IF($C$7,8,0),1,1) -> 10102.33008 | F92: =OFFSET(InputPriceData!E$15,CalculationsAndCharts!$A92+$A$11,IF($C$7,8,0),1,1) -> 10017.15039 | G92: =OFFSET(InputPriceData!F$15,CalculationsAndCharts!$A92+$A$11,IF($C$7,8,0),1,1) -> 10077.17969 | H92: 0.220703 | I92: 4.790039 | J92: 568.460937 | K92: 0.0003882465542 | L92: 0.0647499119 | M92: 0.004192551092 | N92: 10130.38836 | O92: 10270.37012 | P92: 9977.919922 | Q92: 0.3211851611 | R92: 0.2579179465 | S92: 0.06652166712 | T92: 10123.51955 | U92: FALSE | V92: FALSE | Y92: 10130.38836 | Z92: 10123.51955 | AP92: 215820000
A93: 61 | B93: =OFFSET(InputPriceData!B$15,CalculationsAndCharts!$A93+$A$11,0,1,1) -> 2004-10-11 | C93: =OFFSET(InputPriceData!G$15,CalculationsAndCharts!$A93+$A$11,IF($C$7,8,0),1,1) -> 157180000 | D93: =OFFSET(InputPriceData!C$15,CalculationsAndCharts!$A93+$A$11,IF($C$7,8,0),1,1) -> 10056.08984 | E93: =OFFSET(InputPriceData!D$15,CalculationsAndCharts!$A93+$A$11,IF($C$7,8,0),1,1) -> 10098.78027 | F93: =OFFSET(InputPriceData!E$15,CalculationsAndCharts!$A93+$A$11,IF($C$7,8,0),1,1) -> 10056.08984 | G93: =OFFSET(InputPriceData!F$15,CalculationsAndCharts!$A93+$A$11,IF($C$7,8,0),1,1) -> 10081.96973 | H93: 93.429688 | I93: 26.769532 | J93: 652.53125 | K93: 0.143180404 | L93: 0.1507322863 | M93: 0.02272022213 | N93: 10130.61238 | O93: 10270.37012 | P93: 9977.919922 | Q93: 0.2884271799 | R93: 0.2381927105 | S93: 0.05673576732 | T93: 10126.82183 | U93: FALSE | V93: FALSE | Y93: 10130.61238 | Z93: 10126.82183 | AO93: 157180000
A94: 62 | B94: =OFFSET(InputPriceData!B$15,CalculationsAndCharts!$A94+$A$11,0,1,1) -> 2004-10-08 | C94: =OFFSET(InputPriceData!G$15,CalculationsAndCharts!$A94+$A$11,IF($C$7,8,0),1,1) -> 228590000 | D94: =OFFSET(InputPriceData!C$15,CalculationsAndCharts!$A94+$A$11,IF($C$7,8,0),1,1) -> 10124.11035 | E94: =OFFSET(InputPriceData!D$15,CalculationsAndCharts!$A94+$A$11,IF($C$7,8,0),1,1) -> 10148.04004 | F94: =OFFSET(InputPriceData!E$15,CalculationsAndCharts!$A94+$A$11,IF($C$7,8,0),1,1) -> 10036.32031 | G94: =OFFSET(InputPriceData!F$15,CalculationsAndCharts!$A94+$A$11,IF($C$7,8,0),1,1) -> 10055.20019 | H94: 7.959961 | I94: 70.200196 | J94: 684.461913 | K94: 0.01162951634 | L94: 0.07151884855 | M94: 0.005114945698 | N94: 10131.74324 | O94: 10270.37012 | P94: 9977.919922 | Q94: 0.471497887 | R94: 0.3484288352 | S94: 0.1214026532 | T94: 10129.51961 | U94: FALSE | V94: TRUE | Y94: 10131.74324 | Z94: 10129.51961 | AB94: 11139.77207 | AP94: 228590000
A95: 63 | B95: =OFFSET(InputPriceData!B$15,CalculationsAndCharts!$A95+$A$11,0,1,1) -> 2004-10-07 | C95: =OFFSET(InputPriceData!G$15,CalculationsAndCharts!$A95+$A$11,IF($C$7,8,0),1,1) -> 275340000 | D95: =OFFSET(InputPriceData!C$15,CalculationsAndCharts!$A95+$A$11,IF($C$7,8,0),1,1) -> 10239.83984 | E95: =OFFSET(InputPriceData!D$15,CalculationsAndCharts!$A95+$A$11,IF($C$7,8,0),1,1) -> 10240.95019 | F95: =OFFSET(InputPriceData!E$15,CalculationsAndCharts!$A95+$A$11,IF($C$7,8,0),1,1) -> 10124.51953 | G95: =OFFSET(InputPriceData!F$15,CalculationsAndCharts!$A95+$A$11,IF($C$7,8,0),1,1) -> 10125.40039 | H95: 86.5 | I95: 114.519531 | J95: 622.60156 | K95: 0.1389331565 | L95: 0.1481748039 | M95: 0.02195577252 | N95: 10132.13677 | O95: 10270.37012 | P95: 9977.919922 | Q95: 0.008585198584 | R95: 0.06968571098 | S95: 0.004856098314 | T95: 10139.78891 | U95: FALSE | V95: FALSE | Y95: 10132.13677 | Z95: 10139.78891 | AP95: 275340000
A96: 64 | B96: =OFFSET(InputPriceData!B$15,CalculationsAndCharts!$A96+$A$11,0,1,1) -> 2004-10-06 | C96: =OFFSET(InputPriceData!G$15,CalculationsAndCharts!$A96+$A$11,IF($C$7,8,0),1,1) -> 232020000 | D96: =OFFSET(InputPriceData!C$15,CalculationsAndCharts!$A96+$A$11,IF($C$7,8,0),1,1) -> 10170.70019 | E96: =OFFSET(InputPriceData!D$15,CalculationsAndCharts!$A96+$A$11,IF($C$7,8,0),1,1) -> 10240.13965 | F96: =OFFSET(InputPriceData!E$15,CalculationsAndCharts!$A96+$A$11,IF($C$7,8,0),1,1) -> 10157.99023 | G96: =OFFSET(InputPriceData!F$15,CalculationsAndCharts!$A96+$A$11,IF($C$7,8,0),1,1) -> 10239.91992 | H96: 130.740234 | I96: 62.240234 | J96: 578.361326 | K96: 0.2260528637 | L96: 0.2006339824 | M96: 0.04025399491 | N96: 10132.28799 | O96: 10270.37012 | P96: 9977.919922 | Q96: 0.7917580804 | R96: 0.5412736828 | S96: 0.2929771997 | T96: 10139.85912 | U96: TRUE | V96: FALSE | Y96: 10132.28799 | Z96: 10139.85912 | AA96: 11139.77207 | AO96: 232020000
A97: 65 | B97: =OFFSET(InputPriceData!B$15,CalculationsAndCharts!$A97+$A$11,0,1,1) -> 2004-10-05 | C97: =OFFSET(InputPriceData!G$15,CalculationsAndCharts!$A97+$A$11,IF($C$7,8,0),1,1) -> 224410000 | D97: =OFFSET(InputPriceData!C$15,CalculationsAndCharts!$A97+$A$11,IF($C$7,8,0),1,1) -> 10216.75977 | E97: =OFFSET(InputPriceData!D$15,CalculationsAndCharts!$A97+$A$11,IF($C$7,8,0),1,1) -> 10221.11035 | F97: =OFFSET(InputPriceData!E$15,CalculationsAndCharts!$A97+$A$11,IF($C$7,8,0),1,1) -> 10158.07031 | G97: =OFFSET(InputPriceData!F$15,CalculationsAndCharts!$A97+$A$11,IF($C$7,8,0),1,1) -> 10177.67969 | H97: 67.25 | I97: 38.860351 | J97: 651.871092 | K97: 0.1031645686 | L97: 0.1266367295 | M97: 0.01603686126 | N97: 10127.77366 | O97: 10270.51953 | P97: 9977.919922 | Q97: 0.365413759 | R97: =IF(A97<=$F$16,Q97*$D$20+$D$19,0) -> 0.2845502205 | S97: =IF(A97<=$F$16,R97^2,0) -> 0.08096882796 | T97: =IF(A97=$F$16,$G98+S97*($G97-$G98),IF(A97<$F$16,T98+S97*($G97-T98),0)) -> 10098.39577 | U97: =IF(AND(T98<N98,T97>N97),TRUE,FALSE) -> FALSE | V97: =IF(AND(T98>N98,T97<N97),TRUE,FALSE) -> FALSE | Y97: 10127.77366 | Z97: =IF($R$5,T97,NA()) -> 10098.39577 | AA97: =IF(AND($R$6,U97),$AZ$34,NA()) ->  | AB97: =IF(AND($R$7,V97),$AZ$34,NA()) ->  | AP97: 224410000
A98: 66 | B98: =OFFSET(InputPriceData!B$15,CalculationsAndCharts!$A98+$A$11,0,1,1) -> 2004-10-04 | C98: =OFFSET(InputPriceData!G$15,CalculationsAndCharts!$A98+$A$11,IF($C$7,8,0),1,1) -> 253190000 | D98: =OFFSET(InputPriceData!C$15,CalculationsAndCharts!$A98+$A$11,IF($C$7,8,0),1,1) -> 10191.40039 | E98: =OFFSET(InputPriceData!D$15,CalculationsAndCharts!$A98+$A$11,IF($C$7,8,0),1,1) -> 10270.37012 | F98: =OFFSET(InputPriceData!E$15,CalculationsAndCharts!$A98+$A$11,IF($C$7,8,0),1,1) -> 10191.40039 | G98: =OFFSET(InputPriceData!F$15,CalculationsAndCharts!$A98+$A$11,IF($C$7,8,0),1,1) -> 10216.54004 | H98: =IF(A98<=$F$16,ABS(G98-OFFSET(G98,$A$16,0,1,1)),0) -> 11.650391 | I98: =IF(A98<$A$8,ABS(G98-G99),0) -> 23.889648 | J98: =IF(A98<=$F$16,SUM(OFFSET(I98,0,0,$A$16,1)),0) -> 653.050781 | K98: =IF(A98<=$F$16,H98/J98,0) -> 0.01783994651 | L98: =IF(A98<=$F$16,K98*$D$20+$D$19,0) -> 0.07525846241 | M98: =IF(A98<=$F$16,L98^2,0) -> 0.005663836165 | N98: =IF(A98=$F$16,$G99+M98*($G98-$G99),IF(A98<$F$16,N99+M98*($G98-N99),0)) -> 10126.96028 | O98: =IF(A98<=$F$16,MAX(OFFSET(E98,0,0,$D$16,1)),0) -> 10283.87012 | P98: =IF(A98<=$F$16,MIN(OFFSET(F98,0,0,$D$16,1)),0) -> 9977.919922 | Q98: =IF(A98<=$F$16,ABS((G98-P98)-(O98-G98))/(O98-P98),0) -> 0.5598624933 | R98: 0.4016376304 | S98: 0.1613127861 | T98: 10091.41067 | U98: FALSE | V98: FALSE | Y98: 10126.96028 | Z98: 10091.41067 | AO98: 253190000
A99: 67 | B99: =OFFSET(InputPriceData!B$15,CalculationsAndCharts!$A99+$A$11,0,1,1) -> 2004-10-01 | C99: =OFFSET(InputPriceData!G$15,CalculationsAndCharts!$A99+$A$11,IF($C$7,8,0),1,1) -> 267550000 | D99: =OFFSET(InputPriceData!C$15,CalculationsAndCharts!$A99+$A$11,IF($C$7,8,0),1,1) -> 10082.04004 | E99: =OFFSET(InputPriceData!D$15,CalculationsAndCharts!$A99+$A$11,IF($C$7,8,0),1,1) -> 10198.62012 | F99: =OFFSET(InputPriceData!E$15,CalculationsAndCharts!$A99+$A$11,IF($C$7,8,0),1,1) -> 10082.04004 | G99: =OFFSET(InputPriceData!F$15,CalculationsAndCharts!$A99+$A$11,IF($C$7,8,0),1,1) -> 10192.65039 | H99: 91.80957 | I99: 112.38086 | J99: 708.731446 | K99: 0.1295407033 | L99: 0.1425191332 | M99: 0.02031170333 | N99: 10126.45002 | O99: 10314.75977 | P99: 9977.919922 | Q99: 0.2749707187 | R99: 0.2300898951 | S99: 0.05294135985 | T99: 10067.34333 | U99: FALSE | V99: FALSE | Y99: 10126.45002 | Z99: 10067.34333 | AO99: 267550000
A100: 68 | B100: =OFFSET(InputPriceData!B$15,CalculationsAndCharts!$A100+$A$11,0,1,1) -> 2004-09-30 | C100: =OFFSET(InputPriceData!G$15,CalculationsAndCharts!$A100+$A$11,IF($C$7,8,0),1,1) -> 377130000 | D100: =OFFSET(InputPriceData!C$15,CalculationsAndCharts!$A100+$A$11,IF($C$7,8,0),1,1) -> 10136.37988 | E100: =OFFSET(InputPriceData!D$15,CalculationsAndCharts!$A100+$A$11,IF($C$7,8,0),1,1) -> 10142.94043 | F100: =OFFSET(InputPriceData!E$15,CalculationsAndCharts!$A100+$A$11,IF($C$7,8,0),1,1) -> 10038.90039 | G100: =OFFSET(InputPriceData!F$15,CalculationsAndCharts!$A100+$A$11,IF($C$7,8,0),1,1) -> 10080.26953 | H100: 164.220703 | I100: 55.970703 | J100: 636.320313 | K100: 0.2580786746 | L100: 0.2199183417 | M100: 0.04836407701 | N100: 10125.0775 | O100: 10314.75977 | P100: 9977.919922 | Q100: 0.392295117 | R100: 0.3007368446 | S100: 0.09044264971 | T100: 10060.33856 | U100: FALSE | V100: FALSE | Y100: 10125.0775 | Z100: 10060.33856 | AP100: 377130000
A101: 69 | B101: =OFFSET(InputPriceData!B$15,CalculationsAndCharts!$A101+$A$11,0,1,1) -> 2004-09-29 | C101: =OFFSET(InputPriceData!G$15,CalculationsAndCharts!$A101+$A$11,IF($C$7,8,0),1,1) -> 218540000 | D101: =OFFSET(InputPriceData!C$15,CalculationsAndCharts!$A101+$A$11,IF($C$7,8,0),1,1) -> 10056.75 | E101: =OFFSET(InputPriceData!D$15,CalculationsAndCharts!$A101+$A$11,IF($C$7,8,0),1,1) -> 10136.24023 | F101: =OFFSET(InputPriceData!E$15,CalculationsAndCharts!$A101+$A$11,IF($C$7,8,0),1,1) -> 10050.55957 | G101: =OFFSET(InputPriceData!F$15,CalculationsAndCharts!$A101+$A$11,IF($C$7,8,0),1,1) -> 10136.24023 | H101: 95.120118 | I101: 58.839843 | J101: 593.479492 | K101: 0.1602753242 | L101: 0.1610260017 | M101: 0.02592937322 | N101: 10127.35473 | O101: 10317.04981 | P101: 9977.919922 | Q101: 0.06631458956 | R101: 0.1044474948 | S101: 0.01090927917 | T101: 10058.35671 | U101: FALSE | V101: FALSE | Y101: 10127.35473 | Z101: 10058.35671 | AO101: 218540000
A102: 70 | B102: =OFFSET(InputPriceData!B$15,CalculationsAndCharts!$A102+$A$11,0,1,1) -> 2004-09-28 | C102: =OFFSET(InputPriceData!G$15,CalculationsAndCharts!$A102+$A$11,IF($C$7,8,0),1,1) -> 232170000 | D102: =OFFSET(InputPriceData!C$15,CalculationsAndCharts!$A102+$A$11,IF($C$7,8,0),1,1) -> 9989.730469 | E102: =OFFSET(InputPriceData!D$15,CalculationsAndCharts!$A102+$A$11,IF($C$7,8,0),1,1) -> 10099.51953 | F102: =OFFSET(InputPriceData!E$15,CalculationsAndCharts!$A102+$A$11,IF($C$7,8,0),1,1) -> 9977.919922 | G102: =OFFSET(InputPriceData!F$15,CalculationsAndCharts!$A102+$A$11,IF($C$7,8,0),1,1) -> 10077.40039 | H102: 240.759765 | I102: 88.860352 | J102: 621.439453 | K102: 0.3874227229 | L102: 0.2978029299 | M102: 0.08868658507 | N102: 10127.1182 | O102: 10340.12988 | P102: 9977.919922 | Q102: 0.4507027431 | R102: 0.3359070281 | S102: 0.1128335315 | T102: 10057.49768 | U102: FALSE | V102: FALSE | Y102: 10127.1182 | Z102: 10057.49768 | AO102: 232170000
A103: 71 | B103: =OFFSET(InputPriceData!B$15,CalculationsAndCharts!$A103+$A$11,0,1,1) -> 2004-09-27 | C103: =OFFSET(InputPriceData!G$15,CalculationsAndCharts!$A103+$A$11,IF($C$7,8,0),1,1) -> 198710000 | D103: =OFFSET(InputPriceData!C$15,CalculationsAndCharts!$A103+$A$11,IF($C$7,8,0),1,1) -> 10046.65039 | E103: =OFFSET(InputPriceData!D$15,CalculationsAndCharts!$A103+$A$11,IF($C$7,8,0),1,1) -> 10046.65039 | F103: =OFFSET(InputPriceData!E$15,CalculationsAndCharts!$A103+$A$11,IF($C$7,8,0),1,1) -> 9985.370117 | G103: =OFFSET(InputPriceData!F$15,CalculationsAndCharts!$A103+$A$11,IF($C$7,8,0),1,1) -> 9988.540039 | H103: 326.219727 | I103: 58.700195 | J103: 535.979491 | K103: 0.6086421822 | L103: 0.4310103463 | M103: 0.1857699186 | N103: 10131.95661 | O103: 10348.38965 | P103: 9985.370117 | Q103: 0.9825358047 | R103: 0.6561505921 | S103: 0.4305335995 | T103: 10054.96637 | U103: FALSE | V103: FALSE | Y103: 10131.95661 | Z103: 10054.96637 | AP103: 198710000
A104: 72 | B104: =OFFSET(InputPriceData!B$15,CalculationsAndCharts!$A104+$A$11,0,1,1) -> 2004-09-24 | C104: =OFFSET(InputPriceData!G$15,CalculationsAndCharts!$A104+$A$11,IF($C$7,8,0),1,1) -> 204060000 | D104: =OFFSET(InputPriceData!C$15,CalculationsAndCharts!$A104+$A$11,IF($C$7,8,0),1,1) -> 10039.41992 | E104: =OFFSET(InputPriceData!D$15,CalculationsAndCharts!$A104+$A$11,IF($C$7,8,0),1,1) -> 10081.29981 | F104: =OFFSET(InputPriceData!E$15,CalculationsAndCharts!$A104+$A$11,IF($C$7,8,0),1,1) -> 10034.84961 | G104: =OFFSET(InputPriceData!F$15,CalculationsAndCharts!$A104+$A$11,IF($C$7,8,0),1,1) -> 10047.24023 | H104: 265.830079 | I104: 8.339843 | J104: 478.968749 | K104: 0.5550050594 | L104: 0.398712724 | M104: 0.1589718362 | N104: 10164.67769 | O104: 10348.38965 | P104: 10031.16016 | Q104: 0.8986217965 | R104: 0.6056217269 | S104: 0.3667776761 | T104: 10105.18667 | U104: FALSE | V104: FALSE | Y104: 10164.67769 | Z104: 10105.18667 | AO104: 204060000
A105: 73 | B105: =OFFSET(InputPriceData!B$15,CalculationsAndCharts!$A105+$A$11,0,1,1) -> 2004-09-23 | C105: =OFFSET(InputPriceData!G$15,CalculationsAndCharts!$A105+$A$11,IF($C$7,8,0),1,1) -> 222620000 | D105: =OFFSET(InputPriceData!C$15,CalculationsAndCharts!$A105+$A$11,IF($C$7,8,0),1,1) -> 10108.29004 | E105: =OFFSET(InputPriceData!D$15,CalculationsAndCharts!$A105+$A$11,IF($C$7,8,0),1,1) -> 10108.74023 | F105: =OFFSET(InputPriceData!E$15,CalculationsAndCharts!$A105+$A$11,IF($C$7,8,0),1,1) -> 10031.16016 | G105: =OFFSET(InputPriceData!F$15,CalculationsAndCharts!$A105+$A$11,IF($C$7,8,0),1,1) -> 10038.90039 | H105: 250.199218 | I105: 70.279297 | J105: 494.59961 | K105: 0.5058621417 | L105: 0.3691212896 | M105: 0.1362505265 | N105: 10186.87581 | O105: 10348.38965 | P105: 10031.16016 | Q105: 0.9512010378 | R105: 0.6372823453 | S105: 0.4061287877 | T105: 10138.75064 | U105: FALSE | V105: FALSE | Y105: 10186.87581 | Z105: 10138.75064 | AP105: 222620000
A106: 74 | B106: =OFFSET(InputPriceData!B$15,CalculationsAndCharts!$A106+$A$11,0,1,1) -> 2004-09-22 | C106: =OFFSET(InputPriceData!G$15,CalculationsAndCharts!$A106+$A$11,IF($C$7,8,0),1,1) -> 240390000 | D106: =OFFSET(InputPriceData!C$15,CalculationsAndCharts!$A106+$A$11,IF($C$7,8,0),1,1) -> 10244.04981 | E106: =OFFSET(InputPriceData!D$15,CalculationsAndCharts!$A106+$A$11,IF($C$7,8,0),1,1) -> 10244.04981 | F106: =OFFSET(InputPriceData!E$15,CalculationsAndCharts!$A106+$A$11,IF($C$7,8,0),1,1) -> 10097.37012 | G106: =OFFSET(InputPriceData!F$15,CalculationsAndCharts!$A106+$A$11,IF($C$7,8,0),1,1) -> 10109.17969 | H106: 204.180664 | I106: 135.75 | J106: 448.581056 | K106: 0.4551700552 | L106: 0.3385970225 | M106: 0.1146479436 | N106: 10210.21791 | O106: 10361.21973 | P106: 10097.37012 | Q106: 0.9104825586 | R106: 0.6127636912 | S106: 0.3754793413 | T106: 10207.03491 | U106: FALSE | V106: TRUE | Y106: 10210.21791 | Z106: 10207.03491 | AB106: 11139.77207 | AP106: 240390000
A107: 75 | B107: =OFFSET(InputPriceData!B$15,CalculationsAndCharts!$A107+$A$11,0,1,1) -> 2004-09-21 | C107: =OFFSET(InputPriceData!G$15,CalculationsAndCharts!$A107+$A$11,IF($C$7,8,0),1,1) -> 223840000 | D107: =OFFSET(InputPriceData!C$15,CalculationsAndCharts!$A107+$A$11,IF($C$7,8,0),1,1) -> 10204.51953 | E107: =OFFSET(InputPriceData!D$15,CalculationsAndCharts!$A107+$A$11,IF($C$7,8,0),1,1) -> 10270.51953 | F107: =OFFSET(InputPriceData!E$15,CalculationsAndCharts!$A107+$A$11,IF($C$7,8,0),1,1) -> 10200.25 | G107: =OFFSET(InputPriceData!F$15,CalculationsAndCharts!$A107+$A$11,IF($C$7,8,0),1,1) -> 10244.92969 | H107: 97.860351 | I107: 40.04004 | J107: 342.260743 | K107: 0.2859233874 | L107: 0.2366850505 | M107: 0.05601981311 | N107: 10223.30177 | O107: 10363.36035 | P107: 10187.19043 | Q107: 0.3445049263 | R107: 0.2719599556 | S107: 0.07396221747 | T107: 10265.86821 | U107: FALSE | V107: FALSE | Y107: 10223.30177 | Z107: 10265.86821 | AO107: 223840000
A108: 76 | B108: =OFFSET(InputPriceData!B$15,CalculationsAndCharts!$A108+$A$11,0,1,1) -> 2004-09-20 | C108: =OFFSET(InputPriceData!G$15,CalculationsAndCharts!$A108+$A$11,IF($C$7,8,0),1,1) -> 222360000 | D108: =OFFSET(InputPriceData!C$15,CalculationsAndCharts!$A108+$A$11,IF($C$7,8,0),1,1) -> 10283.87012 | E108: =OFFSET(InputPriceData!D$15,CalculationsAndCharts!$A108+$A$11,IF($C$7,8,0),1,1) -> 10283.87012 | F108: =OFFSET(InputPriceData!E$15,CalculationsAndCharts!$A108+$A$11,IF($C$7,8,0),1,1) -> 10187.19043 | G108: =OFFSET(InputPriceData!F$15,CalculationsAndCharts!$A108+$A$11,IF($C$7,8,0),1,1) -> 10204.88965 | H108: 55.310547 | I108: 79.570313 | J108: 384.810547 | K108: 0.1437344881 | L108: 0.1510659283 | M108: 0.0228209147 | N108: 10222.01828 | O108: 10363.36035 | P108: 10187.19043 | Q108: 0.7990665172 | R108: 0.5456744619 | S108: 0.2977606184 | T108: 10267.54056 | U108: FALSE | V108: FALSE | Y108: 10222.01828 | Z108: 10267.54056 | AP108: 222360000
A109: 77 | B109: =OFFSET(InputPriceData!B$15,CalculationsAndCharts!$A109+$A$11,0,1,1) -> 2004-09-17 | C109: =OFFSET(InputPriceData!G$15,CalculationsAndCharts!$A109+$A$11,IF($C$7,8,0),1,1) -> 295880000 | D109: =OFFSET(InputPriceData!C$15,CalculationsAndCharts!$A109+$A$11,IF($C$7,8,0),1,1) -> 10245.82031 | E109: =OFFSET(InputPriceData!D$15,CalculationsAndCharts!$A109+$A$11,IF($C$7,8,0),1,1) -> 10314.75977 | F109: =OFFSET(InputPriceData!E$15,CalculationsAndCharts!$A109+$A$11,IF($C$7,8,0),1,1) -> 10245.74023 | G109: =OFFSET(InputPriceData!F$15,CalculationsAndCharts!$A109+$A$11,IF($C$7,8,0),1,1) -> 10284.45996 | H109: 5.820312 | I109: 39.969727 | J109: 335.320312 | K109: 0.01735746924 | L109: 0.07496793847 | M109: 0.005620191798 | N109: 10222.4183 | O109: 10363.36035 | P109: 10162.04981 | Q109: 0.2161325656 | R109: 0.1946604696 | S109: 0.03789269842 | T109: 10294.10554 | U109: FALSE | V109: FALSE | Y109: 10222.4183 | Z109: 10294.10554 | AO109: 295880000
A110: 78 | B110: =OFFSET(InputPriceData!B$15,CalculationsAndCharts!$A110+$A$11,0,1,1) -> 2004-09-16 | C110: =OFFSET(InputPriceData!G$15,CalculationsAndCharts!$A110+$A$11,IF($C$7,8,0),1,1) -> 173240000 | D110: =OFFSET(InputPriceData!C$15,CalculationsAndCharts!$A110+$A$11,IF($C$7,8,0),1,1) -> 10231.58984 | E110: =OFFSET(InputPriceData!D$15,CalculationsAndCharts!$A110+$A$11,IF($C$7,8,0),1,1) -> 10281.87988 | F110: =OFFSET(InputPriceData!E$15,CalculationsAndCharts!$A110+$A$11,IF($C$7,8,0),1,1) -> 10228.63965 | G110: =OFFSET(InputPriceData!F$15,CalculationsAndCharts!$A110+$A$11,IF($C$7,8,0),1,1) -> 10244.49023 | H110: 76.030273 | I110: 13.129882 | J110: 417.170897 | K110: 0.1822521023 | L110: 0.1742593304 | M110: 0.03036631424 | N110: 10222.06765 | O110: 10363.36035 | P110: 10110.65039 | Q110: 0.05923678252 | R110: 0.1001855895 | S110: 0.01003715234 | T110: 10294.48543 | U110: FALSE | V110: FALSE | Y110: 10222.06765 | Z110: 10294.48543 | AO110: 173240000
A111: 79 | B111: =OFFSET(InputPriceData!B$15,CalculationsAndCharts!$A111+$A$11,0,1,1) -> 2004-09-15 | C111: =OFFSET(InputPriceData!G$15,CalculationsAndCharts!$A111+$A$11,IF($C$7,8,0),1,1) -> 203740000 | D111: =OFFSET(InputPriceData!C$15,CalculationsAndCharts!$A111+$A$11,IF($C$7,8,0),1,1) -> 10316.90039 | E111: =OFFSET(InputPriceData!D$15,CalculationsAndCharts!$A111+$A$11,IF($C$7,8,0),1,1) -> 10317.04981 | F111: =OFFSET(InputPriceData!E$15,CalculationsAndCharts!$A111+$A$11,IF($C$7,8,0),1,1) -> 10228.78027 | G111: =OFFSET(InputPriceData!F$15,CalculationsAndCharts!$A111+$A$11,IF($C$7,8,0),1,1) -> 10231.36035 | H111: 57.44043 | I111: 86.799804 | J111: 409.500976 | K111: 0.140269336 | L111: 0.1489793851 | M111: 0.02219485719 | N111: 10221.36543 | O111: 10363.36035 | P111: 10074.21973 | Q111: 0.08694947312 | R111: 0.116872801 | S111: 0.01365925162 | T111: 10294.99233 | U111: FALSE | V111: FALSE | Y111: 10221.36543 | Z111: 10294.99233 | AP111: 203740000
A112: 80 | B112: =OFFSET(InputPriceData!B$15,CalculationsAndCharts!$A112+$A$11,0,1,1) -> 2004-09-14 | C112: =OFFSET(InputPriceData!G$15,CalculationsAndCharts!$A112+$A$11,IF($C$7,8,0),1,1) -> 186180000 | D112: =OFFSET(InputPriceData!C$15,CalculationsAndCharts!$A112+$A$11,IF($C$7,8,0),1,1) -> 10315.12988 | E112: =OFFSET(InputPriceData!D$15,CalculationsAndCharts!$A112+$A$11,IF($C$7,8,0),1,1) -> 10340.12988 | F112: =OFFSET(InputPriceData!E$15,CalculationsAndCharts!$A112+$A$11,IF($C$7,8,0),1,1) -> 10303.41016 | G112: =OFFSET(InputPriceData!F$15,CalculationsAndCharts!$A112+$A$11,IF($C$7,8,0),1,1) -> 10318.16016 | H112: 195.640625 | I112: 3.40039 | J112: 374.101563 | K112: 0.5229612607 | L112: 0.3794175333 | M112: 0.1439576646 | N112: 10221.13856 | O112: 10363.36035 | P112: 10074.21973 | Q112: 0.6873480093 | R112: 0.4784031024 | S112: 0.2288695284 | T112: 10295.87353 | U112: FALSE | V112: FALSE | Y112: 10221.13856 | Z112: 10295.87353 | AO112: 186180000
A113: 81 | B113: =OFFSET(InputPriceData!B$15,CalculationsAndCharts!$A113+$A$11,0,1,1) -> 2004-09-13 | C113: =OFFSET(InputPriceData!G$15,CalculationsAndCharts!$A113+$A$11,IF($C$7,8,0),1,1) -> 203200000 | D113: =OFFSET(InputPriceData!C$15,CalculationsAndCharts!$A113+$A$11,IF($C$7,8,0),1,1) -> 10306.65039 | E113: =OFFSET(InputPriceData!D$15,CalculationsAndCharts!$A113+$A$11,IF($C$7,8,0),1,1) -> 10348.38965 | F113: =OFFSET(InputPriceData!E$15,CalculationsAndCharts!$A113+$A$11,IF($C$7,8,0),1,1) -> 10292.57031 | G113: =OFFSET(InputPriceData!F$15,CalculationsAndCharts!$A113+$A$11,IF($C$7,8,0),1,1) -> 10314.75977 | H113: 119.75 | I113: 1.689453 | J113: 443.191408 | K113: 0.2701992815 | L113: 0.2272167716 | M113: 0.05162746132 | N113: 10204.82277 | O113: 10363.36035 | P113: 10074.21973 | Q113: 0.6638273435 | R113: 0.4642401208 | S113: 0.2155188898 | T113: 10289.25891 | U113: FALSE | V113: FALSE | Y113: 10204.82277 | Z113: 10289.25891 | AO113: 203200000
A114: 82 | B114: =OFFSET(InputPriceData!B$15,CalculationsAndCharts!$A114+$A$11,0,1,1) -> 2004-09-10 | C114: =OFFSET(InputPriceData!G$15,CalculationsAndCharts!$A114+$A$11,IF($C$7,8,0),1,1) -> 217580000 | D114: =OFFSET(InputPriceData!C$15,CalculationsAndCharts!$A114+$A$11,IF($C$7,8,0),1,1) -> 10289.46973 | E114: =OFFSET(InputPriceData!D$15,CalculationsAndCharts!$A114+$A$11,IF($C$7,8,0),1,1) -> 10321.91992 | F114: =OFFSET(InputPriceData!E$15,CalculationsAndCharts!$A114+$A$11,IF($C$7,8,0),1,1) -> 10237.78027 | G114: =OFFSET(InputPriceData!F$15,CalculationsAndCharts!$A114+$A$11,IF($C$7,8,0),1,1) -> 10313.07031 | H114: 139.660157 | I114: 23.970704 | J114: 463.101565 | K114: 0.3015756533 | L114: 0.2461100708 | M114: 0.06057016695 | N114: 10198.83803 | O114: 10363.36035 | P114: 10074.21973 | Q114: 0.6521413136 | R114: 0.4572033716 | S114: 0.209034923 | T114: 10282.25312 | U114: FALSE | V114: FALSE | Y114: 10198.83803 | Z114: 10282.25312 | AO114: 217580000
A115: 83 | B115: =OFFSET(InputPriceData!B$15,CalculationsAndCharts!$A115+$A$11,0,1,1) -> 2004-09-09 | C115: =OFFSET(InputPriceData!G$15,CalculationsAndCharts!$A115+$A$11,IF($C$7,8,0),1,1) -> 223160000 | D115: =OFFSET(InputPriceData!C$15,CalculationsAndCharts!$A115+$A$11,IF($C$7,8,0),1,1) -> 10314.69043 | E115: =OFFSET(InputPriceData!D$15,CalculationsAndCharts!$A115+$A$11,IF($C$7,8,0),1,1) -> 10337.33008 | F115: =OFFSET(InputPriceData!E$15,CalculationsAndCharts!$A115+$A$11,IF($C$7,8,0),1,1) -> 10269.49023 | G115: =OFFSET(InputPriceData!F$15,CalculationsAndCharts!$A115+$A$11,IF($C$7,8,0),1,1) -> 10289.09961 | H115: 107.359375 | I115: 24.260743 | J115: 447.460939 | K115: 0.2399301607 | L115: 0.2089902043 | M115: 0.04367690549 | N115: 10191.47285 | O115: 10363.36035 | P115: 10068.11035 | Q115: 0.4969636376 | R115: 0.3637630506 | S115: 0.132323557 | T115: 10274.1088 | U115: FALSE | V115: FALSE | Y115: 10191.47285 | Z115: 10274.1088 | AP115: 223160000
A116: 84 | B116: =OFFSET(InputPriceData!B$15,CalculationsAndCharts!$A116+$A$11,0,1,1) -> 2004-09-08 | C116: =OFFSET(InputPriceData!G$15,CalculationsAndCharts!$A116+$A$11,IF($C$7,8,0),1,1) -> 222220000 | D116: =OFFSET(InputPriceData!C$15,CalculationsAndCharts!$A116+$A$11,IF($C$7,8,0),1,1) -> 10342.41992 | E116: =OFFSET(InputPriceData!D$15,CalculationsAndCharts!$A116+$A$11,IF($C$7,8,0),1,1) -> 10361.21973 | F116: =OFFSET(InputPriceData!E$15,CalculationsAndCharts!$A116+$A$11,IF($C$7,8,0),1,1) -> 10305.17969 | G116: =OFFSET(InputPriceData!F$15,CalculationsAndCharts!$A116+$A$11,IF($C$7,8,0),1,1) -> 10313.36035 | H116: 214.730469 | I116: 29.429687 | J116: 506.310547 | K116: 0.4241082282 | L116: 0.3198931266 | M116: 0.1023316125 | N116: 10187.01407 | O116: 10363.36035 | P116: 10062.12988 | Q116: 0.6680282697 | R116: 0.4667697108 | S116: 0.2178739629 | T116: 10271.82265 | U116: FALSE | V116: FALSE | Y116: 10187.01407 | Z116: 10271.82265 | AP116: 222220000
A117: 85 | B117: =OFFSET(InputPriceData!B$15,CalculationsAndCharts!$A117+$A$11,0,1,1) -> 2004-09-07 | C117: =OFFSET(InputPriceData!G$15,CalculationsAndCharts!$A117+$A$11,IF($C$7,8,0),1,1) -> 204530000 | D117: =OFFSET(InputPriceData!C$15,CalculationsAndCharts!$A117+$A$11,IF($C$7,8,0),1,1) -> 10261.51953 | E117: =OFFSET(InputPriceData!D$15,CalculationsAndCharts!$A117+$A$11,IF($C$7,8,0),1,1) -> 10363.36035 | F117: =OFFSET(InputPriceData!E$15,CalculationsAndCharts!$A117+$A$11,IF($C$7,8,0),1,1) -> 10261.45019 | G117: =OFFSET(InputPriceData!F$15,CalculationsAndCharts!$A117+$A$11,IF($C$7,8,0),1,1) -> 10342.79004 | H117: 269.740234 | I117: 82.589844 | J117: 502.460938 | K117: 0.5368382169 | L117: 0.3877735499 | M117: 0.150368326 | N117: 10172.61096 | O117: 10363.36035 | P117: 10062.12988 | Q117: 0.863424752 | R117: 0.5844278077 | S117: 0.3415558624 | T117: 10260.25165 | U117: FALSE | V117: FALSE | Y117: 10172.61096 | Z117: 10260.25165 | AO117: 204530000
A118: 86 | B118: =OFFSET(InputPriceData!B$15,CalculationsAndCharts!$A118+$A$11,0,1,1) -> 2004-09-03 | C118: =OFFSET(InputPriceData!G$15,CalculationsAndCharts!$A118+$A$11,IF($C$7,8,0),1,1) -> 215670000 | D118: =OFFSET(InputPriceData!C$15,CalculationsAndCharts!$A118+$A$11,IF($C$7,8,0),1,1) -> 10277.82031 | E118: =OFFSET(InputPriceData!D$15,CalculationsAndCharts!$A118+$A$11,IF($C$7,8,0),1,1) -> 10321.76953 | F118: =OFFSET(InputPriceData!E$15,CalculationsAndCharts!$A118+$A$11,IF($C$7,8,0),1,1) -> 10260.20019 | G118: =OFFSET(InputPriceData!F$15,CalculationsAndCharts!$A118+$A$11,IF($C$7,8,0),1,1) -> 10260.20019 | H118: 150.060547 | I118: 30.080078 | J118: 456.960937 | K118: 0.3283881287 | L118: 0.2622552173 | M118: 0.068777799 | N118: 10142.49256 | O118: 10321.76953 | P118: 10012.50977 | Q118: 0.6018276998 | R118: 0.426907002 | S118: 0.1822495884 | T118: 10217.43637 | U118: FALSE | V118: FALSE | Y118: 10142.49256 | Z118: 10217.43637 | AP118: 215670000
A119: 87 | B119: =OFFSET(InputPriceData!B$15,CalculationsAndCharts!$A119+$A$11,0,1,1) -> 2004-09-02 | C119: =OFFSET(InputPriceData!G$15,CalculationsAndCharts!$A119+$A$11,IF($C$7,8,0),1,1) -> 181200000 | D119: =OFFSET(InputPriceData!C$15,CalculationsAndCharts!$A119+$A$11,IF($C$7,8,0),1,1) -> 10168.38965 | E119: =OFFSET(InputPriceData!D$15,CalculationsAndCharts!$A119+$A$11,IF($C$7,8,0),1,1) -> 10301.49023 | F119: =OFFSET(InputPriceData!E$15,CalculationsAndCharts!$A119+$A$11,IF($C$7,8,0),1,1) -> 10162.04981 | G119: =OFFSET(InputPriceData!F$15,CalculationsAndCharts!$A119+$A$11,IF($C$7,8,0),1,1) -> 10290.28027 | H119: 249.45996 | I119: 121.820312 | J119: 496.200194 | K119: 0.5027405531 | L119: 0.3672416234 | M119: 0.13486641 | N119: 10133.79896 | O119: 10301.49023 | P119: 9989.870117 | Q119: 0.9280536757 | R119: 0.6233441488 | S119: 0.3885579278 | T119: 10207.90572 | U119: FALSE | V119: FALSE | Y119: =IF($R$4,N119,NA()) -> 10133.79896 | Z119: 10207.90572 | AO119: 181200000
A120: 88 | B120: =OFFSET(InputPriceData!B$15,CalculationsAndCharts!$A120+$A$11,0,1,1) -> 2004-09-01 | C120: =OFFSET(InputPriceData!G$15,CalculationsAndCharts!$A120+$A$11,IF($C$7,8,0),1,1) -> 171950000 | D120: =OFFSET(InputPriceData!C$15,CalculationsAndCharts!$A120+$A$11,IF($C$7,8,0),1,1) -> 10170.12012 | E120: =OFFSET(InputPriceData!D$15,CalculationsAndCharts!$A120+$A$11,IF($C$7,8,0),1,1) -> 10208.26953 | F120: =OFFSET(InputPriceData!E$15,CalculationsAndCharts!$A120+$A$11,IF($C$7,8,0),1,1) -> 10110.65039 | G120: =OFFSET(InputPriceData!F$15,CalculationsAndCharts!$A120+$A$11,IF($C$7,8,0),1,1) -> 10168.45996 | H120: 85.30957 | I120: 5.459961 | J120: 416.70996 | K120: 0.2047216966 | L120: 0.1877894087 | M120: 0.03526486202 | N120: 10109.40496 | O120: 10211.25 | P120: 9934.049805 | Q120: 0.6912697771 | R120: 0.4807645969 | S120: 0.2311345977 | T120: 10155.55851 | U120: FALSE | V120: FALSE | Y120: 10109.40496 | Z120: 10155.55851 | AP120: 171950000
A121: 89 | B121: =OFFSET(InputPriceData!B$15,CalculationsAndCharts!$A121+$A$11,0,1,1) -> 2004-08-31 | C121: =OFFSET(InputPriceData!G$15,CalculationsAndCharts!$A121+$A$11,IF($C$7,8,0),1,1) -> 163580000 | D121: =OFFSET(InputPriceData!C$15,CalculationsAndCharts!$A121+$A$11,IF($C$7,8,0),1,1) -> 10121.96973 | E121: =OFFSET(InputPriceData!D$15,CalculationsAndCharts!$A121+$A$11,IF($C$7,8,0),1,1) -> 10173.91992 | F121: =OFFSET(InputPriceData!E$15,CalculationsAndCharts!$A121+$A$11,IF($C$7,8,0),1,1) -> 10074.21973 | G121: =OFFSET(InputPriceData!F$15,CalculationsAndCharts!$A121+$A$11,IF($C$7,8,0),1,1) -> 10173.91992 | H121: 201.089844 | I121: 51.400391 | J121: 521.570312 | K121: 0.3855469519 | L121: 0.2966734334 | M121: 0.08801512609 | N121: 10107.24627 | O121: 10211.25 | P121: 9934.049805 | Q121: 0.7306634074 | R121: 0.5044854926 | S121: 0.2545056122 | T121: 10151.68011 | U121: FALSE | V121: FALSE | Y121: 10107.24627 | Z121: 10151.68011 | AO121: 163580000
A122: 90 | B122: =OFFSET(InputPriceData!B$15,CalculationsAndCharts!$A122+$A$11,0,1,1) -> 2004-08-30 | C122: =OFFSET(InputPriceData!G$15,CalculationsAndCharts!$A122+$A$11,IF($C$7,8,0),1,1) -> 114850000 | D122: =OFFSET(InputPriceData!C$15,CalculationsAndCharts!$A122+$A$11,IF($C$7,8,0),1,1) -> 10193.83008 | E122: =OFFSET(InputPriceData!D$15,CalculationsAndCharts!$A122+$A$11,IF($C$7,8,0),1,1) -> 10196.78027 | F122: =OFFSET(InputPriceData!E$15,CalculationsAndCharts!$A122+$A$11,IF($C$7,8,0),1,1) -> 10122.51953 | G122: =OFFSET(InputPriceData!F$15,CalculationsAndCharts!$A122+$A$11,IF($C$7,8,0),1,1) -> 10122.51953 | H122: 167.969726 | I122: 72.490235 | J122: 488.450194 | K122: 0.3438830162 | L122: 0.2715854721 | M122: 0.07375866868 | N122: 10100.81163 | O122: 10211.25 | P122: 9825.349609 | Q122: 0.5401379679 | R122: 0.3897604968 | S122: 0.1519132449 | T122: 10144.08762 | U122: FALSE | V122: FALSE | Y122: 10100.81163 | Z122: 10144.08762 | AP122: 114850000
A123: 91 | B123: =OFFSET(InputPriceData!B$15,CalculationsAndCharts!$A123+$A$11,0,1,1) -> 2004-08-27 | C123: =OFFSET(InputPriceData!G$15,CalculationsAndCharts!$A123+$A$11,IF($C$7,8,0),1,1) -> 114580000 | D123: =OFFSET(InputPriceData!C$15,CalculationsAndCharts!$A123+$A$11,IF($C$7,8,0),1,1) -> 10174.07031 | E123: =OFFSET(InputPriceData!D$15,CalculationsAndCharts!$A123+$A$11,IF($C$7,8,0),1,1) -> 10211.25 | F123: =OFFSET(InputPriceData!E$15,CalculationsAndCharts!$A123+$A$11,IF($C$7,8,0),1,1) -> 10166.69043 | G123: =OFFSET(InputPriceData!F$15,CalculationsAndCharts!$A123+$A$11,IF($C$7,8,0),1,1) -> 10195.00977 | H123: 369.660157 | I123: 21.59961 | J123: 545.160155 | K123: 0.6780762563 | L123: 0.4728201113 | M123: 0.2235588577 | N123: 10099.08298 | O123: 10211.25 | P123: 9783.910156 | Q123: 0.9239938226 | R123: 0.6208995061 | S123: 0.3855161966 | T123: 10147.95099 | U123: FALSE | V123: FALSE | Y123: 10099.08298 | Z123: 10147.95099 | AO123: 114580000
A124: 92 | B124: =OFFSET(InputPriceData!B$15,CalculationsAndCharts!$A124+$A$11,0,1,1) -> 2004-08-26 | C124: =OFFSET(InputPriceData!G$15,CalculationsAndCharts!$A124+$A$11,IF($C$7,8,0),1,1) -> 131960000 | D124: =OFFSET(InputPriceData!C$15,CalculationsAndCharts!$A124+$A$11,IF($C$7,8,0),1,1) -> 10181.07031 | E124: =OFFSET(InputPriceData!D$15,CalculationsAndCharts!$A124+$A$11,IF($C$7,8,0),1,1) -> 10193.54004 | F124: =OFFSET(InputPriceData!E$15,CalculationsAndCharts!$A124+$A$11,IF($C$7,8,0),1,1) -> 10155.86035 | G124: =OFFSET(InputPriceData!F$15,CalculationsAndCharts!$A124+$A$11,IF($C$7,8,0),1,1) -> 10173.41016 | H124: 358.820312 | I124: 8.330078 | J124: 534.32031 | K124: 0.6715453358 | L124: 0.468887514 | M124: 0.2198555008 | N124: 10071.46301 | O124: 10199.20996 | P124: 9783.910156 | Q124: 0.8757533488 | R124: 0.5918514789 | S124: 0.350288173 | T124: 10118.42716 | U124: FALSE | V124: FALSE | Y124: 10071.46301 | Z124: 10118.42716 | AP124: 131960000
A125: 93 | B125: =OFFSET(InputPriceData!B$15,CalculationsAndCharts!$A125+$A$11,0,1,1) -> 2004-08-25 | C125: =OFFSET(InputPriceData!G$15,CalculationsAndCharts!$A125+$A$11,IF($C$7,8,0),1,1) -> 172570000 | D125: =OFFSET(InputPriceData!C$15,CalculationsAndCharts!$A125+$A$11,IF($C$7,8,0),1,1) -> 10098.49023 | E125: =OFFSET(InputPriceData!D$15,CalculationsAndCharts!$A125+$A$11,IF($C$7,8,0),1,1) -> 10199.20996 | F125: =OFFSET(InputPriceData!E$15,CalculationsAndCharts!$A125+$A$11,IF($C$7,8,0),1,1) -> 10068.11035 | G125: =OFFSET(InputPriceData!F$15,CalculationsAndCharts!$A125+$A$11,IF($C$7,8,0),1,1) -> 10181.74023 | H125: 243.419921 | I125: 83.110351 | J125: 649.720701 | K125: 0.3746531712 | L125: 0.2901137375 | M125: 0.08416598067 | N125: 10042.7329 | O125: 10199.20996 | P125: 9783.910156 | Q125: 0.9158693224 | R125: 0.6160073339 | S125: 0.3794650354 | T125: 10088.78341 | U125: FALSE | V125: FALSE | Y125: 10042.7329 | Z125: 10088.78341 | AO125: 172570000
A126: 94 | B126: =OFFSET(InputPriceData!B$15,CalculationsAndCharts!$A126+$A$11,0,1,1) -> 2004-08-24 | C126: =OFFSET(InputPriceData!G$15,CalculationsAndCharts!$A126+$A$11,IF($C$7,8,0),1,1) -> 143050000 | D126: =OFFSET(InputPriceData!C$15,CalculationsAndCharts!$A126+$A$11,IF($C$7,8,0),1,1) -> 10074.88965 | E126: =OFFSET(InputPriceData!D$15,CalculationsAndCharts!$A126+$A$11,IF($C$7,8,0),1,1) -> 10146.79004 | F126: =OFFSET(InputPriceData!E$15,CalculationsAndCharts!$A126+$A$11,IF($C$7,8,0),1,1) -> 10062.12988 | G126: =OFFSET(InputPriceData!F$15,CalculationsAndCharts!$A126+$A$11,IF($C$7,8,0),1,1) -> 10098.62988 | H126: 153.959961 | I126: 25.580078 | J126: 572.959959 | K126: 0.2687098087 | L126: 0.2263198848 | M126: 0.05122069027 | N126: 10029.95799 | O126: 10146.79004 | P126: 9783.910156 | Q126: 0.7345669559 | R126: 0.5068360164 | S126: 0.2568827476 | T126: 10031.93912 | U126: TRUE | V126: FALSE | Y126: 10029.95799 | Z126: 10031.93912 | AA126: 11139.77207 | AO126: 143050000
A127: 95 | B127: =OFFSET(InputPriceData!B$15,CalculationsAndCharts!$A127+$A$11,0,1,1) -> 2004-08-23 | C127: =OFFSET(InputPriceData!G$15,CalculationsAndCharts!$A127+$A$11,IF($C$7,8,0),1,1) -> 144500000 | D127: =OFFSET(InputPriceData!C$15,CalculationsAndCharts!$A127+$A$11,IF($C$7,8,0),1,1) -> 10111.09961 | E127: =OFFSET(InputPriceData!D$15,CalculationsAndCharts!$A127+$A$11,IF($C$7,8,0),1,1) -> 10131.08008 | F127: =OFFSET(InputPriceData!E$15,CalculationsAndCharts!$A127+$A$11,IF($C$7,8,0),1,1) -> 10067.96973 | G127: =OFFSET(InputPriceData!F$15,CalculationsAndCharts!$A127+$A$11,IF($C$7,8,0),1,1) -> 10073.04981 | H127: 258.389649 | I127: 37.089843 | J127: 677.389647 | K127: 0.3814490672 | L127: 0.2942058899 | M127: 0.08655710568 | N127: 10026.25068 | O127: 10131.08008 | P127: 9783.910156 | Q127: 0.665695273 | R127: 0.4653648956 | S127: 0.216564486 | T127: 10008.88528 | U127: FALSE | V127: FALSE | Y127: 10026.25068 | Z127: 10008.88528 | AP127: 144500000
A128: 96 | B128: =OFFSET(InputPriceData!B$15,CalculationsAndCharts!$A128+$A$11,0,1,1) -> 2004-08-20 | C128: =OFFSET(InputPriceData!G$15,CalculationsAndCharts!$A128+$A$11,IF($C$7,8,0),1,1) -> 209750000 | D128: =OFFSET(InputPriceData!C$15,CalculationsAndCharts!$A128+$A$11,IF($C$7,8,0),1,1) -> 10040.80957 | E128: =OFFSET(InputPriceData!D$15,CalculationsAndCharts!$A128+$A$11,IF($C$7,8,0),1,1) -> 10126.87988 | F128: =OFFSET(InputPriceData!E$15,CalculationsAndCharts!$A128+$A$11,IF($C$7,8,0),1,1) -> 10012.50977 | G128: =OFFSET(InputPriceData!F$15,CalculationsAndCharts!$A128+$A$11,IF($C$7,8,0),1,1) -> 10110.13965 | H128: 294.80957 | I128: 69.319335 | J128: 640.969726 | K128: 0.4599430489 | L128: 0.3414710832 | M128: 0.1166025006 | N128: 10021.81604 | O128: 10126.87988 | P128: 9783.910156 | Q128: 0.9023806845 | R128: 0.6078851433 | S128: 0.3695243475 | T128: 9991.148329 | U128: FALSE | V128: FALSE | Y128: 10021.81604 | Z128: 9991.148329 | AO128: 209750000
A129: 97 | B129: =OFFSET(InputPriceData!B$15,CalculationsAndCharts!$A129+$A$11,0,1,1) -> 2004-08-19 | C129: =OFFSET(InputPriceData!G$15,CalculationsAndCharts!$A129+$A$11,IF($C$7,8,0),1,1) -> 162780000 | D129: =OFFSET(InputPriceData!C$15,CalculationsAndCharts!$A129+$A$11,IF($C$7,8,0),1,1) -> 10082.78027 | E129: =OFFSET(InputPriceData!D$15,CalculationsAndCharts!$A129+$A$11,IF($C$7,8,0),1,1) -> 10082.78027 | F129: =OFFSET(InputPriceData!E$15,CalculationsAndCharts!$A129+$A$11,IF($C$7,8,0),1,1) -> 9989.870117 | G129: =OFFSET(InputPriceData!F$15,CalculationsAndCharts!$A129+$A$11,IF($C$7,8,0),1,1) -> 10040.82031 | H129: 77.79004 | I129: 42.330078 | J129: 719.350586 | K129: 0.1081392599 | L129: 0.1296322425 | M129: 0.01680451831 | N129: 10010.15792 | O129: 10129.08984 | P129: 9783.910156 | Q129: 0.4885589502 | R129: 0.3587021636 | S129: 0.1286672421 | T129: 9921.407033 | U129: FALSE | V129: FALSE | Y129: 10010.15792 | Z129: 9921.407033 | AP129: 162780000
A130: 98 | B130: =OFFSET(InputPriceData!B$15,CalculationsAndCharts!$A130+$A$11,0,1,1) -> 2004-08-18 | C130: =OFFSET(InputPriceData!G$15,CalculationsAndCharts!$A130+$A$11,IF($C$7,8,0),1,1) -> 187150000 | D130: =OFFSET(InputPriceData!C$15,CalculationsAndCharts!$A130+$A$11,IF($C$7,8,0),1,1) -> 9964.219727 | E130: =OFFSET(InputPriceData!D$15,CalculationsAndCharts!$A130+$A$11,IF($C$7,8,0),1,1) -> 10083.15039 | F130: =OFFSET(InputPriceData!E$15,CalculationsAndCharts!$A130+$A$11,IF($C$7,8,0),1,1) -> 9934.049805 | G130: =OFFSET(InputPriceData!F$15,CalculationsAndCharts!$A130+$A$11,IF($C$7,8,0),1,1) -> 10083.15039 | H130: 43.359375 | I130: 110.320313 | J130: 840.500001 | K130: 0.05158759661 | L130: 0.09557962806 | M130: 0.009135465301 | N130: 10009.63384 | O130: 10162.41992 | P130: 9783.910156 | Q130: 0.5811493487 | R130: 0.4144555218 | S130: 0.1717733796 | T130: 9903.773612 | U130: FALSE | V130: FALSE | Y130: 10009.63384 | Z130: 9903.773612 | AO130: 187150000
A131: 99 | B131: =OFFSET(InputPriceData!B$15,CalculationsAndCharts!$A131+$A$11,0,1,1) -> 2004-08-17 | C131: =OFFSET(InputPriceData!G$15,CalculationsAndCharts!$A131+$A$11,IF($C$7,8,0),1,1) -> 186120000 | D131: =OFFSET(InputPriceData!C$15,CalculationsAndCharts!$A131+$A$11,IF($C$7,8,0),1,1) -> 9955.5 | E131: =OFFSET(InputPriceData!D$15,CalculationsAndCharts!$A131+$A$11,IF($C$7,8,0),1,1) -> 10023.94043 | F131: =OFFSET(InputPriceData!E$15,CalculationsAndCharts!$A131+$A$11,IF($C$7,8,0),1,1) -> 9952.110352 | G131: =OFFSET(InputPriceData!F$15,CalculationsAndCharts!$A131+$A$11,IF($C$7,8,0),1,1) -> 9972.830078 | H131: 147.410156 | I131: 18.280273 | J131: 736.44922 | K131: 0.2001633677 | L131: 0.1850446085 | M131: 0.03424150713 | N131: 10008.95604 | O131: 10178.28027 | P131: 9783.910156 | Q131: 0.04191563277 | R131: 0.08975564984 | S131: 0.008056076678 | T131: 9866.571046 | U131: FALSE | V131: FALSE | Y131: 10008.95604 | Z131: 9866.571046 | AO131: 186120000
A132: 100 | B132: =OFFSET(InputPriceData!B$15,CalculationsAndCharts!$A132+$A$11,0,1,1) -> 2004-08-16 | C132: =OFFSET(InputPriceData!G$15,CalculationsAndCharts!$A132+$A$11,IF($C$7,8,0),1,1) -> 176390000 | D132: =OFFSET(InputPriceData!C$15,CalculationsAndCharts!$A132+$A$11,IF($C$7,8,0),1,1) -> 9825.349609 | E132: =OFFSET(InputPriceData!D$15,CalculationsAndCharts!$A132+$A$11,IF($C$7,8,0),1,1) -> 9967.080078 | F132: =OFFSET(InputPriceData!E$15,CalculationsAndCharts!$A132+$A$11,IF($C$7,8,0),1,1) -> 9825.349609 | G132: =OFFSET(InputPriceData!F$15,CalculationsAndCharts!$A132+$A$11,IF($C$7,8,0),1,1) -> 9954.549805 | H132: 224.610351 | I132: 129.200196 | J132: 777.088869 | K132: 0.2890407519 | L132: 0.2385621732 | M132: 0.05691191048 | N132: 10010.23691 | O132: 10203.55957 | P132: 9783.910156 | Q132: 0.186751401 | R132: 0.1769685856 | S132: 0.03131788027 | T132: 9865.708063 | U132: FALSE | V132: FALSE | Y132: 10010.23691 | Z132: 9865.708063 | AO132: 176390000
A133: 101 | B133: =OFFSET(InputPriceData!B$15,CalculationsAndCharts!$A133+$A$11,0,1,1) -> 2004-08-13 | C133: =OFFSET(InputPriceData!G$15,CalculationsAndCharts!$A133+$A$11,IF($C$7,8,0),1,1) -> 182590000 | D133: =OFFSET(InputPriceData!C$15,CalculationsAndCharts!$A133+$A$11,IF($C$7,8,0),1,1) -> 9814.110352 | E133: =OFFSET(InputPriceData!D$15,CalculationsAndCharts!$A133+$A$11,IF($C$7,8,0),1,1) -> 9854.919922 | F133: =OFFSET(InputPriceData!E$15,CalculationsAndCharts!$A133+$A$11,IF($C$7,8,0),1,1) -> 9783.910156 | G133: =OFFSET(InputPriceData!F$15,CalculationsAndCharts!$A133+$A$11,IF($C$7,8,0),1,1) -> 9825.349609 | H133: 314.360352 | I133: 10.759765 | J133: 687.338868 | K133: 0.457358614 | L133: 0.3399148643 | M133: 0.115542115 | N133: 10013.59742 | O133: 10203.55957 | P133: 9783.910156 | Q133: 0.8025044162 | R133: 0.5477445947 | S133: 0.300024141 | T133: 9862.835774 | U133: FALSE | V133: FALSE | Y133: 10013.59742 | Z133: 9862.835774 | AO133: 182590000
A134: 102 | B134: =OFFSET(InputPriceData!B$15,CalculationsAndCharts!$A134+$A$11,0,1,1) -> 2004-08-12 | C134: =OFFSET(InputPriceData!G$15,CalculationsAndCharts!$A134+$A$11,IF($C$7,8,0),1,1) -> 248090000 | D134: =OFFSET(InputPriceData!C$15,CalculationsAndCharts!$A134+$A$11,IF($C$7,8,0),1,1) -> 9936.480469 | E134: =OFFSET(InputPriceData!D$15,CalculationsAndCharts!$A134+$A$11,IF($C$7,8,0),1,1) -> 9936.480469 | F134: =OFFSET(InputPriceData!E$15,CalculationsAndCharts!$A134+$A$11,IF($C$7,8,0),1,1) -> 9808.540039 | G134: =OFFSET(InputPriceData!F$15,CalculationsAndCharts!$A134+$A$11,IF($C$7,8,0),1,1) -> 9814.589844 | H134: 314.65039 | I134: 123.730469 | J134: 687.04883 | K134: 0.4579738386 | L134: 0.3402853222 | M134: 0.1157941005 | N134: 10038.18938 | O134: 10203.55957 | P134: 9793.049805 | Q134: 0.8950571176 | R134: 0.6034752536 | S134: 0.3641823817 | T134: 9878.90312 | U134: FALSE | V134: FALSE | Y134: 10038.18938 | Z134: 9878.90312 | AP134: 248090000
A135: 103 | B135: =OFFSET(InputPriceData!B$15,CalculationsAndCharts!$A135+$A$11,0,1,1) -> 2004-08-11 | C135: =OFFSET(InputPriceData!G$15,CalculationsAndCharts!$A135+$A$11,IF($C$7,8,0),1,1) -> 182920000 | D135: =OFFSET(InputPriceData!C$15,CalculationsAndCharts!$A135+$A$11,IF($C$7,8,0),1,1) -> 9931.240234 | E135: =OFFSET(InputPriceData!D$15,CalculationsAndCharts!$A135+$A$11,IF($C$7,8,0),1,1) -> 9954.179688 | F135: =OFFSET(InputPriceData!E$15,CalculationsAndCharts!$A135+$A$11,IF($C$7,8,0),1,1) -> 9841.360352 | G135: =OFFSET(InputPriceData!F$15,CalculationsAndCharts!$A135+$A$11,IF($C$7,8,0),1,1) -> 9938.320313 | H135: 178.75 | I135: 6.349609 | J135: 575.488282 | K135: 0.3106058031 | L135: 0.2515475804 | M135: 0.06327618518 | N135: 10067.47159 | O135: 10203.55957 | P135: 9793.049805 | Q135: 0.2922433502 | R135: 0.2404906195 | S135: 0.05783573805 | T135: 9915.740353 | U135: FALSE | V135: FALSE | Y135: 10067.47159 | Z135: 9915.740353 | AO135: 182920000
A136: 104 | B136: =OFFSET(InputPriceData!B$15,CalculationsAndCharts!$A136+$A$11,0,1,1) -> 2004-08-10 | C136: =OFFSET(InputPriceData!G$15,CalculationsAndCharts!$A136+$A$11,IF($C$7,8,0),1,1) -> 167590000 | D136: =OFFSET(InputPriceData!C$15,CalculationsAndCharts!$A136+$A$11,IF($C$7,8,0),1,1) -> 9815.549805 | E136: =OFFSET(InputPriceData!D$15,CalculationsAndCharts!$A136+$A$11,IF($C$7,8,0),1,1) -> 9944.669922 | F136: =OFFSET(InputPriceData!E$15,CalculationsAndCharts!$A136+$A$11,IF($C$7,8,0),1,1) -> 9815.469727 | G136: =OFFSET(InputPriceData!F$15,CalculationsAndCharts!$A136+$A$11,IF($C$7,8,0),1,1) -> 9944.669922 | H136: 140.469726 | I136: 130.009766 | J136: 601.069338 | K136: 0.2336997034 | L136: 0.2052385311 | M136: 0.04212285463 | N136: 10076.19583 | O136: 10203.55957 | P136: 9793.049805 | Q136: 0.2613081104 | R136: 0.2218629482 | S136: 0.04922316779 | T136: 9914.354259 | U136: FALSE | V136: FALSE | Y136: 10076.19583 | Z136: 9914.354259 | AO136: 167590000
A137: 105 | B137: =OFFSET(InputPriceData!B$15,CalculationsAndCharts!$A137+$A$11,0,1,1) -> 2004-08-09 | C137: =OFFSET(InputPriceData!G$15,CalculationsAndCharts!$A137+$A$11,IF($C$7,8,0),1,1) -> 148320000 | D137: =OFFSET(InputPriceData!C$15,CalculationsAndCharts!$A137+$A$11,IF($C$7,8,0),1,1) -> 9816.139648 | E137: =OFFSET(InputPriceData!D$15,CalculationsAndCharts!$A137+$A$11,IF($C$7,8,0),1,1) -> 9858.679688 | F137: =OFFSET(InputPriceData!E$15,CalculationsAndCharts!$A137+$A$11,IF($C$7,8,0),1,1) -> 9811.120117 | G137: =OFFSET(InputPriceData!F$15,CalculationsAndCharts!$A137+$A$11,IF($C$7,8,0),1,1) -> 9814.660156 | H137: 147.259766 | I137: 0.669922 | J137: 594.279298 | K137: 0.2477955508 | L137: 0.2137263532 | M137: 0.04567895405 | N137: 10081.97971 | O137: 10203.55957 | P137: 9793.049805 | Q137: 0.8947145581 | R137: 0.6032689812 | S137: 0.3639334637 | T137: 9912.784771 | U137: FALSE | V137: FALSE | Y137: 10081.97971 | Z137: 9912.784771 | AP137: 148320000
A138: 106 | B138: =OFFSET(InputPriceData!B$15,CalculationsAndCharts!$A138+$A$11,0,1,1) -> 2004-08-06 | C138: =OFFSET(InputPriceData!G$15,CalculationsAndCharts!$A138+$A$11,IF($C$7,8,0),1,1) -> 215870000 | D138: =OFFSET(InputPriceData!C$15,CalculationsAndCharts!$A138+$A$11,IF($C$7,8,0),1,1) -> 9960.669922 | E138: =OFFSET(InputPriceData!D$15,CalculationsAndCharts!$A138+$A$11,IF($C$7,8,0),1,1) -> 9960.740234 | F138: =OFFSET(InputPriceData!E$15,CalculationsAndCharts!$A138+$A$11,IF($C$7,8,0),1,1) -> 9793.049805 | G138: =OFFSET(InputPriceData!F$15,CalculationsAndCharts!$A138+$A$11,IF($C$7,8,0),1,1) -> 9815.330078 | H138: 146.889649 | I138: 147.700195 | J138: 593.909181 | K138: 0.2473267861 | L138: 0.2134440863 | M138: 0.04555837797 | N138: 10094.77507 | O138: 10203.55957 | P138: 9793.049805 | Q138: 0.891450704 | R138: 0.6013036497 | S138: 0.3615660792 | T138: 9968.928003 | U138: FALSE | V138: FALSE | Y138: 10094.77507 | Z138: 9968.928003 | AP138: 215870000
A139: 107 | B139: =OFFSET(InputPriceData!B$15,CalculationsAndCharts!$A139+$A$11,0,1,1) -> 2004-08-05 | C139: =OFFSET(InputPriceData!G$15,CalculationsAndCharts!$A139+$A$11,IF($C$7,8,0),1,1) -> 178250000 | D139: =OFFSET(InputPriceData!C$15,CalculationsAndCharts!$A139+$A$11,IF($C$7,8,0),1,1) -> 10127.09961 | E139: =OFFSET(InputPriceData!D$15,CalculationsAndCharts!$A139+$A$11,IF($C$7,8,0),1,1) -> 10129.08984 | F139: =OFFSET(InputPriceData!E$15,CalculationsAndCharts!$A139+$A$11,IF($C$7,8,0),1,1) -> 9955.730469 | G139: =OFFSET(InputPriceData!F$15,CalculationsAndCharts!$A139+$A$11,IF($C$7,8,0),1,1) -> 9963.030273 | H139: 87.299805 | I139: 163.479493 | J139: 534.319337 | K139: 0.1633850751 | L139: 0.1628985398 | M139: 0.02653593428 | N139: 10108.11382 | O139: 10203.55957 | P139: 9913.919922 | Q139: 0.6608865441 | R139: 0.4624693169 | S139: 0.2138778691 | T139: 10055.91555 | U139: FALSE | V139: FALSE | Y139: 10108.11382 | Z139: 10055.91555 | AP139: 178250000
A140: 108 | B140: =OFFSET(InputPriceData!B$15,CalculationsAndCharts!$A140+$A$11,0,1,1) -> 2004-08-04 | C140: =OFFSET(InputPriceData!G$15,CalculationsAndCharts!$A140+$A$11,IF($C$7,8,0),1,1) -> 157430000 | D140: =OFFSET(InputPriceData!C$15,CalculationsAndCharts!$A140+$A$11,IF($C$7,8,0),1,1) -> 10117.95996 | E140: =OFFSET(InputPriceData!D$15,CalculationsAndCharts!$A140+$A$11,IF($C$7,8,0),1,1) -> 10162.41992 | F140: =OFFSET(InputPriceData!E$15,CalculationsAndCharts!$A140+$A$11,IF($C$7,8,0),1,1) -> 10068.11035 | G140: =OFFSET(InputPriceData!F$15,CalculationsAndCharts!$A140+$A$11,IF($C$7,8,0),1,1) -> 10126.50977 | H140: 80.379883 | I140: 6.269532 | J140: 375.040039 | K140: 0.2143234712 | L140: 0.1935711224 | M140: 0.03746977945 | N140: 10112.06869 | O140: 10237.12012 | P140: 9913.919922 | Q140: 0.3155304192 | R140: 0.2545129406 | S140: 0.06477683692 | T140: 10081.18656 | U140: FALSE | V140: FALSE | Y140: 10112.06869 | Z140: 10081.18656 | AO140: 157430000
A141: 109 | B141: =OFFSET(InputPriceData!B$15,CalculationsAndCharts!$A141+$A$11,0,1,1) -> 2004-08-03 | C141: =OFFSET(InputPriceData!G$15,CalculationsAndCharts!$A141+$A$11,IF($C$7,8,0),1,1) -> 190880000 | D141: =OFFSET(InputPriceData!C$15,CalculationsAndCharts!$A141+$A$11,IF($C$7,8,0),1,1) -> 10178.26953 | E141: =OFFSET(InputPriceData!D$15,CalculationsAndCharts!$A141+$A$11,IF($C$7,8,0),1,1) -> 10178.28027 | F141: =OFFSET(InputPriceData!E$15,CalculationsAndCharts!$A141+$A$11,IF($C$7,8,0),1,1) -> 10102.83984 | G141: =OFFSET(InputPriceData!F$15,CalculationsAndCharts!$A141+$A$11,IF($C$7,8,0),1,1) -> 10120.24023 | H141: 28.830079 | I141: 58.919922 | J141: 471.710937 | K141: 0.0611181059 | L141: 0.1013184294 | M141: 0.01026542413 | N141: 10111.50652 | O141: 10237.12012 | P141: 9913.919922 | Q141: 0.2767338337 | R141: 0.2311515557 | S141: 0.05343104172 | T141: 10078.04732 | U141: FALSE | V141: FALSE | Y141: 10111.50652 | Z141: 10078.04732 | AP141: 190880000
A142: 110 | B142: =OFFSET(InputPriceData!B$15,CalculationsAndCharts!$A142+$A$11,0,1,1) -> 2004-08-02 | C142: =OFFSET(InputPriceData!G$15,CalculationsAndCharts!$A142+$A$11,IF($C$7,8,0),1,1) -> 177330000 | D142: =OFFSET(InputPriceData!C$15,CalculationsAndCharts!$A142+$A$11,IF($C$7,8,0),1,1) -> 10138.45019 | E142: =OFFSET(InputPriceData!D$15,CalculationsAndCharts!$A142+$A$11,IF($C$7,8,0),1,1) -> 10203.55957 | F142: =OFFSET(InputPriceData!E$15,CalculationsAndCharts!$A142+$A$11,IF($C$7,8,0),1,1) -> 10101.36035 | G142: =OFFSET(InputPriceData!F$15,CalculationsAndCharts!$A142+$A$11,IF($C$7,8,0),1,1) -> 10179.16016 | H142: 85.100586 | I142: 39.450195 | J142: 467.801758 | K142: 0.1819159175 | L142: 0.1740568965 | M142: 0.03029580323 | N142: 10111.41594 | O142: 10237.12012 | P142: 9913.919922 | Q142: 0.6413370914 | R142: 0.4506976034 | S142: 0.2031283297 | T142: 10075.66565 | U142: FALSE | V142: FALSE | Y142: 10111.41594 | Z142: 10075.66565 | AO142: 177330000
A143: 111 | B143: =OFFSET(InputPriceData!B$15,CalculationsAndCharts!$A143+$A$11,0,1,1) -> 2004-07-30 | C143: =OFFSET(InputPriceData!G$15,CalculationsAndCharts!$A143+$A$11,IF($C$7,8,0),1,1) -> 197240000 | D143: =OFFSET(InputPriceData!C$15,CalculationsAndCharts!$A143+$A$11,IF($C$7,8,0),1,1) -> 10129.12012 | E143: =OFFSET(InputPriceData!D$15,CalculationsAndCharts!$A143+$A$11,IF($C$7,8,0),1,1) -> 10149.65039 | F143: =OFFSET(InputPriceData!E$15,CalculationsAndCharts!$A143+$A$11,IF($C$7,8,0),1,1) -> 10086.32031 | G143: =OFFSET(InputPriceData!F$15,CalculationsAndCharts!$A143+$A$11,IF($C$7,8,0),1,1) -> 10139.70996 | H143: 0.070312 | I143: 10.469727 | J143: 474.072266 | K143: 0.0001483149407 | L143: 0.06460543695 | M143: 0.004173862484 | N143: 10109.29945 | O143: 10238.37012 | P143: 9913.919922 | Q143: 0.3918317355 | R143: 0.3004578192 | S143: 0.09027490114 | T143: 10049.28416 | U143: FALSE | V143: FALSE | Y143: 10109.29945 | Z143: 10049.28416 | AO143: 197240000
A144: 112 | B144: =OFFSET(InputPriceData!B$15,CalculationsAndCharts!$A144+$A$11,0,1,1) -> 2004-07-29 | C144: =OFFSET(InputPriceData!G$15,CalculationsAndCharts!$A144+$A$11,IF($C$7,8,0),1,1) -> 215050000 | D144: =OFFSET(InputPriceData!C$15,CalculationsAndCharts!$A144+$A$11,IF($C$7,8,0),1,1) -> 10115.51953 | E144: =OFFSET(InputPriceData!D$15,CalculationsAndCharts!$A144+$A$11,IF($C$7,8,0),1,1) -> 10163.00977 | F144: =OFFSET(InputPriceData!E$15,CalculationsAndCharts!$A144+$A$11,IF($C$7,8,0),1,1) -> 10084.83984 | G144: =OFFSET(InputPriceData!F$15,CalculationsAndCharts!$A144+$A$11,IF($C$7,8,0),1,1) -> 10129.24023 | H144: 33.919922 | I144: 12.169921 | J144: 486.982422 | K144: 0.06965327796 | L144: 0.1064578878 | M144: 0.01133328188 | N144: 10109.17199 | O144: 10238.37012 | P144: 9913.919922 | Q144: 0.3272934664 | R144: 0.2615960658 | S144: 0.06843250164 | T144: 10040.31092 | U144: FALSE | V144: FALSE | Y144: 10109.17199 | Z144: 10040.31092 | AO144: 215050000
A145: 113 | B145: =OFFSET(InputPriceData!B$15,CalculationsAndCharts!$A145+$A$11,0,1,1) -> 2004-07-28 | C145: =OFFSET(InputPriceData!G$15,CalculationsAndCharts!$A145+$A$11,IF($C$7,8,0),1,1) -> 223560000 | D145: =OFFSET(InputPriceData!C$15,CalculationsAndCharts!$A145+$A$11,IF($C$7,8,0),1,1) -> 10084.03027 | E145: =OFFSET(InputPriceData!D$15,CalculationsAndCharts!$A145+$A$11,IF($C$7,8,0),1,1) -> 10146.86035 | F145: =OFFSET(InputPriceData!E$15,CalculationsAndCharts!$A145+$A$11,IF($C$7,8,0),1,1) -> 9994.219727 | G145: =OFFSET(InputPriceData!F$15,CalculationsAndCharts!$A145+$A$11,IF($C$7,8,0),1,1) -> 10117.07031 | H145: 91.729492 | I145: 31.930665 | J145: 520.45215 | K145: 0.1762496168 | L145: 0.1706449305 | M145: 0.02911969232 | N145: 10108.94194 | O145: 10286.88965 | P145: 9913.919922 | Q145: 0.08936665278 | R145: 0.118328307 | S145: 0.01400158825 | T145: 10033.77821 | U145: FALSE | V145: FALSE | Y145: 10108.94194 | Z145: 10033.77821 | AO145: 223560000
A146: 114 | B146: =OFFSET(InputPriceData!B$15,CalculationsAndCharts!$A146+$A$11,0,1,1) -> 2004-07-27 | C146: =OFFSET(InputPriceData!G$15,CalculationsAndCharts!$A146+$A$11,IF($C$7,8,0),1,1) -> 236270000 | D146: =OFFSET(InputPriceData!C$15,CalculationsAndCharts!$A146+$A$11,IF($C$7,8,0),1,1) -> 9963.540039 | E146: =OFFSET(InputPriceData!D$15,CalculationsAndCharts!$A146+$A$11,IF($C$7,8,0),1,1) -> 10103.12988 | F146: =OFFSET(InputPriceData!E$15,CalculationsAndCharts!$A146+$A$11,IF($C$7,8,0),1,1) -> 9963.540039 | G146: =OFFSET(InputPriceData!F$15,CalculationsAndCharts!$A146+$A$11,IF($C$7,8,0),1,1) -> 10085.13965 | H146: 162.450196 | I146: 123.219726 | J146: 527.311524 | K146: 0.3080725313 | L146: 0.2500221694 | M146: 0.06251108519 | N146: 10108.69815 | O146: 10286.88965 | P146: 9913.919922 | Q146: 0.08185724436 | R146: 0.1138065127 | S146: 0.01295192234 | T146: 10032.59543 | U146: FALSE | V146: FALSE | Y146: 10108.69815 | Z146: 10032.59543 | AO146: =IF(G146>=D146,C146,NA()) -> 236270000 | AP146: =IF(G146<D146,C146,NA()) -> 
A147: 115 | B147: =OFFSET(InputPriceData!B$15,CalculationsAndCharts!$A147+$A$11,0,1,1) -> 2004-07-26 | C147: =OFFSET(InputPriceData!G$15,CalculationsAndCharts!$A147+$A$11,IF($C$7,8,0),1,1) -> 221240000 | D147: =OFFSET(InputPriceData!C$15,CalculationsAndCharts!$A147+$A$11,IF($C$7,8,0),1,1) -> 9964.709961 | E147: =OFFSET(InputPriceData!D$15,CalculationsAndCharts!$A147+$A$11,IF($C$7,8,0),1,1) -> 10003.79981 | F147: =OFFSET(InputPriceData!E$15,CalculationsAndCharts!$A147+$A$11,IF($C$7,8,0),1,1) -> 9913.919922 | G147: =OFFSET(InputPriceData!F$15,CalculationsAndCharts!$A147+$A$11,IF($C$7,8,0),1,1) -> 9961.919922 | H147: 276.299805 | I147: 0.299805 | J147: 413.461915 | K147: 0.6682593849 | L147: 0.4669088769 | M147: 0.2180038994 | N147: 10110.26901 | O147: 10286.88965 | P147: 9913.919922 | Q147: 0.7426064549 | R147: 0.5116770051 | S147: 0.2618133575 | T147: 10031.90595 | U147: FALSE | V147: FALSE | Y147: 10110.26901 | Z147: 10031.90595 | AP147: 221240000
A148: 116 | B148: =OFFSET(InputPriceData!B$15,CalculationsAndCharts!$A148+$A$11,0,1,1) -> 2004-07-23 | C148: =OFFSET(InputPriceData!G$15,CalculationsAndCharts!$A148+$A$11,IF($C$7,8,0),1,1) -> 238540000 | D148: =OFFSET(InputPriceData!C$15,CalculationsAndCharts!$A148+$A$11,IF($C$7,8,0),1,1) -> 10045.45996 | E148: =OFFSET(InputPriceData!D$15,CalculationsAndCharts!$A148+$A$11,IF($C$7,8,0),1,1) -> 10045.46973 | F148: =OFFSET(InputPriceData!E$15,CalculationsAndCharts!$A148+$A$11,IF($C$7,8,0),1,1) -> 9931.769531 | G148: =OFFSET(InputPriceData!F$15,CalculationsAndCharts!$A148+$A$11,IF($C$7,8,0),1,1) -> 9962.219727 | H148: 251 | I148: 88.110351 | J148: 438.16211 | K148: 0.5728473418 | L148: 0.4094564639 | M148: 0.1676545958 | N148: 10151.62559 | O148: 10286.88965 | P148: 9931.769531 | Q148: 0.8285076258 | R148: 0.5634024413 | S148: 0.3174223109 | T148: 10056.72797 | U148: FALSE | V148: FALSE | Y148: 10151.62559 | Z148: 10056.72797 | AP148: 238540000
A149: 117 | B149: =OFFSET(InputPriceData!B$15,CalculationsAndCharts!$A149+$A$11,0,1,1) -> 2004-07-22 | C149: =OFFSET(InputPriceData!G$15,CalculationsAndCharts!$A149+$A$11,IF($C$7,8,0),1,1) -> 247870000 | D149: =OFFSET(InputPriceData!C$15,CalculationsAndCharts!$A149+$A$11,IF($C$7,8,0),1,1) -> 10047.59961 | E149: =OFFSET(InputPriceData!D$15,CalculationsAndCharts!$A149+$A$11,IF($C$7,8,0),1,1) -> 10073.49023 | F149: =OFFSET(InputPriceData!E$15,CalculationsAndCharts!$A149+$A$11,IF($C$7,8,0),1,1) -> 9946.879883 | G149: =OFFSET(InputPriceData!F$15,CalculationsAndCharts!$A149+$A$11,IF($C$7,8,0),1,1) -> 10050.33008 | H149: 121.229492 | I149: 4.200195 | J149: 391.711916 | K149: 0.3094863522 | L149: 0.2508735024 | M149: 0.06293751421 | N149: 10189.77653 | O149: 10286.88965 | P149: 9946.879883 | Q149: 0.391486918 | R149: 0.3002501872 | S149: 0.09015017491 | T149: 10100.67758 | U149: FALSE | V149: FALSE | Y149: 10189.77653 | Z149: 10100.67758 | AO149: 247870000
A150: 118 | B150: =OFFSET(InputPriceData!B$15,CalculationsAndCharts!$A150+$A$11,0,1,1) -> 2004-07-21 | C150: =OFFSET(InputPriceData!G$15,CalculationsAndCharts!$A150+$A$11,IF($C$7,8,0),1,1) -> 277570000 | D150: =OFFSET(InputPriceData!C$15,CalculationsAndCharts!$A150+$A$11,IF($C$7,8,0),1,1) -> 10156.29981 | E150: =OFFSET(InputPriceData!D$15,CalculationsAndCharts!$A150+$A$11,IF($C$7,8,0),1,1) -> 10237.12012 | F150: =OFFSET(InputPriceData!E$15,CalculationsAndCharts!$A150+$A$11,IF($C$7,8,0),1,1) -> 10045.61035 | G150: =OFFSET(InputPriceData!F$15,CalculationsAndCharts!$A150+$A$11,IF($C$7,8,0),1,1) -> 10046.12988 | H150: 194.160156 | I150: 102.94043 | J150: 456.24219 | K150: 0.425563791 | L150: 0.3207695946 | M150: 0.1028931328 | N150: 10199.14241 | O150: 10286.88965 | P150: 10045.61035 | Q150: 0.9956935302 | R150: 0.6640735236 | S150: 0.4409936447 | T150: 10105.66613 | U150: FALSE | V150: FALSE | Y150: 10199.14241 | Z150: 10105.66613 | AP150: 277570000
A151: 119 | B151: =OFFSET(InputPriceData!B$15,CalculationsAndCharts!$A151+$A$11,0,1,1) -> 2004-07-20 | C151: =OFFSET(InputPriceData!G$15,CalculationsAndCharts!$A151+$A$11,IF($C$7,8,0),1,1) -> 197640000 | D151: =OFFSET(InputPriceData!C$15,CalculationsAndCharts!$A151+$A$11,IF($C$7,8,0),1,1) -> 10094.42969 | E151: =OFFSET(InputPriceData!D$15,CalculationsAndCharts!$A151+$A$11,IF($C$7,8,0),1,1) -> 10155.62988 | F151: =OFFSET(InputPriceData!E$15,CalculationsAndCharts!$A151+$A$11,IF($C$7,8,0),1,1) -> 10072.67969 | G151: =OFFSET(InputPriceData!F$15,CalculationsAndCharts!$A151+$A$11,IF($C$7,8,0),1,1) -> 10149.07031 | H151: 70.269531 | I151: 55.010743 | J151: 374.251955 | K151: 0.1877599571 | L151: 0.1775758881 | M151: 0.03153319604 | N151: 10216.69209 | O151: 10286.88965 | P151: 10063.30957 | Q151: 0.2328409242 | R151: 0.2047214167 | S151: 0.04191085847 | T151: 10152.63359 | U151: FALSE | V151: FALSE | Y151: 10216.69209 | Z151: 10152.63359 | AO151: 197640000
A152: 120 | B152: =OFFSET(InputPriceData!B$15,CalculationsAndCharts!$A152+$A$11,0,1,1) -> 2004-07-19 | C152: =OFFSET(InputPriceData!G$15,CalculationsAndCharts!$A152+$A$11,IF($C$7,8,0),1,1) -> 198380000 | D152: =OFFSET(InputPriceData!C$15,CalculationsAndCharts!$A152+$A$11,IF($C$7,8,0),1,1) -> 10140.95019 | E152: =OFFSET(InputPriceData!D$15,CalculationsAndCharts!$A152+$A$11,IF($C$7,8,0),1,1) -> 10148.62988 | F152: =OFFSET(InputPriceData!E$15,CalculationsAndCharts!$A152+$A$11,IF($C$7,8,0),1,1) -> 10063.30957 | G152: =OFFSET(InputPriceData!F$15,CalculationsAndCharts!$A152+$A$11,IF($C$7,8,0),1,1) -> 10094.05957 | H152: 188.770508 | I152: 45.720703 | J152: 382.731446 | K152: 0.4932192271 | L152: 0.3615083518 | M152: 0.1306882884 | N152: 10218.89385 | O152: 10334.08008 | P152: 10063.30957 | Q152: 0.7728703896 | R152: 0.5299004496 | S152: 0.2807944865 | T152: 10152.78946 | U152: FALSE | V152: FALSE | Y152: 10218.89385 | Z152: 10152.78946 | AP152: 198380000
A153: 121 | B153: =OFFSET(InputPriceData!B$15,CalculationsAndCharts!$A153+$A$11,0,1,1) -> 2004-07-16 | C153: =OFFSET(InputPriceData!G$15,CalculationsAndCharts!$A153+$A$11,IF($C$7,8,0),1,1) -> 267310000 | D153: =OFFSET(InputPriceData!C$15,CalculationsAndCharts!$A153+$A$11,IF($C$7,8,0),1,1) -> 10162.33984 | E153: =OFFSET(InputPriceData!D$15,CalculationsAndCharts!$A153+$A$11,IF($C$7,8,0),1,1) -> 10238.37012 | F153: =OFFSET(InputPriceData!E$15,CalculationsAndCharts!$A153+$A$11,IF($C$7,8,0),1,1) -> 10135.12988 | G153: =OFFSET(InputPriceData!F$15,CalculationsAndCharts!$A153+$A$11,IF($C$7,8,0),1,1) -> 10139.78027 | H153: 194.379883 | I153: 23.379883 | J153: 388.340821 | K153: 0.5005394038 | L153: 0.3659162001 | M153: 0.1338946655 | N153: 10237.66086 | O153: 10448.08984 | P153: 10135.12988 | Q153: 0.9702812463 | R153: 0.6487715031 | S153: 0.4209044633 | T153: 10175.71897 | U153: FALSE | V153: FALSE | Y153: 10237.66086 | Z153: 10175.71897 | AP153: 267310000
A154: 122 | B154: =OFFSET(InputPriceData!B$15,CalculationsAndCharts!$A154+$A$11,0,1,1) -> 2004-07-15 | C154: =OFFSET(InputPriceData!G$15,CalculationsAndCharts!$A154+$A$11,IF($C$7,8,0),1,1) -> 231930000 | D154: =OFFSET(InputPriceData!C$15,CalculationsAndCharts!$A154+$A$11,IF($C$7,8,0),1,1) -> 10208.20019 | E154: =OFFSET(InputPriceData!D$15,CalculationsAndCharts!$A154+$A$11,IF($C$7,8,0),1,1) -> 10235.65039 | F154: =OFFSET(InputPriceData!E$15,CalculationsAndCharts!$A154+$A$11,IF($C$7,8,0),1,1) -> 10162.94043 | G154: =OFFSET(InputPriceData!F$15,CalculationsAndCharts!$A154+$A$11,IF($C$7,8,0),1,1) -> 10163.16016 | H154: 272.320313 | I154: 45.639649 | J154: 466.281251 | K154: 0.5840258694 | L154: 0.4161876203 | M154: 0.1732121353 | N154: 10252.7926 | O154: 10471.24023 | P154: 10162.17969 | Q154: 0.993655172 | R154: 0.6628461251 | S154: 0.4393649855 | T154: 10201.84032 | U154: FALSE | V154: FALSE | Y154: 10252.7926 | Z154: 10201.84032 | AP154: 231930000
A155: 123 | B155: =OFFSET(InputPriceData!B$15,CalculationsAndCharts!$A155+$A$11,0,1,1) -> 2004-07-14 | C155: =OFFSET(InputPriceData!G$15,CalculationsAndCharts!$A155+$A$11,IF($C$7,8,0),1,1) -> 298900000 | D155: =OFFSET(InputPriceData!C$15,CalculationsAndCharts!$A155+$A$11,IF($C$7,8,0),1,1) -> 10232.83984 | E155: =OFFSET(InputPriceData!D$15,CalculationsAndCharts!$A155+$A$11,IF($C$7,8,0),1,1) -> 10286.88965 | F155: =OFFSET(InputPriceData!E$15,CalculationsAndCharts!$A155+$A$11,IF($C$7,8,0),1,1) -> 10172.38965 | G155: =OFFSET(InputPriceData!F$15,CalculationsAndCharts!$A155+$A$11,IF($C$7,8,0),1,1) -> 10208.79981 | H155: 204.629883 | I155: 38.790039 | J155: 442.692383 | K155: 0.4622394486 | L155: 0.3428538615 | M155: 0.1175487703 | N155: 10271.57061 | O155: 10471.24023 | P155: 10162.17969 | Q155: 0.6983107834 | R155: 0.4850043427 | S155: 0.2352292124 | T155: 10232.15364 | U155: FALSE | V155: FALSE | Y155: 10271.57061 | Z155: 10232.15364 | AP155: 298900000
A156: 124 | B156: =OFFSET(InputPriceData!B$15,CalculationsAndCharts!$A156+$A$11,0,1,1) -> 2004-07-13 | C156: =OFFSET(InputPriceData!G$15,CalculationsAndCharts!$A156+$A$11,IF($C$7,8,0),1,1) -> 160630000 | D156: =OFFSET(InputPriceData!C$15,CalculationsAndCharts!$A156+$A$11,IF($C$7,8,0),1,1) -> 10238.37012 | E156: =OFFSET(InputPriceData!D$15,CalculationsAndCharts!$A156+$A$11,IF($C$7,8,0),1,1) -> 10257.09961 | F156: =OFFSET(InputPriceData!E$15,CalculationsAndCharts!$A156+$A$11,IF($C$7,8,0),1,1) -> 10230.62988 | G156: =OFFSET(InputPriceData!F$15,CalculationsAndCharts!$A156+$A$11,IF($C$7,8,0),1,1) -> 10247.58984 | H156: 109.5 | I156: 9.370117 | J156: 460.242188 | K156: 0.2379182154 | L156: 0.2077787103 | M156: 0.04317199246 | N156: 10279.93213 | O156: 10471.24023 | P156: 10162.17969 | Q156: 0.4472917549 | R156: 0.3338530997 | S156: 0.1114578922 | T156: 10239.33685 | U156: FALSE | V156: FALSE | Y156: 10279.93213 | Z156: 10239.33685 | AO156: 160630000
A157: 125 | B157: =OFFSET(InputPriceData!B$15,CalculationsAndCharts!$A157+$A$11,0,1,1) -> 2004-07-12 | C157: =OFFSET(InputPriceData!G$15,CalculationsAndCharts!$A157+$A$11,IF($C$7,8,0),1,1) -> 155520000 | D157: =OFFSET(InputPriceData!C$15,CalculationsAndCharts!$A157+$A$11,IF($C$7,8,0),1,1) -> 10211.75 | E157: =OFFSET(InputPriceData!D$15,CalculationsAndCharts!$A157+$A$11,IF($C$7,8,0),1,1) -> 10257.09961 | F157: =OFFSET(InputPriceData!E$15,CalculationsAndCharts!$A157+$A$11,IF($C$7,8,0),1,1) -> 10162.17969 | G157: =OFFSET(InputPriceData!F$15,CalculationsAndCharts!$A157+$A$11,IF($C$7,8,0),1,1) -> 10238.21973 | H157: 133.620117 | I157: 25 | J157: 465.622071 | K157: 0.286971184 | L157: 0.2373159817 | M157: 0.05631887519 | N157: 10281.39141 | O157: 10487.54004 | P157: 10162.17969 | Q157: 0.5325795613 | R157: 0.3852091982 | S157: 0.1483861264 | T157: 10238.3016 | U157: FALSE | V157: FALSE | Y157: 10281.39141 | Z157: 10238.3016 | AO157: 155520000
A158: 126 | B158: =OFFSET(InputPriceData!B$15,CalculationsAndCharts!$A158+$A$11,0,1,1) -> 2004-07-09 | C158: =OFFSET(InputPriceData!G$15,CalculationsAndCharts!$A158+$A$11,IF($C$7,8,0),1,1) -> 161230000 | D158: =OFFSET(InputPriceData!C$15,CalculationsAndCharts!$A158+$A$11,IF($C$7,8,0),1,1) -> 10173.12012 | E158: =OFFSET(InputPriceData!D$15,CalculationsAndCharts!$A158+$A$11,IF($C$7,8,0),1,1) -> 10239.25 | F158: =OFFSET(InputPriceData!E$15,CalculationsAndCharts!$A158+$A$11,IF($C$7,8,0),1,1) -> 10173.12012 | G158: =OFFSET(InputPriceData!F$15,CalculationsAndCharts!$A158+$A$11,IF($C$7,8,0),1,1) -> 10213.21973 | H158: 230.589843 | I158: 41.660157 | J158: 512.591797 | K158: 0.4498508255 | L158: 0.3353940454 | M158: 0.1124891657 | N158: 10283.96789 | O158: 10487.54004 | P158: 10166.25 | Q158: 0.7076179072 | R158: 0.4906086323 | S158: 0.2406968301 | T158: 10238.31587 | U158: FALSE | V158: FALSE | Y158: 10283.96789 | Z158: 10238.31587 | AO158: 161230000
A159: 127 | B159: =OFFSET(InputPriceData!B$15,CalculationsAndCharts!$A159+$A$11,0,1,1) -> 2004-07-08 | C159: =OFFSET(InputPriceData!G$15,CalculationsAndCharts!$A159+$A$11,IF($C$7,8,0),1,1) -> 181790000 | D159: =OFFSET(InputPriceData!C$15,CalculationsAndCharts!$A159+$A$11,IF($C$7,8,0),1,1) -> 10238.51953 | E159: =OFFSET(InputPriceData!D$15,CalculationsAndCharts!$A159+$A$11,IF($C$7,8,0),1,1) -> 10263.73047 | F159: =OFFSET(InputPriceData!E$15,CalculationsAndCharts!$A159+$A$11,IF($C$7,8,0),1,1) -> 10166.25 | G159: =OFFSET(InputPriceData!F$15,CalculationsAndCharts!$A159+$A$11,IF($C$7,8,0),1,1) -> 10171.55957 | H159: 308.010743 | I159: 68.730469 | J159: 506.692383 | K159: 0.6078850864 | L159: 0.4305544606 | M159: 0.1853771435 | N159: 10292.935 | O159: 10498.66992 | P159: 10166.25 | Q159: 0.9680550433 | R159: 0.6474309938 | S159: 0.4191668918 | T159: 10246.27127 | U159: FALSE | V159: FALSE | Y159: 10292.935 | Z159: 10246.27127 | AP159: 181790000
A160: 128 | B160: =OFFSET(InputPriceData!B$15,CalculationsAndCharts!$A160+$A$11,0,1,1) -> 2004-07-07 | C160: =OFFSET(InputPriceData!G$15,CalculationsAndCharts!$A160+$A$11,IF($C$7,8,0),1,1) -> 179940000 | D160: =OFFSET(InputPriceData!C$15,CalculationsAndCharts!$A160+$A$11,IF($C$7,8,0),1,1) -> 10211.91992 | E160: =OFFSET(InputPriceData!D$15,CalculationsAndCharts!$A160+$A$11,IF($C$7,8,0),1,1) -> 10266.61035 | F160: =OFFSET(InputPriceData!E$15,CalculationsAndCharts!$A160+$A$11,IF($C$7,8,0),1,1) -> 10199.29004 | G160: =OFFSET(InputPriceData!F$15,CalculationsAndCharts!$A160+$A$11,IF($C$7,8,0),1,1) -> 10240.29004 | H160: 154.780274 | I160: 20.950195 | J160: 522.461914 | K160: 0.2962517838 | L160: 0.2429042999 | M160: 0.05900249893 | N160: 10320.55542 | O160: 10498.66992 | P160: 10191.40039 | Q160: 0.6817800461 | R160: 0.4750503503 | S160: 0.2256728353 | T160: 10300.18808 | U160: FALSE | V160: FALSE | Y160: 10320.55542 | Z160: 10300.18808 | AO160: 179940000
A161: 129 | B161: =OFFSET(InputPriceData!B$15,CalculationsAndCharts!$A161+$A$11,0,1,1) -> 2004-07-06 | C161: =OFFSET(InputPriceData!G$15,CalculationsAndCharts!$A161+$A$11,IF($C$7,8,0),1,1) -> 180070000 | D161: =OFFSET(InputPriceData!C$15,CalculationsAndCharts!$A161+$A$11,IF($C$7,8,0),1,1) -> 10280.25977 | E161: =OFFSET(InputPriceData!D$15,CalculationsAndCharts!$A161+$A$11,IF($C$7,8,0),1,1) -> 10280.25977 | F161: =OFFSET(InputPriceData!E$15,CalculationsAndCharts!$A161+$A$11,IF($C$7,8,0),1,1) -> 10191.40039 | G161: =OFFSET(InputPriceData!F$15,CalculationsAndCharts!$A161+$A$11,IF($C$7,8,0),1,1) -> 10219.33984 | H161: 152.129883 | I161: 63.490234 | J161: 525.112305 | K161: 0.2897092328 | L161: 0.2389646993 | M161: 0.05710412751 | N161: 10325.58823 | O161: 10498.66992 | P161: 10191.40039 | Q161: 0.8181436805 | R161: =IF(A161<=$F$16,Q161*$D$20+$D$19,0) -> 0.5571617861 | S161: =IF(A161<=$F$16,R161^2,0) -> 0.3104292559 | T161: =IF(A161=$F$16,$G162+S161*($G161-$G162),IF(A161<$F$16,T162+S161*($G161-T162),0)) -> 10317.64499 | U161: =IF(AND(T162<N162,T161>N161),TRUE,FALSE) -> FALSE | V161: =IF(AND(T162>N162,T161<N161),TRUE,FALSE) -> TRUE | Y161: 10325.58823 | Z161: =IF($R$5,T161,NA()) -> 10317.64499 | AA161: =IF(AND($R$6,U161),$AZ$34,NA()) ->  | AB161: =IF(AND($R$7,V161),$AZ$34,NA()) -> 11139.77207 | AP161: 180070000
A162: 130 | B162: =OFFSET(InputPriceData!B$15,CalculationsAndCharts!$A162+$A$11,0,1,1) -> 2004-07-02 | C162: =OFFSET(InputPriceData!G$15,CalculationsAndCharts!$A162+$A$11,IF($C$7,8,0),1,1) -> 146600000 | D162: =OFFSET(InputPriceData!C$15,CalculationsAndCharts!$A162+$A$11,IF($C$7,8,0),1,1) -> 10334 | E162: =OFFSET(InputPriceData!D$15,CalculationsAndCharts!$A162+$A$11,IF($C$7,8,0),1,1) -> 10334.08008 | F162: =OFFSET(InputPriceData!E$15,CalculationsAndCharts!$A162+$A$11,IF($C$7,8,0),1,1) -> 10264.91992 | G162: =OFFSET(InputPriceData!F$15,CalculationsAndCharts!$A162+$A$11,IF($C$7,8,0),1,1) -> 10282.83008 | H162: =IF(A162<=$F$16,ABS(G162-OFFSET(G162,$A$16,0,1,1)),0) -> 133.580078 | I162: =IF(A162<$A$8,ABS(G162-G163),0) -> 51.330078 | J162: =IF(A162<=$F$16,SUM(OFFSET(I162,0,0,$A$16,1)),0) -> 506.5625 | K162: =IF(A162<=$F$16,H162/J162,0) -> 0.2636991052 | L162: =IF(A162<=$F$16,K162*$D$20+$D$19,0) -> 0.223302687 | M162: =IF(A162<=$F$16,L162^2,0) -> 0.04986409003 | N162: =IF(A162=$F$16,$G163+M162*($G162-$G163),IF(A162<$F$16,N163+M162*($G162-N163),0)) -> 10332.0229 | O162: =IF(A162<=$F$16,MAX(OFFSET(E162,0,0,$D$16,1)),0) -> 10498.66992 | P162: =IF(A162<=$F$16,MIN(OFFSET(F162,0,0,$D$16,1)),0) -> 10264.91992 | Q162: =IF(A162<=$F$16,ABS((G162-P162)-(O162-G162))/(O162-P162),0) -> 0.8467580235 | R162: 0.5743919281 | S162: 0.3299260871 | T162: 10361.89976 | U162: FALSE | V162: FALSE | Y162: 10332.0229 | Z162: 10361.89976 | AP162: 146600000
A163: 131 | B163: =OFFSET(InputPriceData!B$15,CalculationsAndCharts!$A163+$A$11,0,1,1) -> 2004-07-01 | C163: =OFFSET(InputPriceData!G$15,CalculationsAndCharts!$A163+$A$11,IF($C$7,8,0),1,1) -> 234900000 | D163: =OFFSET(InputPriceData!C$15,CalculationsAndCharts!$A163+$A$11,IF($C$7,8,0),1,1) -> 10434 | E163: =OFFSET(InputPriceData!D$15,CalculationsAndCharts!$A163+$A$11,IF($C$7,8,0),1,1) -> 10448.08984 | F163: =OFFSET(InputPriceData!E$15,CalculationsAndCharts!$A163+$A$11,IF($C$7,8,0),1,1) -> 10274.50977 | G163: =OFFSET(InputPriceData!F$15,CalculationsAndCharts!$A163+$A$11,IF($C$7,8,0),1,1) -> 10334.16016 | H163: 43.359375 | I163: 101.320313 | J163: 494.123047 | K163: 0.0877501571 | L163: 0.1173549333 | M163: 0.01377218037 | N163: 10334.60459 | O163: 10498.66992 | P163: 10274.50977 | Q163: 0.4677877544 | R163: 0.3461947768 | S163: 0.1198508235 | T163: 10400.83151 | U163: FALSE | V163: FALSE | Y163: 10334.60459 | Z163: 10400.83151 | AP163: 234900000
A164: 132 | B164: =OFFSET(InputPriceData!B$15,CalculationsAndCharts!$A164+$A$11,0,1,1) -> 2004-06-30 | C164: =OFFSET(InputPriceData!G$15,CalculationsAndCharts!$A164+$A$11,IF($C$7,8,0),1,1) -> 227800000 | D164: =OFFSET(InputPriceData!C$15,CalculationsAndCharts!$A164+$A$11,IF($C$7,8,0),1,1) -> 10413.42969 | E164: =OFFSET(InputPriceData!D$15,CalculationsAndCharts!$A164+$A$11,IF($C$7,8,0),1,1) -> 10471.24023 | F164: =OFFSET(InputPriceData!E$15,CalculationsAndCharts!$A164+$A$11,IF($C$7,8,0),1,1) -> 10375.66992 | G164: =OFFSET(InputPriceData!F$15,CalculationsAndCharts!$A164+$A$11,IF($C$7,8,0),1,1) -> 10435.48047 | H164: 55.900391 | I164: 22.050781 | J164: 394.863281 | K164: 0.1415689776 | L164: 0.149761965 | M164: 0.02242864617 | N164: 10334.61079 | O164: 10498.66992 | P164: 10307.25 | Q164: 0.3397818541 | R164: 0.2691159551 | S164: 0.07242339731 | T164: 10409.91021 | U164: FALSE | V164: FALSE | Y164: 10334.61079 | Z164: 10409.91021 | AO164: 227800000
A165: 133 | B165: =OFFSET(InputPriceData!B$15,CalculationsAndCharts!$A165+$A$11,0,1,1) -> 2004-06-29 | C165: =OFFSET(InputPriceData!G$15,CalculationsAndCharts!$A165+$A$11,IF($C$7,8,0),1,1) -> 180210000 | D165: =OFFSET(InputPriceData!C$15,CalculationsAndCharts!$A165+$A$11,IF($C$7,8,0),1,1) -> 10356.34961 | E165: =OFFSET(InputPriceData!D$15,CalculationsAndCharts!$A165+$A$11,IF($C$7,8,0),1,1) -> 10429.12988 | F165: =OFFSET(InputPriceData!E$15,CalculationsAndCharts!$A165+$A$11,IF($C$7,8,0),1,1) -> 10341.67969 | G165: =OFFSET(InputPriceData!F$15,CalculationsAndCharts!$A165+$A$11,IF($C$7,8,0),1,1) -> 10413.42969 | H165: 33 | I165: 56.339844 | J165: 373.66211 | K165: 0.08831508231 | L165: 0.1176951033 | M165: 0.01385213735 | N165: 10332.29652 | O165: 10498.66992 | P165: 10307.25 | Q165: 0.1093901501 | R165: 0.1303854667 | S165: 0.01700036993 | T165: 10407.91374 | U165: FALSE | V165: FALSE | Y165: 10332.29652 | Z165: 10407.91374 | AO165: 180210000
A166: 134 | B166: =OFFSET(InputPriceData!B$15,CalculationsAndCharts!$A166+$A$11,0,1,1) -> 2004-06-28 | C166: =OFFSET(InputPriceData!G$15,CalculationsAndCharts!$A166+$A$11,IF($C$7,8,0),1,1) -> 231100000 | D166: =OFFSET(InputPriceData!C$15,CalculationsAndCharts!$A166+$A$11,IF($C$7,8,0),1,1) -> 10377.51953 | E166: =OFFSET(InputPriceData!D$15,CalculationsAndCharts!$A166+$A$11,IF($C$7,8,0),1,1) -> 10464.37988 | F166: =OFFSET(InputPriceData!E$15,CalculationsAndCharts!$A166+$A$11,IF($C$7,8,0),1,1) -> 10337.70019 | G166: =OFFSET(InputPriceData!F$15,CalculationsAndCharts!$A166+$A$11,IF($C$7,8,0),1,1) -> 10357.08984 | H166: 22.359375 | I166: 14.75 | J166: 363.021485 | K166: 0.06159242889 | L166: 0.1016040432 | M166: 0.01032338159 | N166: 10331.15686 | O166: 10498.66992 | P166: 10307.04981 | Q166: 0.4777162254 | R166: 0.352173211 | S166: 0.1240259705 | T166: 10407.81834 | U166: FALSE | V166: FALSE | Y166: 10331.15686 | Z166: 10407.81834 | AP166: 231100000
A167: 135 | B167: =OFFSET(InputPriceData!B$15,CalculationsAndCharts!$A167+$A$11,0,1,1) -> 2004-06-25 | C167: =OFFSET(InputPriceData!G$15,CalculationsAndCharts!$A167+$A$11,IF($C$7,8,0),1,1) -> 308250000 | D167: =OFFSET(InputPriceData!C$15,CalculationsAndCharts!$A167+$A$11,IF($C$7,8,0),1,1) -> 10444.24023 | E167: =OFFSET(InputPriceData!D$15,CalculationsAndCharts!$A167+$A$11,IF($C$7,8,0),1,1) -> 10487.54004 | F167: =OFFSET(InputPriceData!E$15,CalculationsAndCharts!$A167+$A$11,IF($C$7,8,0),1,1) -> 10369.91992 | G167: =OFFSET(InputPriceData!F$15,CalculationsAndCharts!$A167+$A$11,IF($C$7,8,0),1,1) -> 10371.83984 | H167: 38.259765 | I167: 71.969726 | J167: 423.640625 | K167: 0.09031184155 | L167: 0.118897453 | M167: 0.01413660432 | N167: 10330.88635 | O167: 10498.66992 | P167: 10307.04981 | Q167: 0.3237657923 | R167: 0.2594718749 | S167: 0.06732565388 | T167: 10415.00081 | U167: FALSE | V167: FALSE | Y167: 10330.88635 | Z167: 10415.00081 | AP167: 308250000
A168: 136 | B168: =OFFSET(InputPriceData!B$15,CalculationsAndCharts!$A168+$A$11,0,1,1) -> 2004-06-24 | C168: =OFFSET(InputPriceData!G$15,CalculationsAndCharts!$A168+$A$11,IF($C$7,8,0),1,1) -> 214330000 | D168: =OFFSET(InputPriceData!C$15,CalculationsAndCharts!$A168+$A$11,IF($C$7,8,0),1,1) -> 10477.42969 | E168: =OFFSET(InputPriceData!D$15,CalculationsAndCharts!$A168+$A$11,IF($C$7,8,0),1,1) -> 10487.45996 | F168: =OFFSET(InputPriceData!E$15,CalculationsAndCharts!$A168+$A$11,IF($C$7,8,0),1,1) -> 10433.55957 | G168: =OFFSET(InputPriceData!F$15,CalculationsAndCharts!$A168+$A$11,IF($C$7,8,0),1,1) -> 10443.80957 | H168: 75.36914 | I168: 35.760743 | J168: 393.330078 | K168: 0.1916180435 | L168: 0.179899037 | M168: 0.0323636635 | N168: 10330.29911 | O168: 10498.66992 | P168: 10307.04981 | Q168: 0.4274050882 | R168: 0.3218783327 | S168: 0.103605661 | T168: 10418.11641 | U168: FALSE | V168: FALSE | Y168: 10330.29911 | Z168: 10418.11641 | AP168: 214330000
A169: 137 | B169: =OFFSET(InputPriceData!B$15,CalculationsAndCharts!$A169+$A$11,0,1,1) -> 2004-06-23 | C169: =OFFSET(InputPriceData!G$15,CalculationsAndCharts!$A169+$A$11,IF($C$7,8,0),1,1) -> 210770000 | D169: =OFFSET(InputPriceData!C$15,CalculationsAndCharts!$A169+$A$11,IF($C$7,8,0),1,1) -> 10395.13965 | E169: =OFFSET(InputPriceData!D$15,CalculationsAndCharts!$A169+$A$11,IF($C$7,8,0),1,1) -> 10498.66992 | F169: =OFFSET(InputPriceData!E$15,CalculationsAndCharts!$A169+$A$11,IF($C$7,8,0),1,1) -> 10323.32031 | G169: =OFFSET(InputPriceData!F$15,CalculationsAndCharts!$A169+$A$11,IF($C$7,8,0),1,1) -> 10479.57031 | H169: 47.050782 | I169: 84.5 | J169: 421.648436 | K169: 0.1115877067 | L169: 0.1317087266 | M169: 0.01734718866 | N169: 10326.50263 | O169: 10498.66992 | P169: 10307.04981 | Q169: 0.8006513168 | R169: 0.5466287499 | S169: 0.2988029902 | T169: 10415.14678 | U169: FALSE | V169: FALSE | Y169: 10326.50263 | Z169: 10415.14678 | AO169: 210770000
A170: 138 | B170: =OFFSET(InputPriceData!B$15,CalculationsAndCharts!$A170+$A$11,0,1,1) -> 2004-06-22 | C170: =OFFSET(InputPriceData!G$15,CalculationsAndCharts!$A170+$A$11,IF($C$7,8,0),1,1) -> 203470000 | D170: =OFFSET(InputPriceData!C$15,CalculationsAndCharts!$A170+$A$11,IF($C$7,8,0),1,1) -> 10370.20996 | E170: =OFFSET(InputPriceData!D$15,CalculationsAndCharts!$A170+$A$11,IF($C$7,8,0),1,1) -> 10401.17969 | F170: =OFFSET(InputPriceData!E$15,CalculationsAndCharts!$A170+$A$11,IF($C$7,8,0),1,1) -> 10307.25 | G170: =OFFSET(InputPriceData!F$15,CalculationsAndCharts!$A170+$A$11,IF($C$7,8,0),1,1) -> 10395.07031 | H170: 3.990235 | I170: 23.600586 | J170: 378.587889 | K170: 0.01053978512 | L170: 0.07086266631 | M170: 0.005021517477 | N170: 10323.80046 | O170: 10440.04981 | P170: 10243.30957 | Q170: 0.5427524827 | R170: 0.3913348283 | S170: 0.1531429479 | T170: 10387.6938 | U170: FALSE | V170: FALSE | Y170: 10323.80046 | Z170: 10387.6938 | AO170: 203470000
A171: 139 | B171: =OFFSET(InputPriceData!B$15,CalculationsAndCharts!$A171+$A$11,0,1,1) -> 2004-06-21 | C171: =OFFSET(InputPriceData!G$15,CalculationsAndCharts!$A171+$A$11,IF($C$7,8,0),1,1) -> 175300000 | D171: =OFFSET(InputPriceData!C$15,CalculationsAndCharts!$A171+$A$11,IF($C$7,8,0),1,1) -> 10417.82031 | E171: =OFFSET(InputPriceData!D$15,CalculationsAndCharts!$A171+$A$11,IF($C$7,8,0),1,1) -> 10440.04981 | F171: =OFFSET(InputPriceData!E$15,CalculationsAndCharts!$A171+$A$11,IF($C$7,8,0),1,1) -> 10363.36035 | G171: =OFFSET(InputPriceData!F$15,CalculationsAndCharts!$A171+$A$11,IF($C$7,8,0),1,1) -> 10371.46973 | H171: 128.649414 | I171: 44.940429 | J171: 503.247068 | K171: 0.2556386757 | L171: 0.218449095 | M171: 0.04772000712 | N171: 10323.44077 | O171: 10440.04981 | P171: 10196.69043 | Q171: 0.436388444 | R171: 0.3272876652 | S171: 0.1071172158 | T171: 10386.35986 | U171: FALSE | V171: FALSE | Y171: 10323.44077 | Z171: 10386.35986 | AP171: 175300000
A172: 140 | B172: =OFFSET(InputPriceData!B$15,CalculationsAndCharts!$A172+$A$11,0,1,1) -> 2004-06-18 | C172: =OFFSET(InputPriceData!G$15,CalculationsAndCharts!$A172+$A$11,IF($C$7,8,0),1,1) -> 300680000 | D172: =OFFSET(InputPriceData!C$15,CalculationsAndCharts!$A172+$A$11,IF($C$7,8,0),1,1) -> 10375.82031 | E172: =OFFSET(InputPriceData!D$15,CalculationsAndCharts!$A172+$A$11,IF($C$7,8,0),1,1) -> 10437.90039 | F172: =OFFSET(InputPriceData!E$15,CalculationsAndCharts!$A172+$A$11,IF($C$7,8,0),1,1) -> 10358 | G172: =OFFSET(InputPriceData!F$15,CalculationsAndCharts!$A172+$A$11,IF($C$7,8,0),1,1) -> 10416.41016 | H172: 220.5 | I172: 38.890625 | J172: 505.216796 | K172: 0.4364462974 | L172: 0.3273225017 | M172: 0.1071400201 | N172: 10321.03397 | O172: 10437.90039 | P172: 10193.78027 | Q172: 0.8239372062 | R172: 0.5606503607 | S172: 0.314328827 | T172: 10388.1462 | U172: FALSE | V172: FALSE | Y172: 10321.03397 | Z172: 10388.1462 | AO172: 300680000
A173: 141 | B173: =OFFSET(InputPriceData!B$15,CalculationsAndCharts!$A173+$A$11,0,1,1) -> 2004-06-17 | C173: =OFFSET(InputPriceData!G$15,CalculationsAndCharts!$A173+$A$11,IF($C$7,8,0),1,1) -> 169820000 | D173: =OFFSET(InputPriceData!C$15,CalculationsAndCharts!$A173+$A$11,IF($C$7,8,0),1,1) -> 10378.58984 | E173: =OFFSET(InputPriceData!D$15,CalculationsAndCharts!$A173+$A$11,IF($C$7,8,0),1,1) -> 10390.00977 | F173: =OFFSET(InputPriceData!E$15,CalculationsAndCharts!$A173+$A$11,IF($C$7,8,0),1,1) -> 10338.12988 | G173: =OFFSET(InputPriceData!F$15,CalculationsAndCharts!$A173+$A$11,IF($C$7,8,0),1,1) -> 10377.51953 | H173: 114.549804 | I173: 2.060547 | J173: 533.385742 | K173: 0.2147597789 | L173: 0.1938338453 | M173: 0.0375715596 | N173: 10309.58917 | O173: 10432.80957 | P173: 10193.78027 | Q173: 0.5373785582 | R173: 0.3880989168 | S173: 0.1506207692 | T173: 10375.18929 | U173: FALSE | V173: FALSE | Y173: 10309.58917 | Z173: 10375.18929 | AP173: 169820000
A174: 142 | B174: =OFFSET(InputPriceData!B$15,CalculationsAndCharts!$A174+$A$11,0,1,1) -> 2004-06-16 | C174: =OFFSET(InputPriceData!G$15,CalculationsAndCharts!$A174+$A$11,IF($C$7,8,0),1,1) -> 153020000 | D174: =OFFSET(InputPriceData!C$15,CalculationsAndCharts!$A174+$A$11,IF($C$7,8,0),1,1) -> 10380.23047 | E174: =OFFSET(InputPriceData!D$15,CalculationsAndCharts!$A174+$A$11,IF($C$7,8,0),1,1) -> 10393.41992 | F174: =OFFSET(InputPriceData!E$15,CalculationsAndCharts!$A174+$A$11,IF($C$7,8,0),1,1) -> 10355.50977 | G174: =OFFSET(InputPriceData!F$15,CalculationsAndCharts!$A174+$A$11,IF($C$7,8,0),1,1) -> 10379.58008 | H174: 176.929687 | I174: 0.84961 | J174: 591.644531 | K174: 0.2990472788 | L174: 0.2445876087 | M174: 0.05982309834 | N174: 10306.93729 | O174: 10432.80957 | P174: 10134.86035 | Q174: 0.642694199 | R174: 0.4515147865 | S174: 0.2038656024 | T174: 10374.77607 | U174: FALSE | V174: FALSE | Y174: 10306.93729 | Z174: 10374.77607 | AP174: 153020000
A175: 143 | B175: =OFFSET(InputPriceData!B$15,CalculationsAndCharts!$A175+$A$11,0,1,1) -> 2004-06-15 | C175: =OFFSET(InputPriceData!G$15,CalculationsAndCharts!$A175+$A$11,IF($C$7,8,0),1,1) -> 223780000 | D175: =OFFSET(InputPriceData!C$15,CalculationsAndCharts!$A175+$A$11,IF($C$7,8,0),1,1) -> 10336.50977 | E175: =OFFSET(InputPriceData!D$15,CalculationsAndCharts!$A175+$A$11,IF($C$7,8,0),1,1) -> 10428.04981 | F175: =OFFSET(InputPriceData!E$15,CalculationsAndCharts!$A175+$A$11,IF($C$7,8,0),1,1) -> 10336.50977 | G175: =OFFSET(InputPriceData!F$15,CalculationsAndCharts!$A175+$A$11,IF($C$7,8,0),1,1) -> 10380.42969 | H175: 191.979493 | I175: 45.699219 | J175: 604.995117 | K175: 0.3173240372 | L175: 0.2555929686 | M175: 0.06532776561 | N175: 10302.31505 | O175: 10432.80957 | P175: 10134.86035 | Q175: 0.6483972514 | R175: 0.4549488825 | S175: 0.2069784857 | T175: 10373.54591 | U175: FALSE | V175: FALSE | Y175: 10302.31505 | Z175: 10373.54591 | AO175: 223780000
A176: 144 | B176: =OFFSET(InputPriceData!B$15,CalculationsAndCharts!$A176+$A$11,0,1,1) -> 2004-06-14 | C176: =OFFSET(InputPriceData!G$15,CalculationsAndCharts!$A176+$A$11,IF($C$7,8,0),1,1) -> 166530000 | D176: =OFFSET(InputPriceData!C$15,CalculationsAndCharts!$A176+$A$11,IF($C$7,8,0),1,1) -> 10401.23047 | E176: =OFFSET(InputPriceData!D$15,CalculationsAndCharts!$A176+$A$11,IF($C$7,8,0),1,1) -> 10401.29981 | F176: =OFFSET(InputPriceData!E$15,CalculationsAndCharts!$A176+$A$11,IF($C$7,8,0),1,1) -> 10307.04981 | G176: =OFFSET(InputPriceData!F$15,CalculationsAndCharts!$A176+$A$11,IF($C$7,8,0),1,1) -> 10334.73047 | H176: 129.530274 | I176: 75.36914 | J176: 576.045898 | K176: 0.2248610301 | L176: 0.1999163192 | M176: 0.03996653468 | N176: 10296.85533 | O176: 10432.80957 | P176: 10109.88965 | Q176: 0.3925484659 | R176: 0.3008893988 | S176: 0.09053443033 | T176: 10371.74924 | U176: FALSE | V176: FALSE | Y176: 10296.85533 | Z176: 10371.74924 | AP176: 166530000
A177: 145 | B177: =OFFSET(InputPriceData!B$15,CalculationsAndCharts!$A177+$A$11,0,1,1) -> 2004-06-10 | C177: =OFFSET(InputPriceData!G$15,CalculationsAndCharts!$A177+$A$11,IF($C$7,8,0),1,1) -> 154090000 | D177: =OFFSET(InputPriceData!C$15,CalculationsAndCharts!$A177+$A$11,IF($C$7,8,0),1,1) -> 10367.79981 | E177: =OFFSET(InputPriceData!D$15,CalculationsAndCharts!$A177+$A$11,IF($C$7,8,0),1,1) -> 10410.95019 | F177: =OFFSET(InputPriceData!E$15,CalculationsAndCharts!$A177+$A$11,IF($C$7,8,0),1,1) -> 10367.79981 | G177: =OFFSET(InputPriceData!F$15,CalculationsAndCharts!$A177+$A$11,IF($C$7,8,0),1,1) -> 10410.09961 | H177: 300.209961 | I177: 41.659179 | J177: 595.987305 | K177: 0.5037187176 | L177: 0.3678306257 | M177: 0.1352993692 | N177: 10295.27857 | O177: 10432.80957 | P177: 10077.80957 | Q177: 0.8720565577 | R177: 0.5896254541 | S177: 0.3476581762 | T177: 10375.43434 | U177: FALSE | V177: FALSE | Y177: 10295.27857 | Z177: 10375.43434 | AO177: 154090000
A178: 146 | B178: =OFFSET(InputPriceData!B$15,CalculationsAndCharts!$A178+$A$11,0,1,1) -> 2004-06-09 | C178: =OFFSET(InputPriceData!G$15,CalculationsAndCharts!$A178+$A$11,IF($C$7,8,0),1,1) -> 175090000 | D178: =OFFSET(InputPriceData!C$15,CalculationsAndCharts!$A178+$A$11,IF($C$7,8,0),1,1) -> 10431.09961 | E178: =OFFSET(InputPriceData!D$15,CalculationsAndCharts!$A178+$A$11,IF($C$7,8,0),1,1) -> 10431.32031 | F178: =OFFSET(InputPriceData!E$15,CalculationsAndCharts!$A178+$A$11,IF($C$7,8,0),1,1) -> 10364.95996 | G178: =OFFSET(InputPriceData!F$15,CalculationsAndCharts!$A178+$A$11,IF($C$7,8,0),1,1) -> 10368.44043 | H178: 250.820313 | I178: 64.079101 | J178: 562.058595 | K178: 0.4462529623 | L178: 0.3332275902 | M178: 0.1110406269 | N178: 10277.31257 | O178: 10432.80957 | P178: 9915.860352 | Q178: 0.750965326 | R178: 0.5167103038 | S178: 0.2669895381 | T178: 10356.95988 | U178: FALSE | V178: FALSE | Y178: 10277.31257 | Z178: 10356.95988 | AP178: 175090000
A179: 147 | B179: =OFFSET(InputPriceData!B$15,CalculationsAndCharts!$A179+$A$11,0,1,1) -> 2004-06-08 | C179: =OFFSET(InputPriceData!G$15,CalculationsAndCharts!$A179+$A$11,IF($C$7,8,0),1,1) -> 170220000 | D179: =OFFSET(InputPriceData!C$15,CalculationsAndCharts!$A179+$A$11,IF($C$7,8,0),1,1) -> 10389.41016 | E179: =OFFSET(InputPriceData!D$15,CalculationsAndCharts!$A179+$A$11,IF($C$7,8,0),1,1) -> 10432.80957 | F179: =OFFSET(InputPriceData!E$15,CalculationsAndCharts!$A179+$A$11,IF($C$7,8,0),1,1) -> 10353.04981 | G179: =OFFSET(InputPriceData!F$15,CalculationsAndCharts!$A179+$A$11,IF($C$7,8,0),1,1) -> 10432.51953 | H179: 474.089843 | I179: 41.439453 | J179: 657.169923 | K179: 0.7214113525 | L179: 0.4989143628 | M179: 0.2489155414 | N179: 10265.92971 | O179: 10432.80957 | P179: 9915.860352 | Q179: 0.998877882 | R179: 0.6659909827 | S179: 0.4435439891 | T179: 10352.77824 | U179: FALSE | V179: FALSE | Y179: 10265.92971 | Z179: 10352.77824 | AO179: 170220000
A180: 148 | B180: =OFFSET(InputPriceData!B$15,CalculationsAndCharts!$A180+$A$11,0,1,1) -> 2004-06-07 | C180: =OFFSET(InputPriceData!G$15,CalculationsAndCharts!$A180+$A$11,IF($C$7,8,0),1,1) -> 172490000 | D180: =OFFSET(InputPriceData!C$15,CalculationsAndCharts!$A180+$A$11,IF($C$7,8,0),1,1) -> 10243.30957 | E180: =OFFSET(InputPriceData!D$15,CalculationsAndCharts!$A180+$A$11,IF($C$7,8,0),1,1) -> 10391.15039 | F180: =OFFSET(InputPriceData!E$15,CalculationsAndCharts!$A180+$A$11,IF($C$7,8,0),1,1) -> 10243.30957 | G180: =OFFSET(InputPriceData!F$15,CalculationsAndCharts!$A180+$A$11,IF($C$7,8,0),1,1) -> 10391.08008 | H180: 424.339844 | I180: 148.259765 | J180: 624.041016 | K180: 0.6799871052 | L180: 0.47397073 | M180: 0.2246482529 | N180: 10210.72048 | O180: 10391.15039 | P180: 9915.860352 | Q180: 0.9997041259 | R180: 0.6664885059 | S180: 0.4442069285 | T180: 10289.21748 | U180: FALSE | V180: FALSE | Y180: 10210.72048 | Z180: 10289.21748 | AO180: 172490000
A181: 149 | B181: =OFFSET(InputPriceData!B$15,CalculationsAndCharts!$A181+$A$11,0,1,1) -> 2004-06-04 | C181: =OFFSET(InputPriceData!G$15,CalculationsAndCharts!$A181+$A$11,IF($C$7,8,0),1,1) -> 161190000 | D181: =OFFSET(InputPriceData!C$15,CalculationsAndCharts!$A181+$A$11,IF($C$7,8,0),1,1) -> 10196.83008 | E181: =OFFSET(InputPriceData!D$15,CalculationsAndCharts!$A181+$A$11,IF($C$7,8,0),1,1) -> 10302.08008 | F181: =OFFSET(InputPriceData!E$15,CalculationsAndCharts!$A181+$A$11,IF($C$7,8,0),1,1) -> 10196.69043 | G181: =OFFSET(InputPriceData!F$15,CalculationsAndCharts!$A181+$A$11,IF($C$7,8,0),1,1) -> 10242.82031 | H181: 305.180665 | I181: 46.910157 | J181: 504.881837 | K181: 0.6044595837 | L181: 0.4284917923 | M181: 0.1836052161 | N181: 10158.4636 | O181: 10302.08008 | P181: 9900.589844 | Q181: 0.7048009641 | R181: 0.4889124085 | S181: 0.2390353432 | T181: 10207.80576 | U181: FALSE | V181: FALSE | Y181: 10158.4636 | Z181: 10207.80576 | AO181: 161190000
A182: 150 | B182: =OFFSET(InputPriceData!B$15,CalculationsAndCharts!$A182+$A$11,0,1,1) -> 2004-06-03 | C182: =OFFSET(InputPriceData!G$15,CalculationsAndCharts!$A182+$A$11,IF($C$7,8,0),1,1) -> 162840000 | D182: =OFFSET(InputPriceData!C$15,CalculationsAndCharts!$A182+$A$11,IF($C$7,8,0),1,1) -> 10261.84961 | E182: =OFFSET(InputPriceData!D$15,CalculationsAndCharts!$A182+$A$11,IF($C$7,8,0),1,1) -> 10281.91992 | F182: =OFFSET(InputPriceData!E$15,CalculationsAndCharts!$A182+$A$11,IF($C$7,8,0),1,1) -> 10193.78027 | G182: =OFFSET(InputPriceData!F$15,CalculationsAndCharts!$A182+$A$11,IF($C$7,8,0),1,1) -> 10195.91016 | H182: 258.200195 | I182: 67.059571 | J182: 458.041993 | K182: 0.5637041995 | L182: 0.4039509158 | M182: 0.1631763424 | N182: 10139.49198 | O182: 10288.80957 | P182: 9900.589844 | Q182: 0.5214080698 | R182: 0.3784822786 | S182: 0.1432488352 | T182: 10196.80694 | U182: FALSE | V182: FALSE | Y182: 10139.49198 | Z182: 10196.80694 | AP182: 162840000
A183: 151 | B183: =OFFSET(InputPriceData!B$15,CalculationsAndCharts!$A183+$A$11,0,1,1) -> 2004-06-02 | C183: =OFFSET(InputPriceData!G$15,CalculationsAndCharts!$A183+$A$11,IF($C$7,8,0),1,1) -> 183540000 | D183: =OFFSET(InputPriceData!C$15,CalculationsAndCharts!$A183+$A$11,IF($C$7,8,0),1,1) -> 10199.78027 | E183: =OFFSET(InputPriceData!D$15,CalculationsAndCharts!$A183+$A$11,IF($C$7,8,0),1,1) -> 10288.80957 | F183: =OFFSET(InputPriceData!E$15,CalculationsAndCharts!$A183+$A$11,IF($C$7,8,0),1,1) -> 10197.05957 | G183: =OFFSET(InputPriceData!F$15,CalculationsAndCharts!$A183+$A$11,IF($C$7,8,0),1,1) -> 10262.96973 | H183: 294.459961 | I183: 60.319336 | J183: 421.782227 | K183: 0.6981326906 | L183: 0.484897104 | M183: 0.2351252015 | N183: 10128.49072 | O183: 10288.80957 | P183: 9900.589844 | Q183: 0.8668803192 | R183: 0.5865085793 | S183: 0.3439923136 | T183: 10196.95688 | U183: FALSE | V183: FALSE | Y183: =IF($R$4,N183,NA()) -> 10128.49072 | Z183: 10196.95688 | AO183: 183540000
A184: 152 | B184: =OFFSET(InputPriceData!B$15,CalculationsAndCharts!$A184+$A$11,0,1,1) -> 2004-06-01 | C184: =OFFSET(InputPriceData!G$15,CalculationsAndCharts!$A184+$A$11,IF($C$7,8,0),1,1) -> 166590000 | D184: =OFFSET(InputPriceData!C$15,CalculationsAndCharts!$A184+$A$11,IF($C$7,8,0),1,1) -> 10187.17969 | E184: =OFFSET(InputPriceData!D$15,CalculationsAndCharts!$A184+$A$11,IF($C$7,8,0),1,1) -> 10214.57031 | F184: =OFFSET(InputPriceData!E$15,CalculationsAndCharts!$A184+$A$11,IF($C$7,8,0),1,1) -> 10134.86035 | G184: =OFFSET(InputPriceData!F$15,CalculationsAndCharts!$A184+$A$11,IF($C$7,8,0),1,1) -> 10202.65039 | H184: 295.740235 | I184: 14.200196 | J184: 423.062501 | K184: 0.6990462031 | L184: 0.4854471761 | M184: 0.2356589607 | N184: 10087.1514 | O184: 10222.24023 | P184: 9862.769531 | Q184: 0.8910072902 | R184: 0.6010366479 | S184: 0.3612450521 | T184: 10162.34156 | U184: FALSE | V184: FALSE | Y184: 10087.1514 | Z184: 10162.34156 | AO184: 166590000
A185: 153 | B185: =OFFSET(InputPriceData!B$15,CalculationsAndCharts!$A185+$A$11,0,1,1) -> 2004-05-28 | C185: =OFFSET(InputPriceData!G$15,CalculationsAndCharts!$A185+$A$11,IF($C$7,8,0),1,1) -> 159560000 | D185: =OFFSET(InputPriceData!C$15,CalculationsAndCharts!$A185+$A$11,IF($C$7,8,0),1,1) -> 10205.83008 | E185: =OFFSET(InputPriceData!D$15,CalculationsAndCharts!$A185+$A$11,IF($C$7,8,0),1,1) -> 10216.62988 | F185: =OFFSET(InputPriceData!E$15,CalculationsAndCharts!$A185+$A$11,IF($C$7,8,0),1,1) -> 10172.76953 | G185: =OFFSET(InputPriceData!F$15,CalculationsAndCharts!$A185+$A$11,IF($C$7,8,0),1,1) -> 10188.45019 | H185: 175.580078 | I185: 16.75 | J185: 514.822266 | K185: 0.3410498916 | L185: 0.2698795046 | M185: 0.07283494701 | N185: 10051.54115 | O185: 10222.24023 | P185: 9862.769531 | Q185: 0.8120011521 | R185: 0.5534630594 | S185: 0.3063213581 | T185: 10139.54508 | U185: FALSE | V185: FALSE | Y185: 10051.54115 | Z185: 10139.54508 | AP185: 159560000
A186: 154 | B186: =OFFSET(InputPriceData!B$15,CalculationsAndCharts!$A186+$A$11,0,1,1) -> 2004-05-27 | C186: =OFFSET(InputPriceData!G$15,CalculationsAndCharts!$A186+$A$11,IF($C$7,8,0),1,1) -> 186670000 | D186: =OFFSET(InputPriceData!C$15,CalculationsAndCharts!$A186+$A$11,IF($C$7,8,0),1,1) -> 10109.88965 | E186: =OFFSET(InputPriceData!D$15,CalculationsAndCharts!$A186+$A$11,IF($C$7,8,0),1,1) -> 10222.24023 | F186: =OFFSET(InputPriceData!E$15,CalculationsAndCharts!$A186+$A$11,IF($C$7,8,0),1,1) -> 10109.88965 | G186: =OFFSET(InputPriceData!F$15,CalculationsAndCharts!$A186+$A$11,IF($C$7,8,0),1,1) -> 10205.20019 | H186: 194.459961 | I186: 95.310547 | J186: 500.202149 | K186: 0.388762746 | L186: 0.2986098255 | M186: 0.08916782791 | N186: 10040.78604 | O186: 10222.24023 | P186: 9862.769531 | Q186: 0.9051937259 | R186: 0.6095790177 | S186: 0.3715865789 | T186: 10117.94909 | U186: FALSE | V186: FALSE | Y186: 10040.78604 | Z186: 10117.94909 | AO186: 186670000
A187: 155 | B187: =OFFSET(InputPriceData!B$15,CalculationsAndCharts!$A187+$A$11,0,1,1) -> 2004-05-26 | C187: =OFFSET(InputPriceData!G$15,CalculationsAndCharts!$A187+$A$11,IF($C$7,8,0),1,1) -> 171700000 | D187: =OFFSET(InputPriceData!C$15,CalculationsAndCharts!$A187+$A$11,IF($C$7,8,0),1,1) -> 10116.83984 | E187: =OFFSET(InputPriceData!D$15,CalculationsAndCharts!$A187+$A$11,IF($C$7,8,0),1,1) -> 10128.83984 | F187: =OFFSET(InputPriceData!E$15,CalculationsAndCharts!$A187+$A$11,IF($C$7,8,0),1,1) -> 10077.80957 | G187: =OFFSET(InputPriceData!F$15,CalculationsAndCharts!$A187+$A$11,IF($C$7,8,0),1,1) -> 10109.88965 | H187: 64.729492 | I187: 7.730469 | J187: 439.311524 | K187: 0.1473430321 | L187: 0.1532388151 | M187: 0.02348213444 | N187: 10024.69037 | O187: 10128.83984 | P187: 9852.19043 | Q187: 0.8630020883 | R187: 0.5841733005 | S187: 0.341258445 | T187: 10066.35672 | U187: FALSE | V187: FALSE | Y187: 10024.69037 | Z187: 10066.35672 | AP187: 171700000
A188: 156 | B188: =OFFSET(InputPriceData!B$15,CalculationsAndCharts!$A188+$A$11,0,1,1) -> 2004-05-25 | C188: =OFFSET(InputPriceData!G$15,CalculationsAndCharts!$A188+$A$11,IF($C$7,8,0),1,1) -> 213950000 | D188: =OFFSET(InputPriceData!C$15,CalculationsAndCharts!$A188+$A$11,IF($C$7,8,0),1,1) -> 9958.080078 | E188: =OFFSET(InputPriceData!D$15,CalculationsAndCharts!$A188+$A$11,IF($C$7,8,0),1,1) -> 10121.66992 | F188: =OFFSET(InputPriceData!E$15,CalculationsAndCharts!$A188+$A$11,IF($C$7,8,0),1,1) -> 9915.860352 | G188: =OFFSET(InputPriceData!F$15,CalculationsAndCharts!$A188+$A$11,IF($C$7,8,0),1,1) -> 10117.62012 | H188: 98.15039 | I188: 159.190429 | J188: 457.271484 | K188: 0.2146435836 | L188: 0.1937638783 | M188: 0.03754444053 | N188: 10022.6416 | O188: 10121.66992 | P188: 9852.19043 | Q188: 0.9699435013 | R188: 0.6485681298 | S188: 0.420640619 | T188: 10043.80466 | U188: TRUE | V188: FALSE | Y188: 10022.6416 | Z188: 10043.80466 | AA188: 11139.77207 | AO188: 213950000
A189: 157 | B189: =OFFSET(InputPriceData!B$15,CalculationsAndCharts!$A189+$A$11,0,1,1) -> 2004-05-24 | C189: =OFFSET(InputPriceData!G$15,CalculationsAndCharts!$A189+$A$11,IF($C$7,8,0),1,1) -> 187000000 | D189: =OFFSET(InputPriceData!C$15,CalculationsAndCharts!$A189+$A$11,IF($C$7,8,0),1,1) -> 9968.019531 | E189: =OFFSET(InputPriceData!D$15,CalculationsAndCharts!$A189+$A$11,IF($C$7,8,0),1,1) -> 10045.45019 | F189: =OFFSET(InputPriceData!E$15,CalculationsAndCharts!$A189+$A$11,IF($C$7,8,0),1,1) -> 9927.139648 | G189: =OFFSET(InputPriceData!F$15,CalculationsAndCharts!$A189+$A$11,IF($C$7,8,0),1,1) -> 9958.429688 | H189: 31.589843 | I189: 8.310546 | J189: 327.531251 | K189: 0.0964483325 | L189: 0.1225925443 | M189: 0.01502893192 | N189: 10018.93659 | O189: 10116.28027 | P189: 9852.19043 | Q189: 0.1954309428 | R189: 0.1821949763 | S189: 0.03319500939 | T189: 9990.211358 | U189: FALSE | V189: FALSE | Y189: 10018.93659 | Z189: 9990.211358 | AP189: 187000000
A190: 158 | B190: =OFFSET(InputPriceData!B$15,CalculationsAndCharts!$A190+$A$11,0,1,1) -> 2004-05-21 | C190: =OFFSET(InputPriceData!G$15,CalculationsAndCharts!$A190+$A$11,IF($C$7,8,0),1,1) -> 180980000 | D190: =OFFSET(InputPriceData!C$15,CalculationsAndCharts!$A190+$A$11,IF($C$7,8,0),1,1) -> 9939.339844 | E190: =OFFSET(InputPriceData!D$15,CalculationsAndCharts!$A190+$A$11,IF($C$7,8,0),1,1) -> 10036.78027 | F190: =OFFSET(InputPriceData!E$15,CalculationsAndCharts!$A190+$A$11,IF($C$7,8,0),1,1) -> 9939.269531 | G190: =OFFSET(InputPriceData!F$15,CalculationsAndCharts!$A190+$A$11,IF($C$7,8,0),1,1) -> 9966.740234 | H190: 150.59961 | I190: 29.100586 | J190: 446.541018 | K190: 0.3372581777 | L190: 0.2675963221 | M190: 0.07160779158 | N190: 10019.85981 | O190: 10271.99023 | P190: 9852.19043 | Q190: 0.4542646142 | R190: 0.3380518107 | S190: 0.1142790267 | T190: 9991.302574 | U190: FALSE | V190: FALSE | Y190: 10019.85981 | Z190: 9991.302574 | AO190: 180980000
A191: 159 | B191: =OFFSET(InputPriceData!B$15,CalculationsAndCharts!$A191+$A$11,0,1,1) -> 2004-05-20 | C191: =OFFSET(InputPriceData!G$15,CalculationsAndCharts!$A191+$A$11,IF($C$7,8,0),1,1) -> 155570000 | D191: =OFFSET(InputPriceData!C$15,CalculationsAndCharts!$A191+$A$11,IF($C$7,8,0),1,1) -> 9939.120117 | E191: =OFFSET(InputPriceData!D$15,CalculationsAndCharts!$A191+$A$11,IF($C$7,8,0),1,1) -> 9970.639648 | F191: =OFFSET(InputPriceData!E$15,CalculationsAndCharts!$A191+$A$11,IF($C$7,8,0),1,1) -> 9900.589844 | G191: =OFFSET(InputPriceData!F$15,CalculationsAndCharts!$A191+$A$11,IF($C$7,8,0),1,1) -> 9937.639648 | H191: 303.620118 | I191: 0.070313 | J191: 541.360354 | K191: 0.5608466075 | L191: 0.4022302153 | M191: 0.1617891461 | N191: 10023.95698 | O191: 10308.20019 | P191: 9852.19043 | Q191: 0.6252307536 | R191: 0.4409991634 | S191: 0.1944802621 | T191: 9994.471699 | U191: FALSE | V191: FALSE | Y191: 10023.95698 | Z191: 9994.471699 | AP191: 155570000
A192: 160 | B192: =OFFSET(InputPriceData!B$15,CalculationsAndCharts!$A192+$A$11,0,1,1) -> 2004-05-19 | C192: =OFFSET(InputPriceData!G$15,CalculationsAndCharts!$A192+$A$11,IF($C$7,8,0),1,1) -> 227420000 | D192: =OFFSET(InputPriceData!C$15,CalculationsAndCharts!$A192+$A$11,IF($C$7,8,0),1,1) -> 9962.549805 | E192: =OFFSET(InputPriceData!D$15,CalculationsAndCharts!$A192+$A$11,IF($C$7,8,0),1,1) -> 10093.20996 | F192: =OFFSET(InputPriceData!E$15,CalculationsAndCharts!$A192+$A$11,IF($C$7,8,0),1,1) -> 9933.110352 | G192: =OFFSET(InputPriceData!F$15,CalculationsAndCharts!$A192+$A$11,IF($C$7,8,0),1,1) -> 9937.709961 | H192: 373.240234 | I192: 30.799805 | J192: 610.98047 | K192: 0.6108873398 | L192: 0.4323622691 | M192: 0.1869371318 | N192: 10040.61771 | O192: 10348.34961 | P192: 9852.19043 | Q192: 0.6552738128 | R192: 0.4590896077 | S192: 0.2107632679 | T192: 10008.19292 | U192: FALSE | V192: FALSE | Y192: 10040.61771 | Z192: 10008.19292 | AP192: 227420000
A193: 161 | B193: =OFFSET(InputPriceData!B$15,CalculationsAndCharts!$A193+$A$11,0,1,1) -> 2004-05-18 | C193: =OFFSET(InputPriceData!G$15,CalculationsAndCharts!$A193+$A$11,IF($C$7,8,0),1,1) -> 191770000 | D193: =OFFSET(InputPriceData!C$15,CalculationsAndCharts!$A193+$A$11,IF($C$7,8,0),1,1) -> 9906.709961 | E193: =OFFSET(InputPriceData!D$15,CalculationsAndCharts!$A193+$A$11,IF($C$7,8,0),1,1) -> 9987.040039 | F193: =OFFSET(InputPriceData!E$15,CalculationsAndCharts!$A193+$A$11,IF($C$7,8,0),1,1) -> 9906.639648 | G193: =OFFSET(InputPriceData!F$15,CalculationsAndCharts!$A193+$A$11,IF($C$7,8,0),1,1) -> 9968.509766 | H193: 348.690429 | I193: 61.59961 | J193: 586.430665 | K193: 0.594597878 | L193: 0.4225535609 | M193: 0.1785515119 | N193: 10064.27797 | O193: 10386.32031 | P193: 9852.19043 | Q193: 0.5644529928 | R193: 0.4044018021 | S193: 0.1635408176 | T193: 10027.01518 | U193: FALSE | V193: FALSE | Y193: 10064.27797 | Z193: 10027.01518 | AO193: 191770000
A194: 162 | B194: =OFFSET(InputPriceData!B$15,CalculationsAndCharts!$A194+$A$11,0,1,1) -> 2004-05-17 | C194: =OFFSET(InputPriceData!G$15,CalculationsAndCharts!$A194+$A$11,IF($C$7,8,0),1,1) -> 199660000 | D194: =OFFSET(InputPriceData!C$15,CalculationsAndCharts!$A194+$A$11,IF($C$7,8,0),1,1) -> 10009.91992 | E194: =OFFSET(InputPriceData!D$15,CalculationsAndCharts!$A194+$A$11,IF($C$7,8,0),1,1) -> 10009.91992 | F194: =OFFSET(InputPriceData!E$15,CalculationsAndCharts!$A194+$A$11,IF($C$7,8,0),1,1) -> 9862.769531 | G194: =OFFSET(InputPriceData!F$15,CalculationsAndCharts!$A194+$A$11,IF($C$7,8,0),1,1) -> 9906.910156 | H194: 407.089844 | I194: 105.959961 | J194: 528.03125 | K194: 0.7709578628 | L194: 0.5287488206 | M194: 0.2795753153 | N194: 10085.09432 | O194: 10386.32031 | P194: 9852.19043 | Q194: 0.7951070414 | R194: 0.5432902615 | S194: 0.2951643082 | T194: 10038.4539 | U194: FALSE | V194: FALSE | Y194: 10085.09432 | Z194: 10038.4539 | AP194: 199660000
A195: 163 | B195: =OFFSET(InputPriceData!B$15,CalculationsAndCharts!$A195+$A$11,0,1,1) -> 2004-05-14 | C195: =OFFSET(InputPriceData!G$15,CalculationsAndCharts!$A195+$A$11,IF($C$7,8,0),1,1) -> 175180000 | D195: =OFFSET(InputPriceData!C$15,CalculationsAndCharts!$A195+$A$11,IF($C$7,8,0),1,1) -> 10008.42969 | E195: =OFFSET(InputPriceData!D$15,CalculationsAndCharts!$A195+$A$11,IF($C$7,8,0),1,1) -> 10065.67969 | F195: =OFFSET(InputPriceData!E$15,CalculationsAndCharts!$A195+$A$11,IF($C$7,8,0),1,1) -> 9938.419922 | G195: =OFFSET(InputPriceData!F$15,CalculationsAndCharts!$A195+$A$11,IF($C$7,8,0),1,1) -> 10012.87012 | H195: 212.700196 | I195: 2.129883 | J195: 510.500976 | K195: 0.4166499302 | L195: 0.3154021085 | M195: 0.09947849004 | N195: 10154.24228 | O195: 10386.32031 | P195: 9852.19043 | Q195: 0.3983497568 | R195: 0.3043826493 | S195: 0.09264879717 | T195: 10093.54052 | U195: FALSE | V195: FALSE | Y195: 10154.24228 | Z195: 10093.54052 | AO195: 175180000
A196: 164 | B196: =OFFSET(InputPriceData!B$15,CalculationsAndCharts!$A196+$A$11,0,1,1) -> 2004-05-13 | C196: =OFFSET(InputPriceData!G$15,CalculationsAndCharts!$A196+$A$11,IF($C$7,8,0),1,1) -> 215300000 | D196: =OFFSET(InputPriceData!C$15,CalculationsAndCharts!$A196+$A$11,IF($C$7,8,0),1,1) -> 10044.30957 | E196: =OFFSET(InputPriceData!D$15,CalculationsAndCharts!$A196+$A$11,IF($C$7,8,0),1,1) -> 10074.11035 | F196: =OFFSET(InputPriceData!E$15,CalculationsAndCharts!$A196+$A$11,IF($C$7,8,0),1,1) -> 9970.929688 | G196: =OFFSET(InputPriceData!F$15,CalculationsAndCharts!$A196+$A$11,IF($C$7,8,0),1,1) -> 10010.74023 | H196: 261.529297 | I196: 34.419922 | J196: 555.070311 | K196: 0.4711642684 | L196: 0.3482279466 | M196: 0.1212627028 | N196: 10169.85933 | O196: 10407.96973 | P196: 9852.19043 | Q196: 0.4294504856 | R196: 0.3231099698 | S196: 0.1044000526 | T196: 10101.7777 | U196: FALSE | V196: FALSE | Y196: 10169.85933 | Z196: 10101.7777 | AP196: 215300000
A197: 165 | B197: =OFFSET(InputPriceData!B$15,CalculationsAndCharts!$A197+$A$11,0,1,1) -> 2004-05-12 | C197: =OFFSET(InputPriceData!G$15,CalculationsAndCharts!$A197+$A$11,IF($C$7,8,0),1,1) -> 246410000 | D197: =OFFSET(InputPriceData!C$15,CalculationsAndCharts!$A197+$A$11,IF($C$7,8,0),1,1) -> 10011.51953 | E197: =OFFSET(InputPriceData!D$15,CalculationsAndCharts!$A197+$A$11,IF($C$7,8,0),1,1) -> 10048.20996 | F197: =OFFSET(InputPriceData!E$15,CalculationsAndCharts!$A197+$A$11,IF($C$7,8,0),1,1) -> 9852.19043 | G197: =OFFSET(InputPriceData!F$15,CalculationsAndCharts!$A197+$A$11,IF($C$7,8,0),1,1) -> 10045.16016 | H197: 297.439453 | I197: 25.690429 | J197: 590.980467 | K197: 0.5032982808 | L197: 0.3675774594 | M197: 0.1351131886 | N197: 10191.81721 | O197: 10476.95019 | P197: 9852.19043 | Q197: 0.3822594322 | R197: 0.2946938516 | S197: 0.08684446618 | T197: 10112.38993 | U197: FALSE | V197: FALSE | Y197: 10191.81721 | Z197: 10112.38993 | AO197: 246410000
A198: 166 | B198: =OFFSET(InputPriceData!B$15,CalculationsAndCharts!$A198+$A$11,0,1,1) -> 2004-05-11 | C198: =OFFSET(InputPriceData!G$15,CalculationsAndCharts!$A198+$A$11,IF($C$7,8,0),1,1) -> 223650000 | D198: =OFFSET(InputPriceData!C$15,CalculationsAndCharts!$A198+$A$11,IF($C$7,8,0),1,1) -> 9989.240234 | E198: =OFFSET(InputPriceData!D$15,CalculationsAndCharts!$A198+$A$11,IF($C$7,8,0),1,1) -> 10038.34961 | F198: =OFFSET(InputPriceData!E$15,CalculationsAndCharts!$A198+$A$11,IF($C$7,8,0),1,1) -> 9974.049805 | G198: =OFFSET(InputPriceData!F$15,CalculationsAndCharts!$A198+$A$11,IF($C$7,8,0),1,1) -> 10019.46973 | H198: 458.690429 | I198: 29.450196 | J198: 700.850585 | K198: 0.6544767727 | L198: 0.4586096696 | M198: 0.210322829 | N198: 10214.72808 | O198: 10537.34961 | P198: 9932.740234 | Q198: 0.7131056957 | R198: 0.4939131071 | S198: 0.2439501574 | T198: 10118.78373 | U198: FALSE | V198: FALSE | Y198: 10214.72808 | Z198: 10118.78373 | AO198: 223650000
A199: 167 | B199: =OFFSET(InputPriceData!B$15,CalculationsAndCharts!$A199+$A$11,0,1,1) -> 2004-05-10 | C199: =OFFSET(InputPriceData!G$15,CalculationsAndCharts!$A199+$A$11,IF($C$7,8,0),1,1) -> 272130000 | D199: =OFFSET(InputPriceData!C$15,CalculationsAndCharts!$A199+$A$11,IF($C$7,8,0),1,1) -> 10116.28027 | E199: =OFFSET(InputPriceData!D$15,CalculationsAndCharts!$A199+$A$11,IF($C$7,8,0),1,1) -> 10116.28027 | F199: =OFFSET(InputPriceData!E$15,CalculationsAndCharts!$A199+$A$11,IF($C$7,8,0),1,1) -> 9932.740234 | G199: =OFFSET(InputPriceData!F$15,CalculationsAndCharts!$A199+$A$11,IF($C$7,8,0),1,1) -> 9990.019531 | H199: 454.710938 | I199: 127.320313 | J199: 704.830076 | K199: 0.645135549 | L199: 0.4529848467 | M199: 0.2051952713 | N199: 10266.73324 | O199: 10537.34961 | P199: 9932.740234 | Q199: 0.8105246152 | R199: 0.5525739618 | S199: 0.3053379833 | T199: 10150.8288 | U199: FALSE | V199: FALSE | Y199: 10266.73324 | Z199: 10150.8288 | AP199: 272130000
A200: 168 | B200: =OFFSET(InputPriceData!B$15,CalculationsAndCharts!$A200+$A$11,0,1,1) -> 2004-05-07 | C200: =OFFSET(InputPriceData!G$15,CalculationsAndCharts!$A200+$A$11,IF($C$7,8,0),1,1) -> 228140000 | D200: =OFFSET(InputPriceData!C$15,CalculationsAndCharts!$A200+$A$11,IF($C$7,8,0),1,1) -> 10240.62012 | E200: =OFFSET(InputPriceData!D$15,CalculationsAndCharts!$A200+$A$11,IF($C$7,8,0),1,1) -> 10271.99023 | F200: =OFFSET(InputPriceData!E$15,CalculationsAndCharts!$A200+$A$11,IF($C$7,8,0),1,1) -> 10114.86035 | G200: =OFFSET(InputPriceData!F$15,CalculationsAndCharts!$A200+$A$11,IF($C$7,8,0),1,1) -> 10117.33984 | H200: 355.5 | I200: 123.919922 | J200: 605.619138 | K200: 0.5870025858 | L200: 0.4179800516 | M200: 0.1747073236 | N200: 10338.1726 | O200: 10537.34961 | P200: 10114.86035 | Q200: 0.9882624613 | R200: 0.6595989014 | S200: 0.4350707108 | T200: 10221.51235 | U200: FALSE | V200: FALSE | Y200: 10338.1726 | Z200: 10221.51235 | AP200: 228140000
A201: 169 | B201: =OFFSET(InputPriceData!B$15,CalculationsAndCharts!$A201+$A$11,0,1,1) -> 2004-05-06 | C201: =OFFSET(InputPriceData!G$15,CalculationsAndCharts!$A201+$A$11,IF($C$7,8,0),1,1) -> 202690000 | D201: =OFFSET(InputPriceData!C$15,CalculationsAndCharts!$A201+$A$11,IF($C$7,8,0),1,1) -> 10308.20019 | E201: =OFFSET(InputPriceData!D$15,CalculationsAndCharts!$A201+$A$11,IF($C$7,8,0),1,1) -> 10308.20019 | F201: =OFFSET(InputPriceData!E$15,CalculationsAndCharts!$A201+$A$11,IF($C$7,8,0),1,1) -> 10170.50977 | G201: =OFFSET(InputPriceData!F$15,CalculationsAndCharts!$A201+$A$11,IF($C$7,8,0),1,1) -> 10241.25977 | H201: 219.940429 | I201: 69.690429 | J201: 493.338865 | K201: 0.445820195 | L201: 0.3329669991 | M201: 0.1108670225 | N201: 10384.92098 | O201: 10537.34961 | P201: 10170.50977 | Q201: 0.6142730876 | R201: 0.434400999 | S201: 0.1887042279 | T201: 10301.73904 | U201: FALSE | V201: FALSE | Y201: 10384.92098 | Z201: 10301.73904 | AP201: 202690000
A202: 170 | B202: =OFFSET(InputPriceData!B$15,CalculationsAndCharts!$A202+$A$11,0,1,1) -> 2004-05-05 | C202: =OFFSET(InputPriceData!G$15,CalculationsAndCharts!$A202+$A$11,IF($C$7,8,0),1,1) -> 172170000 | D202: =OFFSET(InputPriceData!C$15,CalculationsAndCharts!$A202+$A$11,IF($C$7,8,0),1,1) -> 10316.98047 | E202: =OFFSET(InputPriceData!D$15,CalculationsAndCharts!$A202+$A$11,IF($C$7,8,0),1,1) -> 10348.34961 | F202: =OFFSET(InputPriceData!E$15,CalculationsAndCharts!$A202+$A$11,IF($C$7,8,0),1,1) -> 10291.08008 | G202: =OFFSET(InputPriceData!F$15,CalculationsAndCharts!$A202+$A$11,IF($C$7,8,0),1,1) -> 10310.95019 | H202: 6.319336 | I202: 6.25 | J202: 567.5791 | K202: 0.01113384196 | L202: 0.07122037796 | M202: 0.005072342236 | N202: 10402.83427 | O202: 10537.34961 | P202: 10219.17969 | Q202: 0.4231352435 | R202: 0.3193072434 | S202: 0.1019571157 | T202: 10315.80628 | U202: FALSE | V202: FALSE | Y202: 10402.83427 | Z202: 10315.80628 | AP202: 172170000
A203: 171 | B203: =OFFSET(InputPriceData!B$15,CalculationsAndCharts!$A203+$A$11,0,1,1) -> 2004-05-04 | C203: =OFFSET(InputPriceData!G$15,CalculationsAndCharts!$A203+$A$11,IF($C$7,8,0),1,1) -> 208020000 | D203: =OFFSET(InputPriceData!C$15,CalculationsAndCharts!$A203+$A$11,IF($C$7,8,0),1,1) -> 10314.32031 | E203: =OFFSET(InputPriceData!D$15,CalculationsAndCharts!$A203+$A$11,IF($C$7,8,0),1,1) -> 10386.32031 | F203: =OFFSET(InputPriceData!E$15,CalculationsAndCharts!$A203+$A$11,IF($C$7,8,0),1,1) -> 10266.16992 | G203: =OFFSET(InputPriceData!F$15,CalculationsAndCharts!$A203+$A$11,IF($C$7,8,0),1,1) -> 10317.20019 | H203: 2.700195 | I203: 3.200195 | J203: 564.098631 | K203: 0.004786742693 | L203: 0.06739846872 | M203: 0.004542553586 | N203: 10403.30271 | O203: 10537.34961 | P203: 10219.17969 | Q203: 0.3838480602 | R203: 0.2956504449 | S203: 0.08740918555 | T203: 10316.3576 | U203: FALSE | V203: FALSE | Y203: 10403.30271 | Z203: 10316.3576 | AO203: 208020000
A204: 172 | B204: =OFFSET(InputPriceData!B$15,CalculationsAndCharts!$A204+$A$11,0,1,1) -> 2004-05-03 | C204: =OFFSET(InputPriceData!G$15,CalculationsAndCharts!$A204+$A$11,IF($C$7,8,0),1,1) -> 198830000 | D204: =OFFSET(InputPriceData!C$15,CalculationsAndCharts!$A204+$A$11,IF($C$7,8,0),1,1) -> 10227.26953 | E204: =OFFSET(InputPriceData!D$15,CalculationsAndCharts!$A204+$A$11,IF($C$7,8,0),1,1) -> 10329.04981 | F204: =OFFSET(InputPriceData!E$15,CalculationsAndCharts!$A204+$A$11,IF($C$7,8,0),1,1) -> 10227.12988 | G204: =OFFSET(InputPriceData!F$15,CalculationsAndCharts!$A204+$A$11,IF($C$7,8,0),1,1) -> 10314 | H204: 123.849609 | I204: 88.429687 | J204: 684.248045 | K204: 0.1810010418 | L204: 0.1735060037 | M204: 0.03010433331 | N204: 10403.69562 | O204: 10537.34961 | P204: 10219.17969 | Q204: 0.4039643238 | R204: 0.3077634638 | S204: 0.09471834966 | T204: 10316.2769 | U204: FALSE | V204: FALSE | Y204: 10403.69562 | Z204: 10316.2769 | AO204: 198830000
A205: 173 | B205: =OFFSET(InputPriceData!B$15,CalculationsAndCharts!$A205+$A$11,0,1,1) -> 2004-04-30 | C205: =OFFSET(InputPriceData!G$15,CalculationsAndCharts!$A205+$A$11,IF($C$7,8,0),1,1) -> 218010000 | D205: =OFFSET(InputPriceData!C$15,CalculationsAndCharts!$A205+$A$11,IF($C$7,8,0),1,1) -> 10273.05957 | E205: =OFFSET(InputPriceData!D$15,CalculationsAndCharts!$A205+$A$11,IF($C$7,8,0),1,1) -> 10333.87012 | F205: =OFFSET(InputPriceData!E$15,CalculationsAndCharts!$A205+$A$11,IF($C$7,8,0),1,1) -> 10225.57031 | G205: =OFFSET(InputPriceData!F$15,CalculationsAndCharts!$A205+$A$11,IF($C$7,8,0),1,1) -> 10225.57031 | H205: 226.399414 | I205: 46.699218 | J205: 609.938476 | K205: 0.3711840176 | L205: 0.2880247848 | M205: 0.08295827665 | N205: 10406.47966 | O205: 10537.34961 | P205: 10219.17969 | Q205: 0.9598288551 | R205: 0.6424775902 | S205: 0.4127774539 | T205: 10316.51512 | U205: FALSE | V205: FALSE | Y205: 10406.47966 | Z205: 10316.51512 | AP205: 218010000
A206: 174 | B206: =OFFSET(InputPriceData!B$15,CalculationsAndCharts!$A206+$A$11,0,1,1) -> 2004-04-29 | C206: =OFFSET(InputPriceData!G$15,CalculationsAndCharts!$A206+$A$11,IF($C$7,8,0),1,1) -> 231880000 | D206: =OFFSET(InputPriceData!C$15,CalculationsAndCharts!$A206+$A$11,IF($C$7,8,0),1,1) -> 10339.41016 | E206: =OFFSET(InputPriceData!D$15,CalculationsAndCharts!$A206+$A$11,IF($C$7,8,0),1,1) -> 10407.96973 | F206: =OFFSET(InputPriceData!E$15,CalculationsAndCharts!$A206+$A$11,IF($C$7,8,0),1,1) -> 10219.17969 | G206: =OFFSET(InputPriceData!F$15,CalculationsAndCharts!$A206+$A$11,IF($C$7,8,0),1,1) -> 10272.26953 | H206: 125.19043 | I206: 70.330078 | J206: 617.749024 | K206: 0.2026558119 | L206: 0.1865454351 | M206: 0.03479919936 | N206: 10422.84525 | O206: 10537.34961 | P206: 10219.17969 | Q206: 0.6662799373 | R206: 0.4657169515 | S206: 0.2168922789 | T206: 10380.44313 | U206: FALSE | V206: FALSE | Y206: 10422.84525 | Z206: 10380.44313 | AP206: 231880000
... 826 more rows

Sheet Follow
A1: Stocks and Indexes I wish to follow
A3: To ease following a stock, enter a Yahoo Finance acceptable symbol in column "A" anywhere below cell "A9".
A4: Thereafter you may doubleclick the cell containing a symbol of interest to initiate data retrieval and charting for that symbol.
A7: Symbol
A8: To | B8: Description | C8: Last Trade as of most recent check
A9: Follow | C9: Date | D9: Time | E9: Open | F9: High | G9: Low | H9: Close | I9: Volume | J9: Change
A10: A | B10: Agilent Technolog (A) -NYSE (Daily) | C10: 2015-02-02 | D10: 16:03:00 | E10: 37.9 | F10: 38.76 | G10: 37.71 | H10: 38.69 | I10: 2508493 | J10: 0.92
A11: AAL | B11: American Airlines Group Inc. (AAL) -NasdaqGS (Daily) | C11: 2017-12-07 | D11: 16:00:00 | E11: 49.529999 | F11: 50.920502 | G11: 49.299999 | H11: 50.880001 | I11: 3046954 | J11: 1.27
A12: ADM | B12: Archer-Daniels-Midland Company (ADM) -NYQ (Daily) | C12: 2016-03-07 | D12: 13:18:00 | E12: 37.17 | F12: 37.29 | G12: 36.85 | H12: 37.09 | I12: 2069198 | J12: -0.56
A13: AMC | B13: AMC Entertainment Holdings, Inc. (AMC) -NYSE (Daily) | C13: 2017-12-07 | D13: 16:02:00 | E13: 14.15 | F13: 14.5 | G13: 14.05 | H13: 14.35 | I13: 1931228 | J13: 0.1
A14: BSX | B14: Boston Scientific Corporation C (BSX) -NYQ (Daily) | C14: 2015-03-13 | D14: 16:01:00 | E14: 16.84 | F14: 16.91 | G14: 16.44 | H14: 16.61 | I14: 7262460 | J14: -0.28
A15: CASY | B15: Casey's General Stores, Inc. (CASY) -NasdaqGS (Daily) | C15: 2017-12-07 | D15: 16:00:00 | E15: 124.379997 | F15: 125.349998 | G15: 123.099998 | H15: 123.669998 | I15: 437041 | J15: -0.900002
A16: CSCO | B16: Cisco Systems, In (CSCO) -NasdaqNM (Daily) | C16: 2015-02-19 | D16: 16:00:00 | E16: 29.32 | F16: 29.39 | G16: 29.13 | H16: 29.31 | I16: 21469012 | J16: -0.18
A17: CVS | B17: CVS Health Corpor (CVS) -NYSE (Daily) | C17: 2015-02-02 | D17: 16:01:00 | E17: 98.34 | F17: 99.22 | G17: 97.06 | H17: 99.11 | I17: 4416094 | J17: 0.95
A18: DIS | B18: Walt Disney Compa (DIS) -NYSE (Daily) | C18: 2015-02-26 | D18: 16:00:00 | E18: 105.5 | F18: 105.71 | G18: 104.14 | H18: 104.56 | I18: 5044969 | J18: -1.01
A19: EMC | B19: EMC Corporation C (EMC) -NYSE (Daily) | C19: 2015-02-19 | D19: 16:00:00 | E19: 28.26 | F19: 28.83 | G19: 28.19 | H19: 28.72 | I19: 11049079 | J19: 0.52
A20: F | B20: Ford Motor Company (F) -NYSE (Daily) | C20: 2017-10-13 | D20: 16:01:00 | E20: 12.06 | F20: 12.17 | G20: 11.87 | H20: 12.05 | I20: 44563400 | J20: -0.07
A21: FAS | B21: Direxion Daily Financial Bull 3X ETF (FAS) -NYSEArca (Daily) | C21: 2017-10-13 | D21: 16:00:00 | E21: 58.099998 | F21: 58.939999 | G21: 57.43 | H21: 58.450001 | I21: 1709300 | J21: 0.07
A22: GSK | B22: GlaxoSmithKline P (GSK) -NYSE (Daily) | C22: 2015-02-02 | D22: 16:01:00 | E22: 44.11 | F22: 44.12 | G22: 43.71 | H22: 43.96 | I22: 3654466 | J22: -0.04
A23: GDX | B23: VanEck Vectors Gold Miners ETF (GDX) -PCX (Daily) | C23: 2017-02-10 | D23: 20:00:00 | E23: 24.67 | F23: 25.36 | G23: 24.6 | H23: 25.29 | I23: 65396107 | J23: 0.38
A24: HSY | B24: The Hershey Compa (HSY) -NYSE (Daily) | C24: 2015-02-19 | D24: 16:02:00 | E24: 106.97 | F24: 107.31 | G24: 105.42 | H24: 105.95 | I24: 1448321 | J24: -1
A25: HTLD | B25: Heartland Express (HTLD) -NasdaqNM (Daily) | C25: 2015-02-02 | D25: 16:00:00 | E25: 25.68 | F25: 25.81 | G25: 25.36 | H25: 25.62 | I25: 542510 | J25: -0.07
A26: IBM | B26: International Bus (IBM) -NYSE (Daily) | C26: 2015-02-02 | D26: 16:01:00 | E26: 154 | F26: 154.66 | G26: 151.51 | H26: 154.66 | I26: 4712247 | J26: 1.35
A27: INTC | B27: Intel Corporation (INTC) -NasdaqNM (Daily) | C27: 2015-02-19 | D27: 16:00:00 | E27: 34.25 | F27: 34.42 | G27: 34.05 | H27: 34.21 | I27: 11017541 | J27: -0.055
A28: JAH | B28: Jarden Corporation Common Stock (JAH) -NYQ (Daily) | C28: 2016-01-08 | D28: 16:02:00 | E28: 53.82 | F28: 53.88 | G28: 52.65 | H28: 52.73 | I28: 4519480 | J28: -0.81
A29: JNJ | B29: Johnson & Johnson Common Stock (JNJ) -NYQ (Daily) | C29: 2016-01-08 | D29: 11:37:00 | E29: 99.88 | F29: 99.94 | G29: 98.87 | H29: 98.88 | I29: 2448879 | J29: -0.34
A30: KO | B30: Coca-Cola Company (The) Common (KO) -NYQ (Daily) | C30: 2015-08-10 | D30: 16:00:00 | E30: 41.89 | F30: 41.99 | G30: 41.58 | H30: 41.68 | I30: 9501875 | J30: -0.09
A31: LHO | B31: LaSalle Hotel Pro (LHO) -NYSE (Daily) | C31: 2015-02-02 | D31: 16:06:00 | E31: 40.51 | F31: 40.74 | G31: 39.46 | H31: 40.26 | I31: 1034675 | J31: -0.2
A32: LINE | B32: Linn Energy, LLC (LINE) -NasdaqNM (Daily) | C32: 2015-02-02 | D32: 16:00:00 | E32: 10.4 | F32: 10.78 | G32: 10.25 | H32: 10.77 | I32: 3766537 | J32: 0.51
A33: LO | B33: Lorillard, Inc Co (LO) -NYSE (Daily) | C33: 2015-02-02 | D33: 16:03:00 | E33: 65.71 | F33: 66.29 | G33: 65.43 | H33: 66.29 | I33: 1563618 | J33: 0.68
A34: MCD | B34: McDonald's Corporation Common S (MCD) -NYQ (Daily) | C34: 2016-04-07 | D34: 16:10:00 | E34: 127.37 | F34: 128.52 | G34: 127.02 | H34: 128.14 | I34: 4720711 | J34: 0.62
A35: MDT | B35: Medtronic plc. Or (MDT) -NYSE (Daily) | C35: 2015-02-19 | D35: 16:01:00 | E35: 78.59 | F35: 78.59 | G35: 77.85 | H35: 78.13 | I35: 6900528 | J35: -0.37
A36: MGM | B36: MGM Resorts Inter (MGM) -NYSE (Daily) | C36: 2015-02-02 | D36: 16:00:00 | E36: 19.44 | F36: 19.75 | G36: 19.12 | H36: 19.74 | I36: 7570281 | J36: 0.26
A37: MO | B37: Altria Group, Inc (MO) -NYSE (Daily) | C37: 2015-02-02 | D37: 16:01:00 | E37: 53.25 | F37: 53.84 | G37: 52.98 | H37: 53.8 | I37: 9183582 | J37: 0.7
A38: MSFT | B38: Microsoft Corpora (MSFT) -NasdaqNM (Daily) | C38: 2015-02-20 | D38: 16:00:00 | E38: 43.51 | F38: 43.88 | G38: 43.29 | H38: 43.855 | I38: 29721132 | J38: 0.355
A39: NUGT | B39: Direxion Daily Gold Miners Inde (NUGT) -PCX (Daily) | C39: 2016-04-13 | D39: 14:18:00 | E39: 81.48 | F39: 84.97 | G39: 79.59 | H39: 80.5352 | I39: 4380827 | J39: -5.6148
A40: NVS | B40: Novartis AG Common Stock (NVS) -NYQ (Daily) | C40: 2016-01-08 | D40: 11:38:00 | E40: 83.38 | F40: 83.5 | G40: 82.37 | H40: 82.42 | I40: 979446 | J40: -1.52
A41: NVDA | B41: NVIDIA Corporation (NVDA) -NasdaqGS (Daily) | C41: 2017-12-05 | D41: 16:00:00 | E41: 182.399994 | F41: 192.699997 | G41: 180.580002 | H41: 187.740005 | I41: 24484326 | J41: 1.080001
A42: PRU | B42: Prudential Financ (PRU) -NYSE (Daily) | C42: 2015-02-23 | D42: 12:22:00 | E42: 80.25 | F42: 80.4499 | G42: 79.8 | H42: 80.12 | I42: 1604052 | J42: -0.69
A43: PSEC | B43: Prospect Capital Corporation (PSEC) -NMS (Daily) | C43: 2016-04-07 | D43: 16:00:00 | E43: 7.18 | F43: 7.25 | G43: 7.15 | H43: 7.21 | I43: 1116195 | J43: 0.02
A44: RAI | B44: Reynolds American (RAI) -NYSE (Daily) | C44: 2015-02-02 | D44: 16:03:00 | E44: 68.12 | F44: 69.06 | G44: 67.4346 | H44: 69.05 | I44: 1822013 | J44: 1.1
A45: RPM | B45: RPM International Inc. Common S (RPM) -NYQ (Daily) | C45: 2016-04-13 | D45: 12:43:00 | E45: 49.9 | F45: 50.21 | G45: 49.71 | H45: 49.97 | I45: 408337 | J45: 0.19 | K45: Owns the Rust-Oleum brand
A46: RSP | B46: Guggenheim S&P 500 Equal Weight (RSP) -PCX (Daily) | C46: 2016-01-08 | D46: 11:33:00 | E46: 73.24 | F46: 73.47 | G46: 72.41 | H46: 72.41 | I46: 754279 | J46: -0.48
A47: SONC | B47: Sonic Corp. (SONC) -NMS (Daily) | C47: 2017-02-08 | D47: 16:00:00 | E47: 25.15 | F47: 25.44 | G47: 24.91 | H47: 25.35 | I47: 397007 | J47: 0.18
A48: SPR | B48: Spirit Aerosystems Holdings, In (SPR) -NYQ (Daily) | C48: 2017-02-08 | D48: 16:02:00 | E48: 56.31 | F48: 56.53 | G48: 55.13 | H48: 56.41 | I48: 849196 | J48: 0.06
A49: SWKS | B49: Skyworks Solution (SWKS) -NasdaqNM (Daily) | C49: 2015-02-02 | D49: 16:00:00 | E49: 83.07 | F49: 83.73 | G49: 80.15 | H49: 82.02 | I49: 4119001 | J49: -1.03
A50: TOL | B50: Toll Brothers Inc (TOL) -NYSE (Daily) | C50: 2015-02-23 | D50: 12:23:00 | E50: 37.56 | F50: 37.77 | G50: 37.1 | H50: 37.36 | I50: 1521944 | J50: -0.29
A51: UNP | B51: Union Pacific Cor (UNP) -NYSE (Daily) | C51: 2015-02-02 | D51: 16:10:00 | E51: 118.13 | F51: 119.06 | G51: 116.7 | H51: 119.01 | I51: 3259594 | J51: 1.8
A52: VZ | B52: Verizon Communica (VZ) -NYSE (Daily) | C52: 2015-02-23 | D52: 12:22:00 | E52: 48.94 | F52: 49 | G52: 48.54 | H52: 48.825 | I52: 4204644 | J52: -0.145
A53: WBA | B53: (WBA) -NasdaqNM (Daily) | C53: 2015-02-02 | D53: 16:00:00 | E53: 73.06 | F53: 74.98 | G53: 73 | H53: 74.89 | I53: 4247395 | J53: 1.14
A54: WMT | B54: Wal-Mart Stores, Inc. (WMT) -NYSE (Daily) | C54: 2017-12-07 | D54: 16:00:00 | E54: 97.059998 | F54: 97.580002 | G54: 96.650002 | H54: 96.779999 | I54: 7502463 | J54: -0.5
A56: ^NDX | B56: NASDAQ-100 (^NDX) -NIM (Daily) | C56: 2015-08-10 | D56: 17:15:00 | E56: 4558.68 | F56: 4583.63 | G56: 4554.63 | H56: 4573.11 | I56: 0 | J56: 53.03
A57: ^FTSE | B57: FTSE 100 (^FTSE) -FTSE (Daily) | C57: 2018-02-14 | D57: 15:51:00 | E57: 7168.009766 | F57: 7243.149902 | G57: 7145.72998 | H57: 7222.319824 | I57: 0 | J57: 54.319824
A58: ^DJI | B58: Dow Jones Industrial Average (^DJI) -DJI (Daily) | C58: 2018-02-14 | D58: 13:58:00 | E58: 24535.82031 | F58: 24835.44922 | G58: 24490.35938 | H58: 24816.16016 | I58: 254641020 | J58: 175.710937
A59: SPY | B59: SPDR S&P 500 ETF (SPY) -NYSEArca (Daily) | C59: 2018-01-05 | D59: 16:00:00 | E59: 272.51001 | F59: 273.559998 | G59: 271.950012 | H59: 273.420013 | I59: 72820100 | J59: 1.810028
A60: ^GSPC | B60: S&P 500 (^GSPC) -SNP (Daily) | C60: 2018-02-14 | D60: 13:54:00 | E60: 2651.209961 | F60: 2694.949951 | G60: 2648.870117 | H60: 2692.959961 | I60: 1342028770 | J60: 30.02002
A61: ^RUT | B61: Russell 2000 (^RUT) -Chicago Options (Daily) | C61: 2018-02-12 | D61: 16:30:00 | E61: 1479.109985 | F61: 1498.109985 | G61: 1466.880005 | H61: 1490.97998 | I61: 40557900 | J61: -0.001465
A62: ^VIX | B62: VOLATILITY S&P 500 (^VIX) -WCB (Daily) | C62: 2015-12-04 | D62: 16:14:00 | E62: 17.43 | F62: 17.65 | G62: 14.69 | H62: 14.81 | I62: 0 | J62: -3.3
A63: ^NYA | B63: NYSE COMPOSITE (DJ) (^NYA) -NYSE (Daily) | C63: 2017-10-13 | D63: 17:38:00 | E63: 12360.87012 | F63: 12377.88965 | G63: 12350.03027 | H63: 12352.01953 | I63: 3149440000 | J63: 13.279297
A65: ACAD | B65: ACADIA Pharmaceut (ACAD) -NasdaqNM (Daily) | C65: 2014-07-21 | D65: 16:00:00 | E65: 20.13 | F65: 20.55 | G65: 19.8101 | H65: 20.31 | I65: 691016
A66: CLDX | B66: Celldex Therapeut (CLDX) -NasdaqNM (Daily) | C66: 2015-02-02 | D66: 16:00:00 | E66: 21.47 | F66: 21.69 | G66: 20.11 | H66: 21.02 | I66: 1570418 | J66: -0.4
A67: ICPT | B67: Intercept Pharmac (ICPT) -NasdaqNM (Daily) | C67: 2014-07-21 | D67: 16:00:00 | E67: 215.97 | F67: 218.43 | G67: 213.05 | H67: 218.14 | I67: 191276
A68: INO | B68: Inovio Pharmaceut (INO) -AMEX (Daily) | C68: 2014-07-21 | D68: 16:00:00 | E68: 10.3 | F68: 11.08 | G68: 10.1 | H68: 11.01 | I68: 1800796
A69: JCP | B69: J. C. Penney Company, Inc. (JCP) -NYSE (Daily) | C69: 2017-12-07 | D69: 16:01:00 | E69: 3.34 | F69: 3.4 | G69: 3.25 | H69: 3.27 | I69: 14485464 | J69: -0.07
A70: LCI | B70: Lannett Co Inc Co (LCI) -NYSE (Daily) | C70: 2014-07-21 | D70: 16:02:00 | E70: 38.09 | F70: 38.803 | G70: 36.5101 | H70: 37.76 | I70: 611367
A71: NPSP | B71: NPS Pharmaceutica (NPSP) -NasdaqNM (Daily) | C71: 2014-07-21 | D71: 15:59:00 | E71: 28.75 | F71: 29.43 | G71: 28.31 | H71: 29.29 | I71: 1126758
A72: PBYI | B72: Puma Biotechnolog (PBYI) -NYSE (Daily) | C72: 2014-07-21 | D72: 16:02:00 | E72: 58.27 | F72: 59.46 | G72: 57.39 | H72: 58.98 | I72: 348030
